Workbook

Sheet List
A1: Area | C1: Arrow | D1: Change | E1: Symbol | G1: Black Friday | I1: Choice
A2: London | C2: Red | D2: -150 | E2: ▼ | G2: 2018-11-23 | I2: =Dash!F4 -> London
A3: New York | C3: Yellow | D3: 0 | E3: ►
A4: Paris | C4: Green | D4: 0.04 | E4: ▲
A5: Tokyo

Sheet Time
A1: Timing - Master
C3: Model Timings
C4: Period Start
C5: Period End | D5: Start | E5: End | G5: =D6 -> 2018-07-01 | H5: =EDATE(G5,1) -> 2018-08-01 | I5: =EDATE(H5,1) -> 2018-09-01 | J5: =EDATE(I5,1) -> 2018-10-01 | K5: 2018-11-01 | L5: 2018-12-01 | M5: 2019-01-01 | N5: 2019-02-01 | O5: 2019-03-01 | P5: 2019-04-01 | Q5: 2019-05-01 | R5: 2019-06-01
C6: Model Life | D6: 2018-07-01 | E6: =EDATE(D6,12)-1 -> 2019-06-30 | G6: =EOMONTH(G5,0) -> 2018-07-31 | H6: =EOMONTH(H5,0) -> 2018-08-31 | I6: =EOMONTH(I5,0) -> 2018-09-30 | J6: 2018-10-31 | K6: 2018-11-30 | L6: 2018-12-31 | M6: 2019-01-31 | N6: 2019-02-28 | O6: 2019-03-31 | P6: 2019-04-30 | Q6: 2019-05-31 | R6: 2019-06-30 | S6: FY
C8: Flags & Counters
C9: Weekdays in Period | D9: days | G9: =NETWORKDAYS(G5,G6) -> 22 | H9: 23 | I9: 20 | J9: 23 | K9: 22 | L9: 21 | M9: 23 | N9: 20 | O9: 21 | P9: 22 | Q9: 23 | R9: 20 | S9: =SUM(G9:R9) -> 260
C10: Mondays in Period | E10: 2 | G10: =INT((WEEKDAY(G$5-$E10)+G$6-G$5)/7) -> 5 | H10: =INT((WEEKDAY(H$5-$E10)+H$6-H$5)/7) -> 4 | I10: 4 | J10: 5 | K10: 4 | L10: 5 | M10: 4 | N10: 4 | O10: 4 | P10: 5 | Q10: 4 | R10: 4 | S10: 52
C11: Tuesdays in Period | E11: 3 | G11: =INT((WEEKDAY(G$5-$E11)+G$6-G$5)/7) -> 5 | H11: 4 | I11: 4 | J11: 5 | K11: 4 | L11: 4 | M11: 5 | N11: 4 | O11: 4 | P11: 5 | Q11: 4 | R11: 4 | S11: 52
C12: Wednesdays in Period | E12: 4 | G12: =INT((WEEKDAY(G$5-$E12)+G$6-G$5)/7) -> 4 | H12: 5 | I12: 4 | J12: 5 | K12: 4 | L12: 4 | M12: 5 | N12: 4 | O12: 4 | P12: 4 | Q12: 5 | R12: 4 | S12: 52
C13: Thursdays in Period | E13: 5 | G13: =INT((WEEKDAY(G$5-$E13)+G$6-G$5)/7) -> 4 | H13: 5 | I13: 4 | J13: 4 | K13: 5 | L13: 4 | M13: 5 | N13: 4 | O13: 4 | P13: 4 | Q13: 5 | R13: 4 | S13: 52
C14: Fridays in Period | E14: 6 | G14: =INT((WEEKDAY(G$5-$E14)+G$6-G$5)/7) -> 4 | H14: 5 | I14: 4 | J14: 4 | K14: 5 | L14: 4 | M14: 4 | N14: 4 | O14: 5 | P14: 4 | Q14: 5 | R14: 4 | S14: 52
C15: Saturdays in Period | D15: days | G15: =INT((WEEKDAY(G$5-0)+G$6-G$5)/7) -> 4 | H15: =INT((WEEKDAY(H5-0)+H6-H5)/7) -> 4 | I15: 5 | J15: 4 | K15: 4 | L15: 5 | M15: 4 | N15: 4 | O15: 5 | P15: 4 | Q15: 4 | R15: 5 | S15: 52
C16: Sundays in Period | D16: days | G16: =INT((WEEKDAY(G$5-1)+G$6-G$5)/7) -> 5 | H16: =INT((WEEKDAY(H5-1)+H6-H5)/7) -> 4 | I16: 5 | J16: 4 | K16: 4 | L16: 5 | M16: 4 | N16: 4 | O16: 5 | P16: 4 | Q16: 4 | R16: 5 | S16: =SUM(G16:R16) -> 53
C17: Weekends in Period | D17: days | G17: =G6-G5+1-NETWORKDAYS(G5,G6) -> 9 | H17: =H6-H5+1-NETWORKDAYS(H5,H6) -> 8 | I17: 10 | J17: 8 | K17: 8 | L17: 10 | M17: 8 | N17: 8 | O17: 10 | P17: 8 | Q17: 8 | R17: 10
C18: Total Days in Period | D18: days | G18: =G17+G9 -> 31 | H18: =H17+H9 -> 31 | I18: 30 | J18: 31 | K18: 30 | L18: 31 | M18: 31 | N18: 28 | O18: 31 | P18: 30 | Q18: 31 | R18: 30
C19: Calendar Year | D19: year | G19: =YEAR(G5) -> 2018 | H19: 2018 | I19: 2018 | J19: 2018 | K19: 2018 | L19: 2018 | M19: 2019 | N19: 2019 | O19: 2019 | P19: 2019 | Q19: 2019 | R19: 2019
C20: Calendar Year (Counter) | D20: # | G20: 1 | H20: 1 | I20: 1 | J20: 1 | K20: 1 | L20: 1 | M20: 1 | N20: 1 | O20: 1 | P20: 1 | Q20: 1 | R20: 1
C21: Financial Year | D21: year | G21: =YEAR($D$6)+1 -> 2019 | H21: 2019 | I21: 2019 | J21: 2019 | K21: 2019 | L21: 2019 | M21: 2019 | N21: 2019 | O21: 2019 | P21: 2019 | Q21: 2019 | R21: 2019
C22: Quarter CY | D22: # | E22: Q = quarter | G22: =CHOOSE(MONTH(G5),3,3,3,4,4,4,1,1,1,2,2,2) -> 1 | H22: 1 | I22: 1 | J22: 2 | K22: 2 | L22: 2 | M22: 3 | N22: 3 | O22: 3 | P22: 4 | Q22: 4 | R22: 4
C23: Half-year CY | D23: # | E23: H = half year | G23: =CHOOSE(MONTH(G5),2,2,2,2,2,2,1,1,1,1,1,1) -> 1 | H23: 1 | I23: 1 | J23: 1 | K23: 1 | L23: 1 | M23: 2 | N23: 2 | O23: 2 | P23: 2 | Q23: 2 | R23: 2
C24: Month of model | D24: # | G24: =CHOOSE(MONTH(G5),7,8,9,10,11,12,1,2,3,4,5,6) -> 1 | H24: 2 | I24: 3 | J24: 4 | K24: 5 | L24: 6 | M24: 7 | N24: 8 | O24: 9 | P24: 10 | Q24: 11 | R24: 12
C25: Calendar Years during model life | D25: # | G25: 1 | H25: 1 | I25: 1 | J25: 1 | K25: 1 | L25: 1 | M25: 1 | N25: 1 | O25: 1 | P25: 1 | Q25: 1 | R25: 1
C27: Hours in a day | D27: # | E27: 24
C28: Days in year | D28: # | E28: =SUM(G18:R18) -> 365
C29: Year Lookup | D29: Text | E29: 2018_19
C30: PY Label Lookup | D30: Text | E30: 2017_18

Sheet Sales
A1: SalesKey | B1: DateKey | C1: Day | D1: Month | E1: Quarter | F1: Yr Lookup | G1: Time | H1: City | I1: channelKey | J1: Chanel | K1: StoreKey | L1: ProductKey | M1: Category | N1: Payment | O1: PromotionKey | P1: CurrencyKey | Q1: Ship | R1: UnitCost | S1: UnitPrice | T1: SalesQuantity | U1: ReturnQuantity | V1: ReturnAmount | W1: DiscountQuantity | X1: DiscountAmount | Y1: TotalCost | Z1: SalesAmount
A2: 599720 | B2: 2018-04-05 | C2: 5 | D2: 10 | E2: Q4 | F2: 2017_18 | G2: Day | H2: London | I2: 3 | J2: Mail | K2: 1 | L2: 615 | M2: PC Games | N2: Credit | O2: 1 | P2: 1 | Q2: 80 | R2: 116.75 | S2: 229 | T2: 10 | U2: 0 | V2: 0 | W2: 0 | X2: 0 | Y2: =$T2*R2 -> 1167.5 | Z2: =$T2*S2 -> 2290
A3: 598872 | B3: 2018-05-22 | C3: 3 | D3: 11 | E3: Q4 | F3: 2017_18 | G3: Evening | H3: New York | I3: 3 | J3: Mail | K3: 1 | L3: 124 | M3: PC Games | N3: Debit | O3: 1 | P3: 1 | Q3: 80 | R3: 128.76 | S3: 279.99 | T3: 10 | U3: 0 | V3: 0 | W3: 0 | X3: 0 | Y3: =$T3*R3 -> 1287.6 | Z3: =$T3*S3 -> 2799.9
A4: 2893537 | B4: 2019-05-13 | C4: 2 | D4: 11 | E4: Q4 | F4: 2018_19 | G4: Evening | H4: Tokyo | I4: 1 | J4: Store | K4: 1 | L4: 1629 | M4: PC Games | N4: Cash | O4: 1 | P4: 1 | Q4: 0 | R4: 5.09 | S4: 9.99 | T4: 10 | U4: 1 | V4: 9.99 | W4: 0 | X4: 0 | Y4: 50.9 | Z4: 99.9
A5: 3331472 | B5: 2018-05-28 | C5: 2 | D5: 11 | E5: Q4 | F5: 2017_18 | G5: Evening | H5: London | I5: 3 | J5: Mail | K5: 1 | L5: 1623 | M5: PC Games | N5: Debit | O5: 1 | P5: 1 | Q5: 40 | R5: 72.56 | S5: 219 | T5: 10 | U5: 1 | V5: 219 | W5: 0 | X5: 0 | Y5: 725.6 | Z5: 2190
A6: 2338920 | B6: 2018-04-30 | C6: 2 | D6: 10 | E6: Q4 | F6: 2017_18 | G6: Evening | H6: Paris | I6: 3 | J6: Mail | K6: 1 | L6: 1191 | M6: PC Games | N6: Credit | O6: 1 | P6: 1 | Q6: 80 | R6: 81.57 | S6: 160 | T6: 20 | U6: 0 | V6: 0 | W6: 0 | X6: 0 | Y6: 1631.4 | Z6: 3200
A7: 474912 | B7: 2017-10-22 | C7: 1 | D7: 4 | E7: Q2 | F7: 2017_18 | G7: Weekend | H7: Tokyo | I7: 3 | J7: Mail | K7: 1 | L7: 1214 | M7: Phone | N7: Credit | O7: 1 | P7: 1 | Q7: 80 | R7: 84.12 | S7: 165 | T7: 20 | U7: 0 | V7: 0 | W7: 0 | X7: 0 | Y7: 1682.4 | Z7: 3300
A8: 552430 | B8: 2018-10-17 | C8: 4 | D8: 4 | E8: Q2 | F8: 2018_19 | G8: Evening | H8: London | I8: 3 | J8: Mail | K8: 1 | L8: 751 | M8: PC Games | N8: Debit | O8: 1 | P8: 1 | Q8: 40 | R8: 5.86 | S8: 11.5 | T8: 10 | U8: 0 | V8: 0 | W8: 0 | X8: 0 | Y8: 58.6 | Z8: 115
A9: 559782 | B9: 2019-05-05 | C9: 1 | D9: 11 | E9: Q4 | F9: 2018_19 | G9: Weekend | H9: London | I9: 2 | J9: Online | K9: 1 | L9: 1438 | M9: Phone | N9: Credit | O9: 1 | P9: 1 | Q9: 80 | R9: 133.36 | S9: 290 | T9: 10 | U9: 0 | V9: 0 | W9: 0 | X9: 0 | Y9: 1333.6 | Z9: 2900
A10: 980665 | B10: 2017-10-01 | C10: 1 | D10: 4 | E10: Q2 | F10: 2017_18 | G10: Weekend | H10: New York | I10: 3 | J10: Mail | K10: 1 | L10: 1241 | M10: Drone | N10: Credit | O10: 1 | P10: 1 | Q10: 80 | R10: 393.64 | S10: 856 | T10: 10 | U10: 0 | V10: 0 | W10: 0 | X10: 0 | Y10: 3936.4 | Z10: 8560
A11: 979463 | B11: 2019-05-28 | C11: 3 | D11: 11 | E11: Q4 | F11: 2018_19 | G11: Evening | H11: Tokyo | I11: 3 | J11: Mail | K11: 1 | L11: 907 | M11: PC Games | N11: Credit | O11: 1 | P11: 1 | Q11: 80 | R11: 52 | S11: 102 | T11: 20 | U11: 0 | V11: 0 | W11: 0 | X11: 0 | Y11: 1040 | Z11: 2040
A12: 1506779 | B12: 2018-05-29 | C12: 3 | D12: 11 | E12: Q4 | F12: 2017_18 | G12: Evening | H12: Tokyo | I12: 1 | J12: Store | K12: 1 | L12: 806 | M12: Desktop | N12: Cash | O12: 1 | P12: 1 | Q12: 0 | R12: 8.11 | S12: 15.9 | T12: 20 | U12: 0 | V12: 0 | W12: 0 | X12: 0 | Y12: 162.2 | Z12: 318
A13: 1512392 | B13: 2018-10-06 | C13: 7 | D13: 4 | E13: Q2 | F13: 2018_19 | G13: Weekend | H13: London | I13: 3 | J13: Mail | K13: 1 | L13: 281 | M13: PC Games | N13: Debit | O13: 1 | P13: 1 | Q13: 80 | R13: 294.54 | S13: 889 | T13: 10 | U13: 1 | V13: 889 | W13: 0 | X13: 0 | Y13: 2945.4 | Z13: 8890
A14: 1351706 | B14: 2019-04-11 | C14: 5 | D14: 10 | E14: Q4 | F14: 2018_19 | G14: Evening | H14: New York | I14: 3 | J14: Mail | K14: 1 | L14: 1021 | M14: PC Games | N14: Credit | O14: 1 | P14: 1 | Q14: 80 | R14: 143.26 | S14: 281 | T14: 10 | U14: 0 | V14: 0 | W14: 0 | X14: 0 | Y14: 1432.6 | Z14: 2810
A15: 2537469 | B15: 2018-10-10 | C15: 4 | D15: 4 | E15: Q2 | F15: 2018_19 | G15: Evening | H15: New York | I15: 2 | J15: Online | K15: 1 | L15: 363 | M15: PC Games | N15: Debit | O15: 1 | P15: 1 | Q15: 80 | R15: 321.44 | S15: 699 | T15: 10 | U15: 0 | V15: 0 | W15: 0 | X15: 0 | Y15: 3214.4 | Z15: 6990
A16: 3349085 | B16: 2018-05-10 | C16: 5 | D16: 11 | E16: Q4 | F16: 2017_18 | G16: Day | H16: London | I16: 3 | J16: Mail | K16: 1 | L16: 1580 | M16: Laptop | N16: Credit | O16: 1 | P16: 1 | Q16: 40 | R16: 72.56 | S16: 219 | T16: 10 | U16: 0 | V16: 0 | W16: 0 | X16: 0 | Y16: 725.6 | Z16: 2190
A17: 890996 | B17: 2019-04-18 | C17: 5 | D17: 10 | E17: Q4 | F17: 2018_19 | G17: Evening | H17: Tokyo | I17: 2 | J17: Online | K17: 1 | L17: 1156 | M17: Tablet | N17: Debit | O17: 1 | P17: 1 | Q17: 80 | R17: 530.11 | S17: 1600 | T17: 40 | U17: 0 | V17: 0 | W17: 0 | X17: 0 | Y17: 21204.4 | Z17: 64000
A18: 2383909 | B18: 2017-10-07 | C18: 7 | D18: 4 | E18: Q2 | F18: 2017_18 | G18: Weekend | H18: Tokyo | I18: 1 | J18: Store | K18: 1 | L18: 413 | M18: PC Games | N18: Debit | O18: 1 | P18: 1 | Q18: 15 | R18: 275.46 | S18: 599 | T18: 10 | U18: 0 | V18: 0 | W18: 0 | X18: 0 | Y18: 2754.6 | Z18: 5990
A19: 923101 | B19: 2018-06-13 | C19: 4 | D19: 12 | E19: Q4 | F19: 2017_18 | G19: Day | H19: London | I19: 2 | J19: Online | K19: 1 | L19: 115 | M19: PC Games | N19: Credit | O19: 1 | P19: 1 | Q19: 40 | R19: 82.83 | S19: 249.99 | T19: 10 | U19: 1 | V19: 249.99 | W19: 0 | X19: 0 | Y19: 828.3 | Z19: 2499.9
A20: 929466 | B20: 2017-10-13 | C20: 6 | D20: 4 | E20: Q2 | F20: 2017_18 | G20: Day | H20: Paris | I20: 3 | J20: Mail | K20: 1 | L20: 722 | M20: Phone | N20: Credit | O20: 1 | P20: 1 | Q20: 40 | R20: 75.87 | S20: 229 | T20: 10 | U20: 1 | V20: 229 | W20: 0 | X20: 0 | Y20: 758.7 | Z20: 2290
A21: 1703623 | B21: 2018-05-05 | C21: 7 | D21: 11 | E21: Q4 | F21: 2017_18 | G21: Weekend | H21: Tokyo | I21: 3 | J21: Mail | K21: 1 | L21: 1025 | M21: PC Games | N21: Credit | O21: 1 | P21: 1 | Q21: 40 | R21: 90.55 | S21: 196.9 | T21: 10 | U21: 0 | V21: 0 | W21: 0 | X21: 0 | Y21: 905.5 | Z21: 1969
A22: 1694413 | B22: 2017-10-18 | C22: 4 | D22: 4 | E22: Q2 | F22: 2017_18 | G22: Day | H22: Paris | I22: 1 | J22: Store | K22: 1 | L22: 832 | M22: PC Games | N22: Debit | O22: 1 | P22: 1 | Q22: 0 | R22: 7.9 | S22: 15.5 | T22: 20 | U22: 0 | V22: 0 | W22: 0 | X22: 0 | Y22: 158 | Z22: 310
A23: 1762713 | B23: 2018-05-28 | C23: 2 | D23: 11 | E23: Q4 | F23: 2017_18 | G23: Evening | H23: New York | I23: 2 | J23: Online | K23: 1 | L23: 429 | M23: Sound | N23: Pay Pal | O23: 1 | P23: 1 | Q23: 80 | R23: 275.87 | S23: 599.9 | T23: 20 | U23: 0 | V23: 0 | W23: 0 | X23: 0 | Y23: 5517.4 | Z23: 11998
A24: 2355838 | B24: 2019-05-26 | C24: 1 | D24: 11 | E24: Q4 | F24: 2018_19 | G24: Weekend | H24: New York | I24: 1 | J24: Store | K24: 1 | L24: 1137 | M24: PC Games | N24: Credit | O24: 1 | P24: 1 | Q24: 0 | R24: 144.52 | S24: 436.2 | T24: 20 | U24: 2 | V24: 436.2 | W24: 0 | X24: 0 | Y24: 2890.4 | Z24: 8724
A25: 3372216 | B25: 2018-04-10 | C25: 3 | D25: 10 | E25: Q4 | F25: 2017_18 | G25: Evening | H25: Paris | I25: 1 | J25: Store | K25: 1 | L25: 414 | M25: PC Games | N25: Cash | O25: 1 | P25: 1 | Q25: 15 | R25: 348.58 | S25: 758 | T25: 10 | U25: 0 | V25: 0 | W25: 0 | X25: 0 | Y25: 3485.8 | Z25: 7580
A26: 1738264 | B26: 2017-10-03 | C26: 3 | D26: 4 | E26: Q2 | F26: 2017_18 | G26: Evening | H26: Tokyo | I26: 2 | J26: Online | K26: 1 | L26: 1420 | M26: PC Games | N26: Debit | O26: 1 | P26: 1 | Q26: 80 | R26: 91.51 | S26: 199 | T26: 20 | U26: 0 | V26: 0 | W26: 0 | X26: 0 | Y26: 1830.2 | Z26: 3980
A27: 174371 | B27: 2018-05-01 | C27: 3 | D27: 11 | E27: Q4 | F27: 2017_18 | G27: Evening | H27: London | I27: 2 | J27: Online | K27: 1 | L27: 876 | M27: Desktop | N27: Debit | O27: 1 | P27: 1 | Q27: 40 | R27: 43.06 | S27: 129.95 | T27: 10 | U27: 0 | V27: 0 | W27: 0 | X27: 0 | Y27: 430.6 | Z27: 1299.5
A28: 175545 | B28: 2018-04-21 | C28: 7 | D28: 10 | E28: Q4 | F28: 2017_18 | G28: Weekend | H28: Paris | I28: 3 | J28: Mail | K28: 1 | L28: 1141 | M28: PC Games | N28: Credit | O28: 1 | P28: 1 | Q28: 80 | R28: 144.52 | S28: 436.2 | T28: 10 | U28: 0 | V28: 0 | W28: 0 | X28: 0 | Y28: 1445.2 | Z28: 4362
A29: 1188599 | B29: 2018-05-29 | C29: 3 | D29: 11 | E29: Q4 | F29: 2017_18 | G29: Evening | H29: Paris | I29: 1 | J29: Store | K29: 1 | L29: 1180 | M29: Phone | N29: Credit | O29: 1 | P29: 1 | Q29: 0 | R29: 530.11 | S29: 1600 | T29: 10 | U29: 0 | V29: 0 | W29: 0 | X29: 0 | Y29: 5301.1 | Z29: 16000
A30: 33568 | B30: 2019-06-18 | C30: 3 | D30: 12 | E30: Q4 | F30: 2018_19 | G30: Day | H30: London | I30: 2 | J30: Online | K30: 1 | L30: 92 | M30: Phone | N30: Credit | O30: 1 | P30: 1 | Q30: 40 | R30: 49.69 | S30: 149.99 | T30: 10 | U30: 0 | V30: 0 | W30: 0 | X30: 0 | Y30: 496.9 | Z30: 1499.9
A31: 2701662 | B31: 2019-04-28 | C31: 1 | D31: 10 | E31: Q4 | F31: 2018_19 | G31: Weekend | H31: London | I31: 2 | J31: Online | K31: 1 | L31: 341 | M31: PC Games | N31: Pay Pal | O31: 1 | P31: 1 | Q31: 80 | R31: 444.69 | S31: 967 | T31: 10 | U31: 0 | V31: 0 | W31: 0 | X31: 0 | Y31: 4446.9 | Z31: 9670
A32: 2703115 | B32: 2018-04-21 | C32: 7 | D32: 10 | E32: Q4 | F32: 2017_18 | G32: Weekend | H32: Tokyo | I32: 2 | J32: Online | K32: 1 | L32: 1176 | M32: PC Games | N32: Pay Pal | O32: 1 | P32: 1 | Q32: 80 | R32: 331.32 | S32: 1000 | T32: 10 | U32: 0 | V32: 0 | W32: 0 | X32: 0 | Y32: 3313.2 | Z32: 10000
A33: 778981 | B33: 2019-04-08 | C33: 2 | D33: 10 | E33: Q4 | F33: 2018_19 | G33: Evening | H33: London | I33: 1 | J33: Store | K33: 1 | L33: 1597 | M33: Phone | N33: Credit | O33: 1 | P33: 1 | Q33: 0 | R33: 26.62 | S33: 57.88 | T33: 10 | U33: 0 | V33: 0 | W33: 0 | X33: 0 | Y33: 266.2 | Z33: 578.8
A34: 955073 | B34: 2018-04-16 | C34: 2 | D34: 10 | E34: Q4 | F34: 2017_18 | G34: Evening | H34: Tokyo | I34: 2 | J34: Online | K34: 1 | L34: 386 | M34: PC Games | N34: Debit | O34: 1 | P34: 1 | Q34: 80 | R34: 430.38 | S34: 1299 | T34: 10 | U34: 1 | V34: 1299 | W34: 0 | X34: 0 | Y34: 4303.8 | Z34: 12990
A35: 960492 | B35: 2018-05-21 | C35: 2 | D35: 11 | E35: Q4 | F35: 2017_18 | G35: Evening | H35: London | I35: 2 | J35: Online | K35: 1 | L35: 409 | M35: Phone | N35: Pay Pal | O35: 1 | P35: 1 | Q35: 80 | R35: 166.2 | S35: 326 | T35: 20 | U35: 0 | V35: 0 | W35: 0 | X35: 0 | Y35: 3324 | Z35: 6520
A36: 1276668 | B36: 2019-06-01 | C36: 7 | D36: 12 | E36: Q4 | F36: 2018_19 | G36: Weekend | H36: Tokyo | I36: 2 | J36: Online | K36: 1 | L36: 398 | M36: PC Games | N36: Debit | O36: 1 | P36: 1 | Q36: 80 | R36: 195.24 | S36: 382.95 | T36: 20 | U36: 0 | V36: 0 | W36: 0 | X36: 0 | Y36: 3904.8 | Z36: 7659
A37: 878053 | B37: 2017-10-20 | C37: 6 | D37: 4 | E37: Q2 | F37: 2017_18 | G37: Day | H37: New York | I37: 1 | J37: Store | K37: 1 | L37: 1352 | M37: PC Games | N37: Debit | O37: 1 | P37: 1 | Q37: 0 | R37: 10.57 | S37: 22.99 | T37: 10 | U37: 0 | V37: 0 | W37: 0 | X37: 0 | Y37: 105.7 | Z37: 229.9
A38: 1613356 | B38: 2018-05-06 | C38: 1 | D38: 11 | E38: Q4 | F38: 2017_18 | G38: Weekend | H38: Tokyo | I38: 1 | J38: Store | K38: 1 | L38: 590 | M38: PC Games | N38: Debit | O38: 1 | P38: 1 | Q38: 15 | R38: 459.4 | S38: 999 | T38: 10 | U38: 0 | V38: 0 | W38: 0 | X38: 0 | Y38: 4594 | Z38: 9990
A39: 1612702 | B39: 2017-10-20 | C39: 6 | D39: 4 | E39: Q2 | F39: 2017_18 | G39: Evening | H39: Tokyo | I39: 3 | J39: Mail | K39: 1 | L39: 689 | M39: PC Games | N39: Debit | O39: 1 | P39: 1 | Q39: 40 | R39: 73.12 | S39: 159 | T39: 10 | U39: 0 | V39: 0 | W39: 0 | X39: 0 | Y39: 731.2 | Z39: 1590
A40: 2244070 | B40: 2018-10-17 | C40: 4 | D40: 4 | E40: Q2 | F40: 2018_19 | G40: Day | H40: London | I40: 3 | J40: Mail | K40: 1 | L40: 1428 | M40: Desktop | N40: Credit | O40: 1 | P40: 1 | Q40: 80 | R40: 123.24 | S40: 268 | T40: 10 | U40: 0 | V40: 0 | W40: 0 | X40: 0 | Y40: 1232.4 | Z40: 2680
A41: 3253252 | B41: 2018-10-17 | C41: 4 | D41: 4 | E41: Q2 | F41: 2018_19 | G41: Evening | H41: Paris | I41: 3 | J41: Mail | K41: 1 | L41: 345 | M41: Phone | N41: Credit | O41: 1 | P41: 1 | Q41: 80 | R41: 321.44 | S41: 699 | T41: 10 | U41: 0 | V41: 0 | W41: 0 | X41: 0 | Y41: 3214.4 | Z41: 6990
A42: 48841 | B42: 2018-04-10 | C42: 3 | D42: 10 | E42: Q4 | F42: 2017_18 | G42: Evening | H42: Paris | I42: 1 | J42: Store | K42: 1 | L42: 507 | M42: Drone | N42: Cash | O42: 1 | P42: 1 | Q42: 15 | R42: 119.11 | S42: 259 | T42: 10 | U42: 1 | V42: 259 | W42: 0 | X42: 0 | Y42: 1191.1 | Z42: 2590
A43: 62017 | B43: 2018-04-23 | C43: 2 | D43: 10 | E43: Q4 | F43: 2017_18 | G43: Evening | H43: London | I43: 3 | J43: Mail | K43: 1 | L43: 408 | M43: PC Games | N43: Credit | O43: 1 | P43: 1 | Q43: 80 | R43: 348.58 | S43: 758 | T43: 10 | U43: 0 | V43: 0 | W43: 0 | X43: 0 | Y43: 3485.8 | Z43: 7580
A44: 306521 | B44: 2019-04-20 | C44: 7 | D44: 10 | E44: Q4 | F44: 2018_19 | G44: Weekend | H44: Tokyo | I44: 1 | J44: Store | K44: 1 | L44: 539 | M44: PC Games | N44: Credit | O44: 1 | P44: 1 | Q44: 15 | R44: 760.38 | S44: 2295 | T44: 40 | U44: 0 | V44: 0 | W44: 0 | X44: 0 | Y44: 30415.2 | Z44: 91800
A45: 308231 | B45: 2018-04-26 | C45: 5 | D45: 10 | E45: Q4 | F45: 2017_18 | G45: Evening | H45: Paris | I45: 3 | J45: Mail | K45: 1 | L45: 1650 | M45: PC Games | N45: Credit | O45: 1 | P45: 1 | Q45: 40 | R45: 96.08 | S45: 289.99 | T45: 10 | U45: 0 | V45: 0 | W45: 0 | X45: 0 | Y45: 960.8 | Z45: 2899.9
A46: 10037 | B46: 2018-05-07 | C46: 2 | D46: 11 | E46: Q4 | F46: 2017_18 | G46: Day | H46: Paris | I46: 1 | J46: Store | K46: 1 | L46: 806 | M46: PC Games | N46: Cash | O46: 1 | P46: 1 | Q46: 0 | R46: 8.11 | S46: 15.9 | T46: 20 | U46: 0 | V46: 0 | W46: 0 | X46: 0 | Y46: 162.2 | Z46: 318
A47: 1370185 | B47: 2018-05-28 | C47: 2 | D47: 11 | E47: Q4 | F47: 2017_18 | G47: Evening | H47: London | I47: 1 | J47: Store | K47: 1 | L47: 402 | M47: PC Games | N47: Cash | O47: 1 | P47: 1 | Q47: 15 | R47: 430.38 | S47: 1299 | T47: 10 | U47: 0 | V47: 0 | W47: 0 | X47: 0 | Y47: 4303.8 | Z47: 12990
A48: 1362107 | B48: 2017-10-12 | C48: 5 | D48: 4 | E48: Q2 | F48: 2017_18 | G48: Day | H48: London | I48: 2 | J48: Online | K48: 1 | L48: 959 | M48: PC Games | N48: Credit | O48: 1 | P48: 1 | Q48: 40 | R48: 66.26 | S48: 200 | T48: 10 | U48: 0 | V48: 0 | W48: 0 | X48: 0 | Y48: 662.6 | Z48: 2000
A49: 1460392 | B49: 2017-10-19 | C49: 5 | D49: 4 | E49: Q2 | F49: 2017_18 | G49: Day | H49: Paris | I49: 1 | J49: Store | K49: 1 | L49: 885 | M49: PC Games | N49: Cash | O49: 1 | P49: 1 | Q49: 0 | R49: 49.7 | S49: 150 | T49: 10 | U49: 1 | V49: 150 | W49: 0 | X49: 0 | Y49: 497 | Z49: 1500
A50: 1467825 | B50: 2018-04-21 | C50: 7 | D50: 10 | E50: Q4 | F50: 2017_18 | G50: Weekend | H50: Tokyo | I50: 2 | J50: Online | K50: 1 | L50: 505 | M50: PC Games | N50: Debit | O50: 1 | P50: 1 | Q50: 80 | R50: 205.09 | S50: 619 | T50: 10 | U50: 0 | V50: 0 | W50: 0 | X50: 0 | Y50: 2050.9 | Z50: 6190
A51: 63549 | B51: 2017-10-30 | C51: 2 | D51: 4 | E51: Q2 | F51: 2017_18 | G51: Evening | H51: London | I51: 3 | J51: Mail | K51: 1 | L51: 2491 | M51: PC Games | N51: Debit | O51: 1 | P51: 1 | Q51: 80 | R51: 12.74 | S51: 24.99 | T51: 400 | U51: 0 | V51: 0 | W51: 0 | X51: 0 | Y51: 5096 | Z51: 9996
A52: 74964 | B52: 2019-05-15 | C52: 4 | D52: 11 | E52: Q4 | F52: 2018_19 | G52: Evening | H52: Tokyo | I52: 2 | J52: Online | K52: 1 | L52: 134 | M52: PC Games | N52: Debit | O52: 1 | P52: 1 | Q52: 80 | R52: 160.93 | S52: 349.95 | T52: 10 | U52: 0 | V52: 0 | W52: 0 | X52: 0 | Y52: 1609.3 | Z52: 3499.5
A53: 76882 | B53: 2018-04-03 | C53: 3 | D53: 10 | E53: Q4 | F53: 2017_18 | G53: Day | H53: Paris | I53: 1 | J53: Store | K53: 1 | L53: 3 | M53: PC Games | N53: Debit | O53: 1 | P53: 1 | Q53: 0 | R53: 7.4 | S53: 14.52 | T53: 20 | U53: 1 | V53: 14.52 | W53: 0 | X53: 0 | Y53: 148 | Z53: 290.4
A54: 3016848 | B54: 2017-10-07 | C54: 7 | D54: 4 | E54: Q2 | F54: 2017_18 | G54: Weekend | H54: London | I54: 3 | J54: Mail | K54: 1 | L54: 428 | M54: PC Games | N54: Debit | O54: 1 | P54: 1 | Q54: 80 | R54: 321.05 | S54: 969 | T54: 10 | U54: 0 | V54: 0 | W54: 0 | X54: 0 | Y54: 3210.5 | Z54: 9690
A55: 3156481 | B55: 2018-06-28 | C55: 5 | D55: 12 | E55: Q4 | F55: 2017_18 | G55: Evening | H55: London | I55: 2 | J55: Online | K55: 1 | L55: 952 | M55: PC Games | N55: Debit | O55: 1 | P55: 1 | Q55: 40 | R55: 84.84 | S55: 184.5 | T55: 10 | U55: 1 | V55: 184.5 | W55: 0 | X55: 0 | Y55: 848.4 | Z55: 1845
A56: 3162354 | B56: 2018-10-13 | C56: 7 | D56: 4 | E56: Q2 | F56: 2018_19 | G56: Weekend | H56: London | I56: 3 | J56: Mail | K56: 1 | L56: 1353 | M56: Phone | N56: Debit | O56: 1 | P56: 1 | Q56: 40 | R56: 12.41 | S56: 26.99 | T56: 10 | U56: 1 | V56: 26.99 | W56: 0 | X56: 0 | Y56: 124.1 | Z56: 269.9
A57: 3161078 | B57: 2018-05-22 | C57: 3 | D57: 11 | E57: Q4 | F57: 2017_18 | G57: Evening | H57: Tokyo | I57: 1 | J57: Store | K57: 1 | L57: 406 | M57: PC Games | N57: Credit | O57: 1 | P57: 1 | Q57: 15 | R57: 195.24 | S57: 382.95 | T57: 10 | U57: 0 | V57: 0 | W57: 0 | X57: 0 | Y57: 1952.4 | Z57: 3829.5
A58: 3171845 | B58: 2017-10-09 | C58: 2 | D58: 4 | E58: Q2 | F58: 2017_18 | G58: Evening | H58: London | I58: 2 | J58: Online | K58: 1 | L58: 1484 | M58: Desktop | N58: Credit | O58: 1 | P58: 1 | Q58: 40 | R58: 95.65 | S58: 208 | T58: 10 | U58: 0 | V58: 0 | W58: 0 | X58: 0 | Y58: 956.5 | Z58: 2080
A59: 99373 | B59: 2018-05-19 | C59: 7 | D59: 11 | E59: Q4 | F59: 2017_18 | G59: Weekend | H59: London | I59: 2 | J59: Online | K59: 1 | L59: 956 | M59: PC Games | N59: Credit | O59: 1 | P59: 1 | Q59: 40 | R59: 91.05 | S59: 198 | T59: 10 | U59: 1 | V59: 198 | W59: 0 | X59: 0 | Y59: 910.5 | Z59: 1980
A60: 95174 | B60: 2018-06-07 | C60: 5 | D60: 12 | E60: Q4 | F60: 2017_18 | G60: Evening | H60: Paris | I60: 2 | J60: Online | K60: 1 | L60: 579 | M60: PC Games | N60: Debit | O60: 1 | P60: 1 | Q60: 80 | R60: 116.75 | S60: 229 | T60: 10 | U60: 0 | V60: 0 | W60: 0 | X60: 0 | Y60: 1167.5 | Z60: 2290
A61: 2653839 | B61: 2018-05-16 | C61: 4 | D61: 11 | E61: Q4 | F61: 2017_18 | G61: Evening | H61: New York | I61: 3 | J61: Mail | K61: 1 | L61: 1130 | M61: Drone | N61: Credit | O61: 1 | P61: 1 | Q61: 80 | R61: 146.7 | S61: 319 | T61: 20 | U61: 0 | V61: 0 | W61: 0 | X61: 0 | Y61: 2934 | Z61: 6380
A62: 2664169 | B62: 2018-04-08 | C62: 1 | D62: 10 | E62: Q4 | F62: 2017_18 | G62: Weekend | H62: Paris | I62: 2 | J62: Online | K62: 1 | L62: 953 | M62: PC Games | N62: Credit | O62: 1 | P62: 1 | Q62: 40 | R62: 86.68 | S62: 188.5 | T62: 10 | U62: 0 | V62: 0 | W62: 0 | X62: 0 | Y62: 866.8 | Z62: 1885
A63: 1818058 | B63: 2017-10-04 | C63: 4 | D63: 4 | E63: Q2 | F63: 2017_18 | G63: Evening | H63: Tokyo | I63: 1 | J63: Store | K63: 1 | L63: 762 | M63: PC Games | N63: Cash | O63: 1 | P63: 1 | Q63: 0 | R63: 11.23 | S63: 33.9 | T63: 10 | U63: 0 | V63: 0 | W63: 0 | X63: 0 | Y63: 112.3 | Z63: 339
A64: 2011409 | B64: 2018-06-09 | C64: 7 | D64: 12 | E64: Q4 | F64: 2017_18 | G64: Weekend | H64: London | I64: 1 | J64: Store | K64: 1 | L64: 1086 | M64: PC Games | N64: Debit | O64: 11 | P64: 1 | Q64: 0 | R64: 139.8 | S64: 304 | T64: 9 | U64: 0 | V64: 0 | W64: 0 | X64: 0 | Y64: 1258.2 | Z64: 2736
A65: 2455120 | B65: 2019-05-14 | C65: 3 | D65: 11 | E65: Q4 | F65: 2018_19 | G65: Evening | H65: London | I65: 2 | J65: Online | K65: 1 | L65: 1564 | M65: PC Games | N65: Credit | O65: 11 | P65: 1 | Q65: 40 | R65: 100.06 | S65: 302 | T65: 9 | U65: 0 | V65: 0 | W65: 0 | X65: 0 | Y65: 900.54 | Z65: 2718
A66: 2453442 | B66: 2017-10-16 | C66: 2 | D66: 4 | E66: Q2 | F66: 2017_18 | G66: Evening | H66: Tokyo | I66: 3 | J66: Mail | K66: 1 | L66: 1488 | M66: PC Games | N66: Credit | O66: 11 | P66: 1 | Q66: 80 | R66: 137.96 | S66: 300 | T66: 9 | U66: 0 | V66: 0 | W66: 0 | X66: 0 | Y66: 1241.64 | Z66: 2700
A67: 284541 | B67: 2019-04-30 | C67: 3 | D67: 10 | E67: Q4 | F67: 2018_19 | G67: Day | H67: London | I67: 2 | J67: Online | K67: 1 | L67: 1012 | M67: PC Games | N67: Pay Pal | O67: 11 | P67: 1 | Q67: 40 | R67: 91.05 | S67: 198 | T67: 9 | U67: 0 | V67: 0 | W67: 0 | X67: 0 | Y67: =$T67*R67 -> 819.45 | Z67: =$T67*S67 -> 1782
A68: 288539 | B68: 2017-10-06 | C68: 6 | D68: 4 | E68: Q2 | F68: 2017_18 | G68: Evening | H68: London | I68: 2 | J68: Online | K68: 1 | L68: 547 | M68: Desktop | N68: Debit | O68: 11 | P68: 1 | Q68: 80 | R68: 115.43 | S68: 251 | T68: 18 | U68: 0 | V68: 0 | W68: 1 | X68: 12.55 | Y68: 2077.74 | Z68: 4518
A69: 1147968 | B69: 2018-05-15 | C69: 3 | D69: 11 | E69: Q4 | F69: 2017_18 | G69: Evening | H69: London | I69: 2 | J69: Online | K69: 1 | L69: 1063 | M69: PC Games | N69: Debit | O69: 11 | P69: 1 | Q69: 80 | R69: 155.43 | S69: 338 | T69: 9 | U69: 0 | V69: 0 | W69: 1 | X69: 16.9 | Y69: 1398.87 | Z69: 3042
A70: 2491401 | B70: 2018-10-26 | C70: 6 | D70: 4 | E70: Q2 | F70: 2018_19 | G70: Evening | H70: Paris | I70: 1 | J70: Store | K70: 1 | L70: 680 | M70: Phone | N70: Credit | O70: 11 | P70: 1 | Q70: 0 | R70: 53.34 | S70: 116 | T70: 9 | U70: 0 | V70: 0 | W70: 1 | X70: 5.8 | Y70: 480.06 | Z70: 1044
A71: 2483732 | B71: 2018-04-01 | C71: 1 | D71: 10 | E71: Q4 | F71: 2017_18 | G71: Weekend | H71: New York | I71: 1 | J71: Store | K71: 1 | L71: 1113 | M71: PC Games | N71: Credit | O71: 11 | P71: 1 | Q71: 0 | R71: 144.52 | S71: 436.2 | T71: 9 | U71: 0 | V71: 0 | W71: 2 | X71: 43.62 | Y71: 1300.68 | Z71: 3925.8
A72: 1012675 | B72: 2018-04-13 | C72: 6 | D72: 10 | E72: Q4 | F72: 2017_18 | G72: Evening | H72: New York | I72: 1 | J72: Store | K72: 1 | L72: 730 | M72: PC Games | N72: Credit | O72: 11 | P72: 1 | Q72: 0 | R72: 62.54 | S72: 136 | T72: 9 | U72: 0 | V72: 0 | W72: 1 | X72: 6.8 | Y72: 562.86 | Z72: 1224
A73: 2193090 | B73: 2018-06-05 | C73: 3 | D73: 12 | E73: Q4 | F73: 2017_18 | G73: Evening | H73: Tokyo | I73: 3 | J73: Mail | K73: 1 | L73: 673 | M73: Phone | N73: Credit | O73: 11 | P73: 1 | Q73: 40 | R73: 40.28 | S73: 79 | T73: 9 | U73: 1 | V73: 79 | W73: 3 | X73: 11.85 | Y73: 362.52 | Z73: 711
A74: 2210150 | B74: 2018-10-27 | C74: 7 | D74: 4 | E74: Q2 | F74: 2018_19 | G74: Weekend | H74: New York | I74: 3 | J74: Mail | K74: 1 | L74: 864 | M74: Phone | N74: Credit | O74: 11 | P74: 1 | Q74: 40 | R74: 23.45 | S74: 50.99 | T74: 9 | U74: 0 | V74: 0 | W74: 1 | X74: 2.5495 | Y74: 211.05 | Z74: 458.91
A75: 2450516 | B75: 2018-10-28 | C75: 1 | D75: 4 | E75: Q2 | F75: 2018_19 | G75: Weekend | H75: Paris | I75: 2 | J75: Online | K75: 1 | L75: 1256 | M75: PC Games | N75: Pay Pal | O75: 11 | P75: 1 | Q75: 40 | R75: 10.19 | S75: 19.99 | T75: 9 | U75: 0 | V75: 0 | W75: 0 | X75: 0 | Y75: 91.71 | Z75: 179.91
A76: 2979445 | B76: 2019-05-15 | C76: 4 | D76: 11 | E76: Q4 | F76: 2018_19 | G76: Day | H76: Paris | I76: 3 | J76: Mail | K76: 1 | L76: 1182 | M76: Phone | N76: Credit | O76: 11 | P76: 1 | Q76: 80 | R76: 516.86 | S76: 1560 | T76: 32 | U76: 0 | V76: 0 | W76: 2 | X76: 156 | Y76: 16539.52 | Z76: 49920 | AG76: 26520 | AH76: =T76*S76 -> 49920 | AI76: 22 | AJ76: =AI76+10 -> 32
A77: 2969220 | B77: 2018-04-23 | C77: 2 | D77: 10 | E77: Q4 | F77: 2017_18 | G77: Evening | H77: Tokyo | I77: 1 | J77: Store | K77: 1 | L77: 1143 | M77: Phone | N77: Cash | O77: 12 | P77: 1 | Q77: 0 | R77: 150.84 | S77: 328 | T77: 12 | U77: 0 | V77: 0 | W77: 0 | X77: 0 | Y77: 1810.08 | Z77: 3936
A78: 531480 | B78: 2017-10-11 | C78: 4 | D78: 4 | E78: Q2 | F78: 2017_18 | G78: Day | H78: New York | I78: 1 | J78: Store | K78: 1 | L78: 1330 | M78: PC Games | N78: Credit | O78: 12 | P78: 1 | Q78: 0 | R78: 10.57 | S78: 22.99 | T78: 12 | U78: 0 | V78: 0 | W78: 1 | X78: 2.299 | Y78: 126.84 | Z78: 275.88
A79: 530964 | B79: 2018-04-25 | C79: 4 | D79: 10 | E79: Q4 | F79: 2017_18 | G79: Day | H79: New York | I79: 2 | J79: Online | K79: 1 | L79: 322 | M79: Desktop | N79: Credit | O79: 12 | P79: 1 | Q79: 80 | R79: 169.69 | S79: 369 | T79: 12 | U79: 0 | V79: 0 | W79: 2 | X79: 73.8 | Y79: 2036.28 | Z79: 4428
A80: 660385 | B80: 2019-04-21 | C80: 1 | D80: 10 | E80: Q4 | F80: 2018_19 | G80: Weekend | H80: London | I80: 3 | J80: Mail | K80: 1 | L80: 873 | M80: Desktop | N80: Credit | O80: 12 | P80: 1 | Q80: 40 | R80: 10.69 | S80: 20.96 | T80: 12 | U80: 0 | V80: 0 | W80: 1 | X80: 2.096 | Y80: 128.28 | Z80: 251.52
A81: 1065596 | B81: 2018-04-16 | C81: 2 | D81: 10 | E81: Q4 | F81: 2017_18 | G81: Evening | H81: Paris | I81: 1 | J81: Store | K81: 1 | L81: 929 | M81: PC Games | N81: Credit | O81: 12 | P81: 1 | Q81: 0 | R81: 17.33 | S81: 33.99 | T81: 12 | U81: 0 | V81: 0 | W81: 3 | X81: 10.197 | Y81: 207.96 | Z81: 407.88
A82: 2066101 | B82: 2017-10-29 | C82: 1 | D82: 4 | E82: Q2 | F82: 2017_18 | G82: Weekend | H82: Tokyo | I82: 1 | J82: Store | K82: 1 | L82: 60 | M82: PC Games | N82: Credit | O82: 12 | P82: 1 | Q82: 0 | R82: 79.53 | S82: 156 | T82: 12 | U82: 0 | V82: 0 | W82: 0 | X82: 0 | Y82: 954.36 | Z82: 1872
A83: 1331517 | B83: 2017-10-19 | C83: 5 | D83: 4 | E83: Q2 | F83: 2017_18 | G83: Evening | H83: Tokyo | I83: 3 | J83: Mail | K83: 1 | L83: 114 | M83: Drone | N83: Credit | O83: 12 | P83: 1 | Q83: 40 | R83: 82.83 | S83: 249.99 | T83: 12 | U83: 0 | V83: 0 | W83: 4 | X83: 99.996 | Y83: 993.96 | Z83: 2999.88
A84: 2764476 | B84: 2019-04-05 | C84: 6 | D84: 10 | E84: Q4 | F84: 2018_19 | G84: Evening | H84: Paris | I84: 2 | J84: Online | K84: 1 | L84: 1602 | M84: PC Games | N84: Credit | O84: 12 | P84: 1 | Q84: 40 | R84: 82.77 | S84: 179.99 | T84: 12 | U84: 0 | V84: 0 | W84: 3 | X84: 53.997 | Y84: 993.24 | Z84: 2159.88
A85: 2761791 | B85: 2018-05-23 | C85: 4 | D85: 11 | E85: Q4 | F85: 2017_18 | G85: Evening | H85: New York | I85: 3 | J85: Mail | K85: 1 | L85: 232 | M85: Phone | N85: Credit | O85: 12 | P85: 1 | Q85: 80 | R85: 252.47 | S85: 549 | T85: 12 | U85: 0 | V85: 0 | W85: 2 | X85: 109.8 | Y85: 3029.64 | Z85: 6588
A86: 2906240 | B86: 2019-05-18 | C86: 7 | D86: 11 | E86: Q4 | F86: 2018_19 | G86: Weekend | H86: Paris | I86: 3 | J86: Mail | K86: 1 | L86: 1428 | M86: Phone | N86: Credit | O86: 12 | P86: 1 | Q86: 80 | R86: 123.24 | S86: 268 | T86: 12 | U86: 0 | V86: 0 | W86: 4 | X86: 107.2 | Y86: 1478.88 | Z86: 3216
A87: 2915141 | B87: 2018-05-23 | C87: 4 | D87: 11 | E87: Q4 | F87: 2017_18 | G87: Evening | H87: London | I87: 1 | J87: Store | K87: 1 | L87: 490 | M87: Drone | N87: Debit | O87: 12 | P87: 1 | Q87: 15 | R87: 287.92 | S87: 869 | T87: 12 | U87: 0 | V87: 0 | W87: 0 | X87: 0 | Y87: 3455.04 | Z87: 10428
A88: 1975249 | B88: 2019-06-30 | C88: 1 | D88: 12 | E88: Q4 | F88: 2018_19 | G88: Weekend | H88: London | I88: 2 | J88: Online | K88: 1 | L88: 1446 | M88: PC Games | N88: Debit | O88: 12 | P88: 1 | Q88: 80 | R88: 132.9 | S88: 289 | T88: 12 | U88: 0 | V88: 0 | W88: 3 | X88: 86.7 | Y88: 1594.8 | Z88: 3468
A89: 1991522 | B89: 2017-10-30 | C89: 2 | D89: 4 | E89: Q2 | F89: 2017_18 | G89: Evening | H89: Paris | I89: 3 | J89: Mail | K89: 1 | L89: 1527 | M89: Phone | N89: Credit | O89: 12 | P89: 1 | Q89: 80 | R89: 123.24 | S89: 268 | T89: 12 | U89: 0 | V89: 0 | W89: 2 | X89: 53.6 | Y89: 1478.88 | Z89: 3216
A90: 2712649 | B90: 2018-05-07 | C90: 2 | D90: 11 | E90: Q4 | F90: 2017_18 | G90: Evening | H90: London | I90: 3 | J90: Mail | K90: 1 | L90: 494 | M90: Phone | N90: Credit | O90: 12 | P90: 1 | Q90: 80 | R90: 128.3 | S90: 279 | T90: 12 | U90: 0 | V90: 0 | W90: 4 | X90: 111.6 | Y90: 1539.6 | Z90: 3348
A91: 2727523 | B91: 2018-05-30 | C91: 4 | D91: 11 | E91: Q4 | F91: 2017_18 | G91: Evening | H91: London | I91: 2 | J91: Online | K91: 1 | L91: 847 | M91: PC Games | N91: Debit | O91: 12 | P91: 1 | Q91: 40 | R91: 7.95 | S91: 15.6 | T91: 12 | U91: 0 | V91: 0 | W91: 1 | X91: 1.56 | Y91: 95.4 | Z91: 187.2
A92: 2707772 | B92: 2019-04-04 | C92: 5 | D92: 10 | E92: Q4 | F92: 2018_19 | G92: Evening | H92: London | I92: 3 | J92: Mail | K92: 1 | L92: 1300 | M92: PC Games | N92: Debit | O92: 12 | P92: 1 | Q92: 40 | R92: 43.69 | S92: 95 | T92: 12 | U92: 0 | V92: 0 | W92: 4 | X92: 38 | Y92: 524.28 | Z92: 1140
A93: 2709717 | B93: 2018-04-05 | C93: 5 | D93: 10 | E93: Q4 | F93: 2017_18 | G93: Evening | H93: Paris | I93: 2 | J93: Online | K93: 1 | L93: 71 | M93: Desktop | N93: Pay Pal | O93: 12 | P93: 1 | Q93: 40 | R93: 22.05 | S93: 47.95 | T93: 12 | U93: 0 | V93: 0 | W93: 0 | X93: 0 | Y93: 264.6 | Z93: 575.4
A94: 2717775 | B94: 2018-05-03 | C94: 5 | D94: 11 | E94: Q4 | F94: 2017_18 | G94: Evening | H94: London | I94: 2 | J94: Online | K94: 1 | L94: 1480 | M94: Phone | N94: Credit | O94: 12 | P94: 1 | Q94: 40 | R94: 65.77 | S94: 129 | T94: 12 | U94: 0 | V94: 0 | W94: 0 | X94: 0 | Y94: 789.24 | Z94: 1548
A95: 495758 | B95: 2019-05-19 | C95: 1 | D95: 11 | E95: Q4 | F95: 2018_19 | G95: Weekend | H95: Paris | I95: 1 | J95: Store | K95: 1 | L95: 177 | M95: Phone | N95: Cash | O95: 12 | P95: 1 | Q95: 0 | R95: 29.01 | S95: 56.9 | T95: 12 | U95: 0 | V95: 0 | W95: 0 | X95: 0 | Y95: 348.12 | Z95: 682.8
A96: 500987 | B96: 2019-05-17 | C96: 6 | D96: 11 | E96: Q4 | F96: 2018_19 | G96: Evening | H96: London | I96: 2 | J96: Online | K96: 1 | L96: 983 | M96: PC Games | N96: Credit | O96: 12 | P96: 1 | Q96: 80 | R96: 90.55 | S96: 196.9 | T96: 12 | U96: 0 | V96: 0 | W96: 3 | X96: 59.07 | Y96: 1086.6 | Z96: 2362.8
A97: 804140 | B97: 2019-04-20 | C97: 7 | D97: 10 | E97: Q4 | F97: 2018_19 | G97: Weekend | H97: Paris | I97: 3 | J97: Mail | K97: 1 | L97: 47 | M97: PC Games | N97: Debit | O97: 12 | P97: 1 | Q97: 40 | R97: 76.45 | S97: 149.95 | T97: 12 | U97: 0 | V97: 0 | W97: 2 | X97: 29.99 | Y97: 917.4 | Z97: 1799.4
A98: 807417 | B98: 2019-04-06 | C98: 7 | D98: 10 | E98: Q4 | F98: 2018_19 | G98: Weekend | H98: London | I98: 3 | J98: Mail | K98: 1 | L98: 434 | M98: PC Games | N98: Debit | O98: 12 | P98: 1 | Q98: 80 | R98: 275.46 | S98: 599 | T98: 62 | U98: 0 | V98: 0 | W98: 1 | X98: 59.9 | Y98: 17078.52 | Z98: 37138 | AG98: 28153 | AI98: 52 | AJ98: =AI98+10 -> 62
A99: 452065 | B99: 2018-10-10 | C99: 4 | D99: 4 | E99: Q2 | F99: 2018_19 | G99: Evening | H99: Paris | I99: 1 | J99: Store | K99: 1 | L99: 1164 | M99: PC Games | N99: Debit | O99: 12 | P99: 1 | Q99: 0 | R99: 91.77 | S99: 180 | T99: 12 | U99: 0 | V99: 0 | W99: 2 | X99: 36 | Y99: 1101.24 | Z99: 2160
A100: 451271 | B100: 2018-10-15 | C100: 2 | D100: 4 | E100: Q2 | F100: 2018_19 | G100: Day | H100: Tokyo | I100: 3 | J100: Mail | K100: 1 | L100: 1380 | M100: PC Games | N100: Credit | O100: 12 | P100: 1 | Q100: 40 | R100: 9.66 | S100: 21 | T100: 12 | U100: 0 | V100: 0 | W100: 3 | X100: 6.3 | Y100: 115.92 | Z100: 252
A101: 461047 | B101: 2018-04-12 | C101: 5 | D101: 10 | E101: Q4 | F101: 2017_18 | G101: Evening | H101: London | I101: 2 | J101: Online | K101: 1 | L101: 153 | M101: PC Games | N101: Pay Pal | O101: 12 | P101: 1 | Q101: 80 | R101: 216.12 | S101: 469.97 | T101: 12 | U101: 0 | V101: 0 | W101: 2 | X101: 93.994 | Y101: 2593.44 | Z101: 5639.64
A102: 725707 | B102: 2018-05-08 | C102: 3 | D102: 11 | E102: Q4 | F102: 2017_18 | G102: Evening | H102: Tokyo | I102: 3 | J102: Mail | K102: 1 | L102: 34 | M102: PC Games | N102: Debit | O102: 12 | P102: 1 | Q102: 40 | R102: 48.92 | S102: 95.95 | T102: 12 | U102: 0 | V102: 0 | W102: 2 | X102: 19.19 | Y102: 587.04 | Z102: 1151.4
A103: 1384134 | B103: 2018-05-20 | C103: 1 | D103: 11 | E103: Q4 | F103: 2017_18 | G103: Weekend | H103: Paris | I103: 1 | J103: Store | K103: 1 | L103: 753 | M103: PC Games | N103: Debit | O103: 12 | P103: 1 | Q103: 0 | R103: 5.29 | S103: 11.5 | T103: 12 | U103: 0 | V103: 0 | W103: 2 | X103: 2.3 | Y103: 63.48 | Z103: 138
A104: 2729131 | B104: 2017-10-08 | C104: 1 | D104: 4 | E104: Q2 | F104: 2017_18 | G104: Weekend | H104: New York | I104: 1 | J104: Store | K104: 1 | L104: 1306 | M104: PC Games | N104: Credit | O104: 12 | P104: 1 | Q104: 0 | R104: 31.27 | S104: 68 | T104: 12 | U104: 0 | V104: 0 | W104: 2 | X104: 13.6 | Y104: 375.24 | Z104: 816
A105: 2739129 | B105: 2018-06-11 | C105: 2 | D105: 12 | E105: Q4 | F105: 2017_18 | G105: Day | H105: New York | I105: 3 | J105: Mail | K105: 1 | L105: 672 | M105: PC Games | N105: Credit | O105: 12 | P105: 1 | Q105: 40 | R105: 77.72 | S105: 169 | T105: 12 | U105: 0 | V105: 0 | W105: 4 | X105: 67.6 | Y105: 932.64 | Z105: 2028
A106: 1206460 | B106: 2019-05-19 | C106: 1 | D106: 11 | E106: Q4 | F106: 2018_19 | G106: Weekend | H106: Tokyo | I106: 2 | J106: Online | K106: 1 | L106: 665 | M106: Phone | N106: Pay Pal | O106: 12 | P106: 1 | Q106: 40 | R106: 52 | S106: 102 | T106: 12 | U106: 0 | V106: 0 | W106: 4 | X106: 40.8 | Y106: 624 | Z106: 1224
A107: 1206703 | B107: 2017-10-27 | C107: 6 | D107: 4 | E107: Q2 | F107: 2017_18 | G107: Evening | H107: London | I107: 2 | J107: Online | K107: 1 | L107: 646 | M107: PC Games | N107: Pay Pal | O107: 12 | P107: 1 | Q107: 40 | R107: 72.56 | S107: 219 | T107: 12 | U107: 0 | V107: 0 | W107: 2 | X107: 43.8 | Y107: 870.72 | Z107: 2628
A108: 1217936 | B108: 2018-06-04 | C108: 2 | D108: 12 | E108: Q4 | F108: 2017_18 | G108: Evening | H108: Tokyo | I108: 1 | J108: Store | K108: 1 | L108: 904 | M108: PC Games | N108: Credit | O108: 12 | P108: 1 | Q108: 0 | R108: 38.74 | S108: 75.99 | T108: 12 | U108: 0 | V108: 0 | W108: 1 | X108: 7.599 | Y108: 464.88 | Z108: 911.88
A109: 1216204 | B109: 2018-06-25 | C109: 2 | D109: 12 | E109: Q4 | F109: 2017_18 | G109: Evening | H109: Paris | I109: 1 | J109: Store | K109: 1 | L109: 1196 | M109: Phone | N109: Credit | O109: 12 | P109: 1 | Q109: 0 | R109: 215.15 | S109: 422 | T109: 12 | U109: 0 | V109: 0 | W109: 2 | X109: 84.4 | Y109: 2581.8 | Z109: 5064
A110: 2147558 | B110: 2017-10-27 | C110: 6 | D110: 4 | E110: Q2 | F110: 2017_18 | G110: Evening | H110: London | I110: 3 | J110: Mail | K110: 1 | L110: 1413 | M110: PC Games | N110: Debit | O110: 12 | P110: 1 | Q110: 80 | R110: 137.5 | S110: 299 | T110: 12 | U110: 0 | V110: 0 | W110: 3 | X110: 89.7 | Y110: 1650 | Z110: 3588
A111: 1587597 | B111: 2017-10-15 | C111: 1 | D111: 4 | E111: Q2 | F111: 2017_18 | G111: Weekend | H111: London | I111: 2 | J111: Online | K111: 1 | L111: 16 | M111: PC Games | N111: Pay Pal | O111: 12 | P111: 1 | Q111: 40 | R111: 50.56 | S111: 109.95 | T111: 12 | U111: 0 | V111: 0 | W111: 3 | X111: 32.985 | Y111: 606.72 | Z111: 1319.4
A112: 206859 | B112: 2019-05-14 | C112: 3 | D112: 11 | E112: Q4 | F112: 2018_19 | G112: Evening | H112: Paris | I112: 2 | J112: Online | K112: 1 | L112: 1239 | M112: PC Games | N112: Credit | O112: 12 | P112: 1 | Q112: 40 | R112: 80.55 | S112: 158 | T112: 12 | U112: 0 | V112: 0 | W112: 3 | X112: 47.4 | Y112: 966.6 | Z112: 1896
A113: 842376 | B113: 2018-06-25 | C113: 2 | D113: 12 | E113: Q4 | F113: 2017_18 | G113: Evening | H113: London | I113: 2 | J113: Online | K113: 1 | L113: 1138 | M113: Desktop | N113: Debit | O113: 12 | P113: 1 | Q113: 80 | R113: 180.22 | S113: 391.9 | T113: 12 | U113: 0 | V113: 0 | W113: 0 | X113: 0 | Y113: 2162.64 | Z113: 4702.8
A114: 3146205 | B114: 2019-06-20 | C114: 5 | D114: 12 | E114: Q4 | F114: 2018_19 | G114: Evening | H114: London | I114: 1 | J114: Store | K114: 1 | L114: 310 | M114: Phone | N114: Cash | O114: 12 | P114: 1 | Q114: 15 | R114: 152.44 | S114: 299 | T114: 12 | U114: 0 | V114: 0 | W114: 1 | X114: 29.9 | Y114: 1829.28 | Z114: 3588
A115: 3286088 | B115: 2018-10-05 | C115: 6 | D115: 4 | E115: Q2 | F115: 2018_19 | G115: Evening | H115: London | I115: 3 | J115: Mail | K115: 1 | L115: 737 | M115: PC Games | N115: Credit | O115: 12 | P115: 1 | Q115: 40 | R115: 73.12 | S115: 159 | T115: 12 | U115: 0 | V115: 0 | W115: 1 | X115: 15.9 | Y115: 877.44 | Z115: 1908
A116: 3301432 | B116: 2019-05-07 | C116: 3 | D116: 11 | E116: Q4 | F116: 2018_19 | G116: Evening | H116: Paris | I116: 1 | J116: Store | K116: 1 | L116: 602 | M116: PC Games | N116: Cash | O116: 12 | P116: 1 | Q116: 15 | R116: 459.4 | S116: 999 | T116: 38 | U116: 0 | V116: 0 | W116: 3 | X116: 299.7 | Y116: 17457.2 | Z116: 37962 | AG116: 22977 | AI116: 28 | AJ116: =AI116+10 -> 38
A117: 2789942 | B117: 2018-10-27 | C117: 7 | D117: 4 | E117: Q2 | F117: 2018_19 | G117: Weekend | H117: London | I117: 1 | J117: Store | K117: 1 | L117: 1421 | M117: Phone | N117: Cash | O117: 12 | P117: 1 | Q117: 0 | R117: 133.36 | S117: 290 | T117: 12 | U117: 0 | V117: 0 | W117: 0 | X117: 0 | Y117: 1600.32 | Z117: 3480
A118: 2579682 | B118: 2018-05-27 | C118: 1 | D118: 11 | E118: Q4 | F118: 2017_18 | G118: Weekend | H118: Tokyo | I118: 3 | J118: Mail | K118: 1 | L118: 229 | M118: PC Games | N118: Credit | O118: 12 | P118: 1 | Q118: 80 | R118: 152.9 | S118: 299.9 | T118: 12 | U118: 0 | V118: 0 | W118: 0 | X118: 0 | Y118: 1834.8 | Z118: 3598.8
A119: 2584305 | B119: 2017-10-17 | C119: 3 | D119: 4 | E119: Q2 | F119: 2017_18 | G119: Evening | H119: Tokyo | I119: 1 | J119: Store | K119: 1 | L119: 1485 | M119: PC Games | N119: Credit | O119: 12 | P119: 1 | Q119: 0 | R119: 105.77 | S119: 230 | T119: 12 | U119: 0 | V119: 0 | W119: 3 | X119: 69 | Y119: 1269.24 | Z119: 2760
A120: 270074 | B120: 2018-05-15 | C120: 3 | D120: 11 | E120: Q4 | F120: 2017_18 | G120: Evening | H120: London | I120: 2 | J120: Online | K120: 1 | L120: 1590 | M120: PC Games | N120: Credit | O120: 12 | P120: 1 | Q120: 40 | R120: 7.58 | S120: 22.89 | T120: 12 | U120: 0 | V120: 0 | W120: 0 | X120: 0 | Y120: 90.96 | Z120: 274.68
A121: 372159 | B121: 2018-10-02 | C121: 3 | D121: 4 | E121: Q2 | F121: 2018_19 | G121: Day | H121: Paris | I121: 3 | J121: Mail | K121: 1 | L121: 1537 | M121: Phone | N121: Credit | O121: 12 | P121: 1 | Q121: 80 | R121: 121.93 | S121: 368 | T121: 12 | U121: 0 | V121: 0 | W121: 4 | X121: 147.2 | Y121: 1463.16 | Z121: 4416
A122: 682312 | B122: 2018-05-13 | C122: 1 | D122: 11 | E122: Q4 | F122: 2017_18 | G122: Weekend | H122: Tokyo | I122: 1 | J122: Store | K122: 1 | L122: 709 | M122: Phone | N122: Cash | O122: 12 | P122: 1 | Q122: 0 | R122: 53.34 | S122: 116 | T122: 12 | U122: 0 | V122: 0 | W122: 0 | X122: 0 | Y122: 640.08 | Z122: 1392
A123: 681114 | B123: 2018-05-21 | C123: 2 | D123: 11 | E123: Q4 | F123: 2017_18 | G123: Evening | H123: New York | I123: 2 | J123: Online | K123: 1 | L123: 1094 | M123: PC Games | N123: Pay Pal | O123: 12 | P123: 1 | Q123: 80 | R123: 152.68 | S123: 332 | T123: 12 | U123: 0 | V123: 0 | W123: 2 | X123: 66.4 | Y123: 1832.16 | Z123: 3984
A124: 678919 | B124: 2018-04-12 | C124: 5 | D124: 10 | E124: Q4 | F124: 2017_18 | G124: Evening | H124: Tokyo | I124: 2 | J124: Online | K124: 1 | L124: 1138 | M124: PC Games | N124: Pay Pal | O124: 13 | P124: 1 | Q124: 80 | R124: 180.22 | S124: 391.9 | T124: 13 | U124: 0 | V124: 0 | W124: 4 | X124: 313.52 | Y124: 2342.86 | Z124: 5094.7
A125: 430567 | B125: 2018-05-06 | C125: 1 | D125: 11 | E125: Q4 | F125: 2017_18 | G125: Weekend | H125: London | I125: 3 | J125: Mail | K125: 1 | L125: 246 | M125: PC Games | N125: Credit | O125: 13 | P125: 1 | Q125: 80 | R125: 167.73 | S125: 329 | T125: 13 | U125: 0 | V125: 0 | W125: 4 | X125: 263.2 | Y125: 2180.49 | Z125: 4277
A126: 1024570 | B126: 2018-05-01 | C126: 3 | D126: 11 | E126: Q4 | F126: 2017_18 | G126: Evening | H126: New York | I126: 3 | J126: Mail | K126: 1 | L126: 156 | M126: PC Games | N126: Debit | O126: 13 | P126: 1 | Q126: 80 | R126: 216.12 | S126: 469.97 | T126: 13 | U126: 0 | V126: 0 | W126: 2 | X126: 187.988 | Y126: 2809.56 | Z126: 6109.61
A127: 1269605 | B127: 2017-10-30 | C127: 2 | D127: 4 | E127: Q2 | F127: 2017_18 | G127: Evening | H127: Tokyo | I127: 3 | J127: Mail | K127: 1 | L127: 435 | M127: PC Games | N127: Credit | O127: 13 | P127: 1 | Q127: 80 | R127: 137.63 | S127: 269.95 | T127: 26 | U127: 0 | V127: 0 | W127: 3 | X127: 161.97 | Y127: 3578.38 | Z127: 7018.7
A128: 1652726 | B128: 2019-04-09 | C128: 3 | D128: 10 | E128: Q4 | F128: 2018_19 | G128: Evening | H128: Tokyo | I128: 2 | J128: Online | K128: 1 | L128: 532 | M128: PC Games | N128: Credit | O128: 13 | P128: 1 | Q128: 80 | R128: 119.11 | S128: 259 | T128: 13 | U128: 0 | V128: 0 | W128: 3 | X128: 155.4 | Y128: 1548.43 | Z128: 3367
A129: 1652679 | B129: 2019-04-12 | C129: 6 | D129: 10 | E129: Q4 | F129: 2018_19 | G129: Evening | H129: Tokyo | I129: 3 | J129: Mail | K129: 1 | L129: 583 | M129: PC Games | N129: Credit | O129: 13 | P129: 1 | Q129: 80 | R129: 83.16 | S129: 251 | T129: 13 | U129: 0 | V129: 0 | W129: 3 | X129: 150.6 | Y129: 1081.08 | Z129: 3263
A130: 1664154 | B130: 2017-10-20 | C130: 6 | D130: 4 | E130: Q2 | F130: 2017_18 | G130: Day | H130: London | I130: 1 | J130: Store | K130: 1 | L130: 1130 | M130: Drone | N130: Cash | O130: 13 | P130: 1 | Q130: 0 | R130: 146.7 | S130: 319 | T130: 13 | U130: 0 | V130: 0 | W130: 1 | X130: 63.8 | Y130: 1907.1 | Z130: 4147
A131: 1663522 | B131: 2017-10-17 | C131: 3 | D131: 4 | E131: Q2 | F131: 2017_18 | G131: Evening | H131: London | I131: 3 | J131: Mail | K131: 1 | L131: 956 | M131: Sound | N131: Credit | O131: 13 | P131: 1 | Q131: 80 | R131: 91.05 | S131: 198 | T131: 13 | U131: 1 | V131: 198 | W131: 3 | X131: 118.8 | Y131: =$T131*R131 -> 1183.65 | Z131: =$T131*S131 -> 2574
A132: 1659484 | B132: 2018-10-01 | C132: 2 | D132: 4 | E132: Q2 | F132: 2018_19 | G132: Evening | H132: London | I132: 1 | J132: Store | K132: 1 | L132: 843 | M132: PC Games | N132: Cash | O132: 13 | P132: 1 | Q132: 0 | R132: 13.71 | S132: 26.9 | T132: 13 | U132: 0 | V132: 0 | W132: 1 | X132: 5.38 | Y132: 178.23 | Z132: 349.7
A133: 2618854 | B133: 2018-05-22 | C133: 3 | D133: 11 | E133: Q4 | F133: 2017_18 | G133: Evening | H133: London | I133: 3 | J133: Mail | K133: 1 | L133: 829 | M133: PC Games | N133: Debit | O133: 13 | P133: 1 | Q133: 40 | R133: 13.22 | S133: 39.9 | T133: 13 | U133: 0 | V133: 0 | W133: 3 | X133: 23.94 | Y133: 171.86 | Z133: 518.7
A134: 2602933 | B134: 2018-10-12 | C134: 6 | D134: 4 | E134: Q2 | F134: 2018_19 | G134: Evening | H134: Paris | I134: 1 | J134: Store | K134: 1 | L134: 749 | M134: Drone | N134: Credit | O134: 13 | P134: 1 | Q134: 0 | R134: 7.59 | S134: 16.5 | T134: 13 | U134: 0 | V134: 0 | W134: 3 | X134: 9.9 | Y134: 98.67 | Z134: 214.5
A135: 1105488 | B135: 2018-04-01 | C135: 1 | D135: 10 | E135: Q4 | F135: 2017_18 | G135: Weekend | H135: New York | I135: 3 | J135: Mail | K135: 1 | L135: 1651 | M135: PC Games | N135: Credit | O135: 13 | P135: 1 | Q135: 40 | R135: 73.57 | S135: 159.99 | T135: 13 | U135: 0 | V135: 0 | W135: 0 | X135: 0 | Y135: 956.41 | Z135: 2079.87
A136: 2288032 | B136: 2018-06-28 | C136: 5 | D136: 12 | E136: Q4 | F136: 2017_18 | G136: Evening | H136: Paris | I136: 2 | J136: Online | K136: 1 | L136: 904 | M136: PC Games | N136: Credit | O136: 13 | P136: 1 | Q136: 40 | R136: 38.74 | S136: 75.99 | T136: 13 | U136: 0 | V136: 0 | W136: 1 | X136: 15.198 | Y136: 503.62 | Z136: 987.87
A137: 2323217 | B137: 2018-06-01 | C137: 6 | D137: 12 | E137: Q4 | F137: 2017_18 | G137: Evening | H137: London | I137: 2 | J137: Online | K137: 1 | L137: 1599 | M137: PC Games | N137: Debit | O137: 13 | P137: 1 | Q137: 40 | R137: 26.62 | S137: 57.88 | T137: 13 | U137: 0 | V137: 0 | W137: 2 | X137: 23.152 | Y137: 346.06 | Z137: 752.44
A138: 2325511 | B138: 2019-04-29 | C138: 2 | D138: 10 | E138: Q4 | F138: 2018_19 | G138: Evening | H138: Paris | I138: 2 | J138: Online | K138: 1 | L138: 1301 | M138: PC Games | N138: Pay Pal | O138: 13 | P138: 1 | Q138: 40 | R138: 43.69 | S138: 95 | T138: 13 | U138: 0 | V138: 0 | W138: 3 | X138: 57 | Y138: 567.97 | Z138: 1235
A139: 3089716 | B139: 2019-06-28 | C139: 6 | D139: 12 | E139: Q4 | F139: 2018_19 | G139: Day | H139: Paris | I139: 2 | J139: Online | K139: 1 | L139: 285 | M139: PC Games | N139: Debit | O139: 13 | P139: 1 | Q139: 80 | R139: 167.73 | S139: 329 | T139: 13 | U139: 0 | V139: 0 | W139: 0 | X139: 0 | Y139: 2180.49 | Z139: 4277
A140: 799337 | B140: 2018-04-18 | C140: 4 | D140: 10 | E140: Q4 | F140: 2017_18 | G140: Evening | H140: London | I140: 3 | J140: Mail | K140: 1 | L140: 687 | M140: Desktop | N140: Credit | O140: 13 | P140: 1 | Q140: 40 | R140: 69.25 | S140: 209 | T140: 13 | U140: 0 | V140: 0 | W140: 4 | X140: 167.2 | Y140: 900.25 | Z140: 2717
A141: 612945 | B141: 2017-07-25 | C141: 3 | D141: 1 | E141: Q1 | F141: 2017_18 | G141: Day | H141: Paris | I141: 3 | J141: Mail | K141: 1 | L141: 1655 | M141: PC Games | N141: Debit | O141: 13 | P141: 1 | Q141: 80 | R141: 96.08 | S141: 289.99 | T141: 13 | U141: 0 | V141: 0 | W141: 2 | X141: 115.996 | Y141: 1249.04 | Z141: 3769.87
A142: 2078766 | B142: 2017-09-28 | C142: 5 | D142: 3 | E142: Q1 | F142: 2017_18 | G142: Evening | H142: New York | I142: 3 | J142: Mail | K142: 1 | L142: 1083 | M142: Phone | N142: Credit | O142: 13 | P142: 1 | Q142: 80 | R142: 164.63 | S142: 358 | T142: 13 | U142: 0 | V142: 0 | W142: 3 | X142: 214.8 | Y142: 2140.19 | Z142: 4654
A143: 2099255 | B143: 2017-07-03 | C143: 2 | D143: 1 | E143: Q1 | F143: 2017_18 | G143: Evening | H143: Tokyo | I143: 3 | J143: Mail | K143: 1 | L143: 1236 | M143: PC Games | N143: Debit | O143: 13 | P143: 1 | Q143: 80 | R143: 95.85 | S143: 188 | T143: 13 | U143: 1 | V143: 188 | W143: 2 | X143: 75.2 | Y143: 1246.05 | Z143: 2444
A144: 2835602 | B144: 2017-08-08 | C144: 3 | D144: 2 | E144: Q1 | F144: 2017_18 | G144: Day | H144: Paris | I144: 1 | J144: Store | K144: 1 | L144: 1520 | M144: PC Games | N144: Debit | O144: 13 | P144: 1 | Q144: 0 | R144: 128.76 | S144: 280 | T144: 13 | U144: 0 | V144: 0 | W144: 1 | X144: 56 | Y144: 1673.88 | Z144: 3640
A145: 2834937 | B145: 2017-08-18 | C145: 6 | D145: 2 | E145: Q1 | F145: 2017_18 | G145: Evening | H145: Paris | I145: 1 | J145: Store | K145: 1 | L145: 563 | M145: PC Games | N145: Credit | O145: 13 | P145: 1 | Q145: 15 | R145: 760.38 | S145: 2295 | T145: 13 | U145: 0 | V145: 0 | W145: 1 | X145: 459 | Y145: 9884.94 | Z145: 29835
A146: 559203 | B146: 2017-09-18 | C146: 2 | D146: 3 | E146: Q1 | F146: 2017_18 | G146: Evening | H146: Paris | I146: 1 | J146: Store | K146: 1 | L146: 1576 | M146: Phone | N146: Debit | O146: 13 | P146: 1 | Q146: 0 | R146: 6.62 | S146: 12.99 | T146: 13 | U146: 0 | V146: 0 | W146: 4 | X146: 10.392 | Y146: 86.06 | Z146: 168.87
A147: 846946 | B147: 2017-09-05 | C147: 3 | D147: 3 | E147: Q1 | F147: 2017_18 | G147: Evening | H147: New York | I147: 1 | J147: Store | K147: 1 | L147: 1241 | M147: PC Games | N147: Cash | O147: 13 | P147: 1 | Q147: 0 | R147: 393.64 | S147: 856 | T147: 13 | U147: 0 | V147: 0 | W147: 1 | X147: 171.2 | Y147: 5117.32 | Z147: 11128
A148: 1242604 | B148: 2017-07-09 | C148: 1 | D148: 1 | E148: Q1 | F148: 2017_18 | G148: Weekend | H148: New York | I148: 2 | J148: Online | K148: 1 | L148: 1397 | M148: PC Games | N148: Credit | O148: 13 | P148: 1 | Q148: 40 | R148: 12.41 | S148: 26.99 | T148: 13 | U148: 0 | V148: 0 | W148: 2 | X148: 10.796 | Y148: 161.33 | Z148: 350.87
A149: 2532764 | B149: 2017-07-09 | C149: 1 | D149: 1 | E149: Q1 | F149: 2017_18 | G149: Weekend | H149: Paris | I149: 3 | J149: Mail | K149: 1 | L149: 79 | M149: PC Games | N149: Debit | O149: 13 | P149: 1 | Q149: 40 | R149: 18.65 | S149: 40.55 | T149: 13 | U149: 0 | V149: 0 | W149: 0 | X149: 0 | Y149: 242.45 | Z149: 527.15
A150: 3346368 | B150: 2017-07-09 | C150: 1 | D150: 1 | E150: Q1 | F150: 2017_18 | G150: Weekend | H150: New York | I150: 1 | J150: Store | K150: 1 | L150: 1269 | M150: Phone | N150: Debit | O150: 13 | P150: 1 | Q150: 0 | R150: 25.47 | S150: 49.96 | T150: 13 | U150: 0 | V150: 0 | W150: 0 | X150: 0 | Y150: 331.11 | Z150: 649.48
A151: 2385793 | B151: 2017-09-28 | C151: 5 | D151: 3 | E151: Q1 | F151: 2017_18 | G151: Evening | H151: London | I151: 1 | J151: Store | K151: 1 | L151: 1177 | M151: PC Games | N151: Debit | O151: 13 | P151: 1 | Q151: 0 | R151: 330.99 | S151: 999 | T151: 13 | U151: 0 | V151: 0 | W151: 3 | X151: 599.4 | Y151: 4302.87 | Z151: 12987
A152: 1767345 | B152: 2017-08-03 | C152: 5 | D152: 2 | E152: Q1 | F152: 2017_18 | G152: Day | H152: Paris | I152: 1 | J152: Store | K152: 1 | L152: 1650 | M152: Phone | N152: Credit | O152: 20 | P152: 1 | Q152: 15 | R152: 96.08 | S152: 289.99 | T152: 9 | U152: 0 | V152: 0 | W152: 2 | X152: 28.999 | Y152: 864.72 | Z152: 2609.91
A153: 1935905 | B153: 2017-09-29 | C153: 6 | D153: 3 | E153: Q1 | F153: 2017_18 | G153: Evening | H153: London | I153: 1 | J153: Store | K153: 1 | L153: 405 | M153: Phone | N153: Credit | O153: 20 | P153: 1 | Q153: 15 | R153: 321.44 | S153: 699 | T153: 9 | U153: 0 | V153: 0 | W153: 4 | X153: 139.8 | Y153: 2892.96 | Z153: 6291
A154: 1926395 | B154: 2017-07-29 | C154: 7 | D154: 1 | E154: Q1 | F154: 2017_18 | G154: Weekend | H154: New York | I154: 3 | J154: Mail | K154: 1 | L154: 17 | M154: PC Games | N154: Debit | O154: 20 | P154: 1 | Q154: 40 | R154: 50.56 | S154: 109.95 | T154: 9 | U154: 0 | V154: 0 | W154: 0 | X154: 0 | Y154: 455.04 | Z154: 989.55
A155: 27262 | B155: 2017-09-02 | C155: 7 | D155: 3 | E155: Q1 | F155: 2017_18 | G155: Weekend | H155: Paris | I155: 3 | J155: Mail | K155: 1 | L155: 382 | M155: Phone | N155: Debit | O155: 20 | P155: 1 | Q155: 80 | R155: 195.24 | S155: 382.95 | T155: 9 | U155: 0 | V155: 0 | W155: 3 | X155: 57.4425 | Y155: 1757.16 | Z155: 3446.55
A156: 767617 | B156: 2017-07-13 | C156: 5 | D156: 1 | E156: Q1 | F156: 2017_18 | G156: Day | H156: London | I156: 1 | J156: Store | K156: 1 | L156: 607 | M156: Phone | N156: Cash | O156: 20 | P156: 1 | Q156: 0 | R156: 83.16 | S156: 251 | T156: 9 | U156: 0 | V156: 0 | W156: 1 | X156: 12.55 | Y156: 748.44 | Z156: 2259
A157: 874522 | B157: 2017-07-01 | C157: 7 | D157: 1 | E157: Q1 | F157: 2017_18 | G157: Weekend | H157: New York | I157: 2 | J157: Online | K157: 1 | L157: 1261 | M157: PC Games | N157: Credit | O157: 20 | P157: 1 | Q157: 40 | R157: 18.86 | S157: 36.99 | T157: 18 | U157: 0 | V157: 0 | W157: 3 | X157: 5.5485 | Y157: 339.48 | Z157: 665.82
A158: 1718570 | B158: 2017-07-24 | C158: 2 | D158: 1 | E158: Q1 | F158: 2017_18 | G158: Day | H158: Paris | I158: 1 | J158: Store | K158: 1 | L158: 1260 | M158: Phone | N158: Cash | O158: 20 | P158: 1 | Q158: 0 | R158: 18.86 | S158: 36.99 | T158: 18 | U158: 1 | V158: 36.99 | W158: 1 | X158: 1.8495 | Y158: 339.48 | Z158: 665.82
A159: 5227 | B159: 2017-07-16 | C159: 1 | D159: 1 | E159: Q1 | F159: 2017_18 | G159: Weekend | H159: Paris | I159: 2 | J159: Online | K159: 1 | L159: 1638 | M159: Phone | N159: Pay Pal | O159: 20 | P159: 1 | Q159: 40 | R159: 6.39 | S159: 13.89 | T159: 9 | U159: 1 | V159: 13.89 | W159: 2 | X159: 1.389 | Y159: 57.51 | Z159: 125.01
A160: 1477121 | B160: 2017-07-09 | C160: 1 | D160: 1 | E160: Q1 | F160: 2017_18 | G160: Weekend | H160: London | I160: 2 | J160: Online | K160: 1 | L160: 250 | M160: PC Games | N160: Pay Pal | O160: 20 | P160: 1 | Q160: 80 | R160: 243.27 | S160: 529 | T160: 9 | U160: 0 | V160: 0 | W160: 1 | X160: 26.45 | Y160: 2189.43 | Z160: 4761
A161: 3013143 | B161: 2017-09-18 | C161: 2 | D161: 3 | E161: Q1 | F161: 2017_18 | G161: Evening | H161: New York | I161: 3 | J161: Mail | K161: 1 | L161: 1558 | M161: PC Games | N161: Debit | O161: 20 | P161: 1 | Q161: 80 | R161: 125.9 | S161: 380 | T161: 9 | U161: 0 | V161: 0 | W161: 0 | X161: 0 | Y161: 1133.1 | Z161: 3420
A162: 3161727 | B162: 2017-07-24 | C162: 2 | D162: 1 | E162: Q1 | F162: 2017_18 | G162: Evening | H162: London | I162: 1 | J162: Store | K162: 1 | L162: 178 | M162: PC Games | N162: Cash | O162: 20 | P162: 1 | Q162: 0 | R162: 33.65 | S162: 66 | T162: 18 | U162: 1 | V162: 66 | W162: 2 | X162: 6.6 | Y162: 605.7 | Z162: 1188
A163: 3160021 | B163: 2017-08-11 | C163: 6 | D163: 2 | E163: Q1 | F163: 2017_18 | G163: Evening | H163: Tokyo | I163: 1 | J163: Store | K163: 1 | L163: 386 | M163: Drone | N163: Cash | O163: 20 | P163: 1 | Q163: 15 | R163: 430.38 | S163: 1299 | T163: 9 | U163: 0 | V163: 0 | W163: 2 | X163: 129.9 | Y163: 3873.42 | Z163: 11691
A164: 2958547 | B164: 2017-08-23 | C164: 4 | D164: 2 | E164: Q1 | F164: 2017_18 | G164: Evening | H164: New York | I164: 1 | J164: Store | K164: 1 | L164: 1442 | M164: PC Games | N164: Debit | O164: 20 | P164: 1 | Q164: 0 | R164: 175.27 | S164: 529 | T164: 9 | U164: 1 | V164: 529 | W164: 3 | X164: 79.35 | Y164: 1577.43 | Z164: 4761
A165: 149425 | B165: 2017-08-02 | C165: 4 | D165: 2 | E165: Q1 | F165: 2017_18 | G165: Evening | H165: London | I165: 2 | J165: Online | K165: 1 | L165: 183 | M165: PC Games | N165: Pay Pal | O165: 20 | P165: 1 | Q165: 40 | R165: 50.13 | S165: 109 | T165: 9 | U165: 0 | V165: 0 | W165: 2 | X165: 10.9 | Y165: 451.17 | Z165: 981
A166: 946962 | B166: 2017-09-29 | C166: 6 | D166: 3 | E166: Q1 | F166: 2017_18 | G166: Evening | H166: Tokyo | I166: 2 | J166: Online | K166: 1 | L166: 391 | M166: Phone | N166: Debit | O166: 20 | P166: 1 | Q166: 80 | R166: 321.44 | S166: 699 | T166: 9 | U166: 0 | V166: 0 | W166: 3 | X166: 104.85 | Y166: 2892.96 | Z166: 6291
A167: 2481416 | B167: 2017-09-08 | C167: 6 | D167: 3 | E167: Q1 | F167: 2017_18 | G167: Day | H167: New York | I167: 1 | J167: Store | K167: 1 | L167: 1602 | M167: PC Games | N167: Credit | O167: 20 | P167: 1 | Q167: 0 | R167: 82.77 | S167: 179.99 | T167: 9 | U167: 0 | V167: 0 | W167: 4 | X167: 35.998 | Y167: 744.93 | Z167: 1619.91
A168: 2438769 | B168: 2017-07-26 | C168: 4 | D168: 1 | E168: Q1 | F168: 2017_18 | G168: Evening | H168: Tokyo | I168: 2 | J168: Online | K168: 1 | L168: 1033 | M168: PC Games | N168: Debit | O168: 20 | P168: 1 | Q168: 40 | R168: 88.79 | S168: 268 | T168: 9 | U168: 0 | V168: 0 | W168: 1 | X168: 13.4 | Y168: 799.11 | Z168: 2412
A169: 2976059 | B169: 2017-08-15 | C169: 3 | D169: 2 | E169: Q1 | F169: 2017_18 | G169: Evening | H169: New York | I169: 2 | J169: Online | K169: 1 | L169: 385 | M169: PC Games | N169: Credit | O169: 20 | P169: 1 | Q169: 80 | R169: 166.2 | S169: 326 | T169: 18 | U169: 0 | V169: 0 | W169: 3 | X169: 48.9 | Y169: 2991.6 | Z169: 5868
A170: 2066494 | B170: 2017-07-22 | C170: 7 | D170: 1 | E170: Q1 | F170: 2017_18 | G170: Weekend | H170: Paris | I170: 1 | J170: Store | K170: 1 | L170: 530 | M170: PC Games | N170: Debit | O170: 20 | P170: 1 | Q170: 15 | R170: 205.09 | S170: 619 | T170: 9 | U170: 0 | V170: 0 | W170: 1 | X170: 30.95 | Y170: 1845.81 | Z170: 5571
A171: 2908390 | B171: 2017-08-10 | C171: 5 | D171: 2 | E171: Q1 | F171: 2017_18 | G171: Day | H171: Tokyo | I171: 2 | J171: Online | K171: 1 | L171: 949 | M171: Phone | N171: Pay Pal | O171: 20 | P171: 1 | Q171: 40 | R171: 88.79 | S171: 268 | T171: 9 | U171: 1 | V171: 268 | W171: 0 | X171: 0 | Y171: 799.11 | Z171: 2412
A172: 2930175 | B172: 2017-08-16 | C172: 4 | D172: 2 | E172: Q1 | F172: 2017_18 | G172: Evening | H172: New York | I172: 3 | J172: Mail | K172: 1 | L172: 911 | M172: PC Games | N172: Debit | O172: 20 | P172: 1 | Q172: 40 | R172: 44.1 | S172: 95.9 | T172: 9 | U172: 0 | V172: 0 | W172: 2 | X172: 9.59 | Y172: 396.9 | Z172: 863.1
A173: 1981747 | B173: 2017-08-10 | C173: 5 | D173: 2 | E173: Q1 | F173: 2017_18 | G173: Evening | H173: Tokyo | I173: 2 | J173: Online | K173: 1 | L173: 421 | M173: PC Games | N173: Debit | O173: 20 | P173: 1 | Q173: 80 | R173: 215.68 | S173: 469 | T173: 9 | U173: 0 | V173: 0 | W173: 0 | X173: 0 | Y173: 1941.12 | Z173: 4221
A174: 1981547 | B174: 2017-08-04 | C174: 6 | D174: 2 | E174: Q1 | F174: 2017_18 | G174: Evening | H174: London | I174: 2 | J174: Online | K174: 1 | L174: 337 | M174: PC Games | N174: Debit | O174: 20 | P174: 1 | Q174: 80 | R174: 151.3 | S174: 329 | T174: 9 | U174: 0 | V174: 0 | W174: 1 | X174: 16.45 | Y174: 1361.7 | Z174: 2961
A175: 1136055 | B175: 2017-08-28 | C175: 2 | D175: 2 | E175: Q1 | F175: 2017_18 | G175: Evening | H175: Paris | I175: 2 | J175: Online | K175: 1 | L175: 84 | M175: PC Games | N175: Debit | O175: 20 | P175: 1 | Q175: 40 | R175: 45.98 | S175: 99.99 | T175: 9 | U175: 0 | V175: 0 | W175: 4 | X175: 19.998 | Y175: 413.82 | Z175: 899.91
A176: 1392560 | B176: 2017-09-18 | C176: 2 | D176: 3 | E176: Q1 | F176: 2017_18 | G176: Evening | H176: Paris | I176: 3 | J176: Mail | K176: 1 | L176: 426 | M176: PC Games | N176: Debit | O176: 20 | P176: 1 | Q176: 80 | R176: 254.86 | S176: 499.9 | T176: 9 | U176: 0 | V176: 0 | W176: 0 | X176: 0 | Y176: 2293.74 | Z176: 4499.1
A177: 1874911 | B177: 2017-08-20 | C177: 1 | D177: 2 | E177: Q1 | F177: 2017_18 | G177: Weekend | H177: New York | I177: 2 | J177: Online | K177: 1 | L177: 1139 | M177: PC Games | N177: Debit | O177: 20 | P177: 1 | Q177: 80 | R177: 150.84 | S177: 328 | T177: 18 | U177: 0 | V177: 0 | W177: 3 | X177: 49.2 | Y177: 2715.12 | Z177: 5904
A178: 2739517 | B178: 2017-08-01 | C178: 3 | D178: 2 | E178: Q1 | F178: 2017_18 | G178: Day | H178: New York | I178: 1 | J178: Store | K178: 1 | L178: 652 | M178: PC Games | N178: Cash | O178: 20 | P178: 1 | Q178: 0 | R178: 55.64 | S178: 121 | T178: 9 | U178: 1 | V178: 121 | W178: 4 | X178: 24.2 | Y178: 500.76 | Z178: 1089
A179: 1216126 | B179: 2017-09-20 | C179: 4 | D179: 3 | E179: Q1 | F179: 2017_18 | G179: Evening | H179: London | I179: 3 | J179: Mail | K179: 1 | L179: 1432 | M179: PC Games | N179: Credit | O179: 20 | P179: 1 | Q179: 80 | R179: 137.96 | S179: 300 | T179: 9 | U179: 0 | V179: 0 | W179: 3 | X179: 45 | Y179: 1241.64 | Z179: 2700
A180: 1599744 | B180: 2017-07-01 | C180: 7 | D180: 1 | E180: Q1 | F180: 2017_18 | G180: Weekend | H180: Tokyo | I180: 3 | J180: Mail | K180: 1 | L180: 386 | M180: PC Games | N180: Credit | O180: 20 | P180: 1 | Q180: 80 | R180: 430.38 | S180: 1299 | T180: 9 | U180: 0 | V180: 0 | W180: 2 | X180: 129.9 | Y180: 3873.42 | Z180: 11691
A181: 198753 | B181: 2017-07-24 | C181: 2 | D181: 1 | E181: Q1 | F181: 2017_18 | G181: Day | H181: London | I181: 1 | J181: Store | K181: 1 | L181: 1061 | M181: PC Games | N181: Cash | O181: 20 | P181: 1 | Q181: 0 | R181: 194.82 | S181: 588 | T181: 9 | U181: 0 | V181: 0 | W181: 4 | X181: 117.6 | Y181: 1753.38 | Z181: 5292
A182: 841504 | B182: 2017-09-16 | C182: 7 | D182: 3 | E182: Q1 | F182: 2017_18 | G182: Weekend | H182: Paris | I182: 2 | J182: Online | K182: 1 | L182: 1010 | M182: PC Games | N182: Pay Pal | O182: 20 | P182: 1 | Q182: 40 | R182: 85.95 | S182: 186.9 | T182: 9 | U182: 0 | V182: 0 | W182: 3 | X182: 28.035 | Y182: 773.55 | Z182: 1682.1
A183: 2806526 | B183: 2017-07-02 | C183: 1 | D183: 1 | E183: Q1 | F183: 2017_18 | G183: Weekend | H183: London | I183: 3 | J183: Mail | K183: 1 | L183: 718 | M183: PC Games | N183: Credit | O183: 20 | P183: 1 | Q183: 40 | R183: 73.12 | S183: 159 | T183: 9 | U183: 0 | V183: 0 | W183: 3 | X183: 23.85 | Y183: 658.08 | Z183: 1431
A184: 1888477 | B184: 2017-08-21 | C184: 2 | D184: 2 | E184: Q1 | F184: 2017_18 | G184: Evening | H184: London | I184: 3 | J184: Mail | K184: 1 | L184: 958 | M184: PC Games | N184: Debit | O184: 20 | P184: 1 | Q184: 80 | R184: 59.32 | S184: 129 | T184: 18 | U184: 0 | V184: 0 | W184: 1 | X184: 6.45 | Y184: 1067.76 | Z184: 2322
A185: 1902301 | B185: 2017-07-04 | C185: 3 | D185: 1 | E185: Q1 | F185: 2017_18 | G185: Day | H185: London | I185: 2 | J185: Online | K185: 1 | L185: 387 | M185: Phone | N185: Pay Pal | O185: 20 | P185: 1 | Q185: 80 | R185: 321.44 | S185: 699 | T185: 9 | U185: 0 | V185: 0 | W185: 4 | X185: 139.8 | Y185: 2892.96 | Z185: 6291
A186: 2121045 | B186: 2017-07-29 | C186: 7 | D186: 1 | E186: Q1 | F186: 2017_18 | G186: Weekend | H186: Paris | I186: 3 | J186: Mail | K186: 1 | L186: 996 | M186: PC Games | N186: Debit | O186: 20 | P186: 1 | Q186: 40 | R186: 85.95 | S186: 186.9 | T186: 9 | U186: 0 | V186: 0 | W186: 3 | X186: 28.035 | Y186: 773.55 | Z186: 1682.1
A187: 423300 | B187: 2017-09-29 | C187: 6 | D187: 3 | E187: Q1 | F187: 2017_18 | G187: Evening | H187: London | I187: 3 | J187: Mail | K187: 1 | L187: 1647 | M187: Phone | N187: Credit | O187: 20 | P187: 1 | Q187: 40 | R187: 82.77 | S187: 179.99 | T187: 9 | U187: 0 | V187: 0 | W187: 0 | X187: 0 | Y187: 744.93 | Z187: 1619.91
A188: 1119808 | B188: 2017-07-06 | C188: 5 | D188: 1 | E188: Q1 | F188: 2017_18 | G188: Evening | H188: Paris | I188: 2 | J188: Online | K188: 1 | L188: 379 | M188: Phone | N188: Credit | O188: 20 | P188: 1 | Q188: 80 | R188: 166.2 | S188: 326 | T188: 18 | U188: 0 | V188: 0 | W188: 0 | X188: 0 | Y188: 2991.6 | Z188: 5868
A189: 2320224 | B189: 2017-08-11 | C189: 6 | D189: 2 | E189: Q1 | F189: 2017_18 | G189: Evening | H189: London | I189: 2 | J189: Online | K189: 1 | L189: 2512 | M189: Sound | N189: Debit | O189: 20 | P189: 1 | Q189: 80 | R189: 43.07 | S189: 129.99 | T189: 180 | U189: 0 | V189: 0 | W189: 1 | X189: 6.4995 | Y189: 7752.6 | Z189: 23398.2
A190: 1169479 | B190: 2017-08-13 | C190: 1 | D190: 2 | E190: Q1 | F190: 2017_18 | G190: Weekend | H190: Paris | I190: 3 | J190: Mail | K190: 1 | L190: 260 | M190: PC Games | N190: Debit | O190: 20 | P190: 1 | Q190: 80 | R190: 155.89 | S190: 339 | T190: 9 | U190: 0 | V190: 0 | W190: 3 | X190: 50.85 | Y190: 1403.01 | Z190: 3051
A191: 1457360 | B191: 2017-07-02 | C191: 1 | D191: 1 | E191: Q1 | F191: 2017_18 | G191: Weekend | H191: London | I191: 3 | J191: Mail | K191: 1 | L191: 739 | M191: PC Games | N191: Debit | O191: 20 | P191: 1 | Q191: 40 | R191: 78.19 | S191: 236 | T191: 9 | U191: 0 | V191: 0 | W191: 0 | X191: 0 | Y191: 703.71 | Z191: 2124
A192: 2878990 | B192: 2017-11-28 | C192: 3 | D192: 5 | E192: Q2 | F192: 2017_18 | G192: Evening | H192: New York | I192: 2 | J192: Online | K192: 1 | L192: 591 | M192: Sound | N192: Pay Pal | O192: 20 | P192: 1 | Q192: 40 | R192: 116.75 | S192: 229 | T192: 9 | U192: 1 | V192: 229 | W192: 4 | X192: 45.8 | Y192: 1050.75 | Z192: 2061
A193: 3047220 | B193: 2017-12-19 | C193: 3 | D193: 6 | E193: Q2 | F193: 2017_18 | G193: Evening | H193: Tokyo | I193: 1 | J193: Store | K193: 1 | L193: 1374 | M193: PC Games | N193: Debit | O193: 20 | P193: 1 | Q193: 0 | R193: 8.16 | S193: 16 | T193: 18 | U193: 0 | V193: 0 | W193: 3 | X193: 2.4 | Y193: 146.88 | Z193: 288
A194: 1684246 | B194: 2017-12-06 | C194: 4 | D194: 6 | E194: Q2 | F194: 2017_18 | G194: Evening | H194: Paris | I194: 3 | J194: Mail | K194: 1 | L194: 1138 | M194: PC Games | N194: Debit | O194: 20 | P194: 1 | Q194: 80 | R194: 180.22 | S194: 391.9 | T194: 9 | U194: 0 | V194: 0 | W194: 2 | X194: 39.19 | Y194: 1621.98 | Z194: 3527.1
A195: 1959279 | B195: 2017-12-19 | C195: 3 | D195: 6 | E195: Q2 | F195: 2017_18 | G195: Evening | H195: London | I195: 1 | J195: Store | K195: 1 | L195: 675 | M195: PC Games | N195: Cash | O195: 20 | P195: 1 | Q195: 0 | R195: 72.56 | S195: 219 | T195: 9 | U195: 0 | V195: 0 | W195: 2 | X195: 21.9 | Y195: =$T195*R195 -> 653.04 | Z195: =$T195*S195 -> 1971
A196: 1961907 | B196: 2017-12-06 | C196: 4 | D196: 6 | E196: Q2 | F196: 2017_18 | G196: Evening | H196: Tokyo | I196: 2 | J196: Online | K196: 1 | L196: 448 | M196: Drone | N196: Pay Pal | O196: 21 | P196: 1 | Q196: 80 | R196: 137.6 | S196: 269.9 | T196: 24 | U196: 0 | V196: 0 | W196: 2 | X196: 53.98 | Y196: 3302.4 | Z196: 6477.6
A197: 2864358 | B197: 2017-11-09 | C197: 5 | D197: 5 | E197: Q2 | F197: 2017_18 | G197: Day | H197: London | I197: 3 | J197: Mail | K197: 1 | L197: 15 | M197: PC Games | N197: Debit | O197: 21 | P197: 1 | Q197: 40 | R197: 35.72 | S197: 77.68 | T197: 24 | U197: 1 | V197: 77.68 | W197: 4 | X197: 31.072 | Y197: 857.28 | Z197: 1864.32
A198: 2374301 | B198: 2017-12-27 | C198: 4 | D198: 6 | E198: Q2 | F198: 2017_18 | G198: Evening | H198: New York | I198: 2 | J198: Online | K198: 1 | L198: 368 | M198: PC Games | N198: Debit | O198: 21 | P198: 1 | Q198: 80 | R198: 430.38 | S198: 1299 | T198: 6 | U198: 1 | V198: 1299 | W198: 3 | X198: 389.7 | Y198: 2582.28 | Z198: 7794
A199: 926734 | B199: 2017-12-01 | C199: 6 | D199: 6 | E199: Q2 | F199: 2017_18 | G199: Evening | H199: London | I199: 1 | J199: Store | K199: 1 | L199: 970 | M199: PC Games | N199: Debit | O199: 21 | P199: 1 | Q199: 0 | R199: 91.05 | S199: 198 | T199: 12 | U199: 0 | V199: 0 | W199: 0 | X199: 0 | Y199: 1092.6 | Z199: 2376
A200: 915049 | B200: 2017-11-20 | C200: 2 | D200: 5 | E200: Q2 | F200: 2017_18 | G200: Evening | H200: New York | I200: 2 | J200: Online | K200: 1 | L200: 963 | M200: PC Games | N200: Pay Pal | O200: 21 | P200: 1 | Q200: 80 | R200: 88.79 | S200: 268 | T200: 12 | U200: 0 | V200: 0 | W200: 0 | X200: 0 | Y200: 1065.48 | Z200: 3216
... 2050 more rows

Sheet Calc
A1: PY | B1: CY | C1: City | D1: Division | E1: Weekly Sales | F1: Avg Daily Sales | G1: Return | H1: Return Amt | I1: Customers | J1: Orders | K1: FTE | L1: COGS | M1: Shipping | N1: Pay Pal | O1: Credit | P1: Debit | Q1: Cash | R1: PY Sales | S1: % Change | T1: Move | U1: Black Friday
A2: =Time!$E$30 -> 2017_18 | B2: =Time!$E$29 -> 2018_19 | C2: =List!$I$2 -> London | D2: PC Games | E2: =SUMIFS(Sales!$Z$2:$Z$10811,Sales!$M$2:$M$10811,$D2,Sales!$F$2:$F$10811,$B2,Sales!$H$2:$H$10811,$C2) -> 1349155.91 | F2: =E2/Time!$E$28 -> 3696.317562 | G2: =SUMIFS(Sales!$U$2:$U$10811,Sales!$M$2:$M$10811,$D2,Sales!$F$2:$F$10811,$B2,Sales!$H$2:$H$10811,$C2) -> 29 | H2: =SUMIFS(Sales!$V$2:$V$10811,Sales!$M$2:$M$10811,$D2,Sales!$F$2:$F$10811,$B2,Sales!$H$2:$H$10811,$C2) -> 13216.02 | I2: =COUNTIFS(Sales!$M$2:$M$10811,$D2,Sales!$F$2:$F$10811,$B2,Sales!$H$2:$H$10811,$C2) -> 233 | J2: =SUMIFS(Sales!$T$2:$T$10811,Sales!$M$2:$M$10811,$D2,Sales!$F$2:$F$10811,$B2,Sales!$H$2:$H$10811,$C2) -> 3774 | L2: =SUMIFS(Sales!$Y$2:$Y$10811,Sales!$M$2:$M$10811,$D2,Sales!$F$2:$F$10811,$B2,Sales!$H$2:$H$10811,$C2) -> 541734.22 | M2: =SUMIFS(Sales!$Q$2:$Q$10811,Sales!$M$2:$M$10811,$D2,Sales!$F$2:$F$10811,$B2,Sales!$H$2:$H$10811,$C2) -> 10405 | N2: =SUMIFS(Sales!$Z$2:$Z$10811,Sales!$M$2:$M$10811,$D2,Sales!$F$2:$F$10811,$B2,Sales!$H$2:$H$10811,$C2,Sales!$N$2:$N$10811,N$1) -> 50630.96 | O2: =SUMIFS(Sales!$Z$2:$Z$10811,Sales!$M$2:$M$10811,$D2,Sales!$F$2:$F$10811,$B2,Sales!$H$2:$H$10811,$C2,Sales!$N$2:$N$10811,O$1) -> 475671.26 | P2: =SUMIFS(Sales!$Z$2:$Z$10811,Sales!$M$2:$M$10811,$D2,Sales!$F$2:$F$10811,$B2,Sales!$H$2:$H$10811,$C2,Sales!$N$2:$N$10811,P$1) -> 678606.55 | Q2: =SUMIFS(Sales!$Z$2:$Z$10811,Sales!$M$2:$M$10811,$D2,Sales!$F$2:$F$10811,$B2,Sales!$H$2:$H$10811,$C2,Sales!$N$2:$N$10811,Q$1) -> 144247.14 | R2: =SUMIFS(Sales!$Z$2:$Z$10811,Sales!$M$2:$M$10811,$D2,Sales!$F$2:$F$10811,$A2,Sales!$H$2:$H$10811,$C2) -> 1442603.83 | S2: =(E2-R2)/R2 -> -0.06477725766 | T2: =VLOOKUP(S2,List!$D$2:$E$4,2,1) -> ▼ | U2: =SUMIFS(Sales!$Z$2:$Z$10811,Sales!$M$2:$M$10811,$D43,Sales!$F$2:$F$10811,$B30,Sales!$B$2:$B$10811,List!$G$2,Sales!$H$2:$H$10811,$C43) -> 16120.91
A3: =Time!$E$30 -> 2017_18 | B3: =Time!$E$29 -> 2018_19 | C3: =List!$I$2 -> London | D3: Phone | E3: =SUMIFS(Sales!$Z$2:$Z$10811,Sales!$M$2:$M$10811,$D3,Sales!$F$2:$F$10811,$B3,Sales!$H$2:$H$10811,$C3) -> 829592.78 | F3: =E3/Time!$E$28 -> 2272.856932 | G3: =SUMIFS(Sales!$U$2:$U$10811,Sales!$M$2:$M$10811,$D3,Sales!$F$2:$F$10811,$B3,Sales!$H$2:$H$10811,$C3) -> 19 | H3: =SUMIFS(Sales!$V$2:$V$10811,Sales!$M$2:$M$10811,$D3,Sales!$F$2:$F$10811,$B3,Sales!$H$2:$H$10811,$C3) -> 4984.23 | I3: =COUNTIFS(Sales!$M$2:$M$10811,$D3,Sales!$F$2:$F$10811,$B3,Sales!$H$2:$H$10811,$C3) -> 175 | J3: =SUMIFS(Sales!$T$2:$T$10811,Sales!$M$2:$M$10811,$D3,Sales!$F$2:$F$10811,$B3,Sales!$H$2:$H$10811,$C3) -> 3065 | L3: =SUMIFS(Sales!$Y$2:$Y$10811,Sales!$M$2:$M$10811,$D3,Sales!$F$2:$F$10811,$B3,Sales!$H$2:$H$10811,$C3) -> 353454.76 | M3: =SUMIFS(Sales!$Q$2:$Q$10811,Sales!$M$2:$M$10811,$D3,Sales!$F$2:$F$10811,$B3,Sales!$H$2:$H$10811,$C3) -> 7935 | N3: =SUMIFS(Sales!$Z$2:$Z$10811,Sales!$M$2:$M$10811,$D3,Sales!$F$2:$F$10811,$B3,Sales!$H$2:$H$10811,$C3,Sales!$N$2:$N$10811,N$1) -> 126993.53 | O3: =SUMIFS(Sales!$Z$2:$Z$10811,Sales!$M$2:$M$10811,$D3,Sales!$F$2:$F$10811,$B3,Sales!$H$2:$H$10811,$C3,Sales!$N$2:$N$10811,O$1) -> 243580.1 | P3: =SUMIFS(Sales!$Z$2:$Z$10811,Sales!$M$2:$M$10811,$D3,Sales!$F$2:$F$10811,$B3,Sales!$H$2:$H$10811,$C3,Sales!$N$2:$N$10811,P$1) -> 383714.62 | Q3: =SUMIFS(Sales!$Z$2:$Z$10811,Sales!$M$2:$M$10811,$D3,Sales!$F$2:$F$10811,$B3,Sales!$H$2:$H$10811,$C3,Sales!$N$2:$N$10811,Q$1) -> 75304.53 | R3: =SUMIFS(Sales!$Z$2:$Z$10811,Sales!$M$2:$M$10811,$D3,Sales!$F$2:$F$10811,$A3,Sales!$H$2:$H$10811,$C3) -> 1010932.33 | S3: -0.1793785248 | T3: =VLOOKUP(S3,List!$D$2:$E$4,2,1) -> ▼ | U3: =SUMIFS(Sales!$Z$2:$Z$10811,Sales!$M$2:$M$10811,$D44,Sales!$F$2:$F$10811,$B31,Sales!$B$2:$B$10811,List!$G$2,Sales!$H$2:$H$10811,$C44) -> 15217.87
A4: =Time!$E$30 -> 2017_18 | B4: =Time!$E$29 -> 2018_19 | C4: =List!$I$2 -> London | D4: Laptop | E4: =SUMIFS(Sales!$Z$2:$Z$10811,Sales!$M$2:$M$10811,$D4,Sales!$F$2:$F$10811,$B4,Sales!$H$2:$H$10811,$C4) -> 1201669.64 | F4: =E4/Time!$E$28 -> 3292.245589 | G4: =SUMIFS(Sales!$U$2:$U$10811,Sales!$M$2:$M$10811,$D4,Sales!$F$2:$F$10811,$B4,Sales!$H$2:$H$10811,$C4) -> 20 | H4: =SUMIFS(Sales!$V$2:$V$10811,Sales!$M$2:$M$10811,$D4,Sales!$F$2:$F$10811,$B4,Sales!$H$2:$H$10811,$C4) -> 8948.33 | I4: =COUNTIFS(Sales!$M$2:$M$10811,$D4,Sales!$F$2:$F$10811,$B4,Sales!$H$2:$H$10811,$C4) -> 166 | J4: =SUMIFS(Sales!$T$2:$T$10811,Sales!$M$2:$M$10811,$D4,Sales!$F$2:$F$10811,$B4,Sales!$H$2:$H$10811,$C4) -> 2836 | L4: =SUMIFS(Sales!$Y$2:$Y$10811,Sales!$M$2:$M$10811,$D4,Sales!$F$2:$F$10811,$B4,Sales!$H$2:$H$10811,$C4) -> 474662.48 | M4: =SUMIFS(Sales!$Q$2:$Q$10811,Sales!$M$2:$M$10811,$D4,Sales!$F$2:$F$10811,$B4,Sales!$H$2:$H$10811,$C4) -> 7670 | N4: =SUMIFS(Sales!$Z$2:$Z$10811,Sales!$M$2:$M$10811,$D4,Sales!$F$2:$F$10811,$B4,Sales!$H$2:$H$10811,$C4,Sales!$N$2:$N$10811,N$1) -> 58275.95 | O4: =SUMIFS(Sales!$Z$2:$Z$10811,Sales!$M$2:$M$10811,$D4,Sales!$F$2:$F$10811,$B4,Sales!$H$2:$H$10811,$C4,Sales!$N$2:$N$10811,O$1) -> 615067.72 | P4: =SUMIFS(Sales!$Z$2:$Z$10811,Sales!$M$2:$M$10811,$D4,Sales!$F$2:$F$10811,$B4,Sales!$H$2:$H$10811,$C4,Sales!$N$2:$N$10811,P$1) -> 462481.81 | Q4: =SUMIFS(Sales!$Z$2:$Z$10811,Sales!$M$2:$M$10811,$D4,Sales!$F$2:$F$10811,$B4,Sales!$H$2:$H$10811,$C4,Sales!$N$2:$N$10811,Q$1) -> 65844.16 | R4: =SUMIFS(Sales!$Z$2:$Z$10811,Sales!$M$2:$M$10811,$D4,Sales!$F$2:$F$10811,$A4,Sales!$H$2:$H$10811,$C4) -> 959061.93 | S4: 0.2529635495 | T4: =VLOOKUP(S4,List!$D$2:$E$4,2,1) -> ▲ | U4: =SUMIFS(Sales!$Z$2:$Z$10811,Sales!$M$2:$M$10811,$D45,Sales!$F$2:$F$10811,$B32,Sales!$B$2:$B$10811,List!$G$2,Sales!$H$2:$H$10811,$C45) -> 15121.64
A5: =Time!$E$30 -> 2017_18 | B5: =Time!$E$29 -> 2018_19 | C5: =List!$I$2 -> London | D5: Sound | E5: =SUMIFS(Sales!$Z$2:$Z$10811,Sales!$M$2:$M$10811,$D5,Sales!$F$2:$F$10811,$B5,Sales!$H$2:$H$10811,$C5) -> 911460.62 | F5: =E5/Time!$E$28 -> 2497.152384 | G5: =SUMIFS(Sales!$U$2:$U$10811,Sales!$M$2:$M$10811,$D5,Sales!$F$2:$F$10811,$B5,Sales!$H$2:$H$10811,$C5) -> 26 | H5: =SUMIFS(Sales!$V$2:$V$10811,Sales!$M$2:$M$10811,$D5,Sales!$F$2:$F$10811,$B5,Sales!$H$2:$H$10811,$C5) -> 7354.08 | I5: =COUNTIFS(Sales!$M$2:$M$10811,$D5,Sales!$F$2:$F$10811,$B5,Sales!$H$2:$H$10811,$C5) -> 172 | J5: =SUMIFS(Sales!$T$2:$T$10811,Sales!$M$2:$M$10811,$D5,Sales!$F$2:$F$10811,$B5,Sales!$H$2:$H$10811,$C5) -> 4106 | L5: =SUMIFS(Sales!$Y$2:$Y$10811,Sales!$M$2:$M$10811,$D5,Sales!$F$2:$F$10811,$B5,Sales!$H$2:$H$10811,$C5) -> 363855.73 | M5: =SUMIFS(Sales!$Q$2:$Q$10811,Sales!$M$2:$M$10811,$D5,Sales!$F$2:$F$10811,$B5,Sales!$H$2:$H$10811,$C5) -> 8505 | N5: =SUMIFS(Sales!$Z$2:$Z$10811,Sales!$M$2:$M$10811,$D5,Sales!$F$2:$F$10811,$B5,Sales!$H$2:$H$10811,$C5,Sales!$N$2:$N$10811,N$1) -> 93408.77 | O5: =SUMIFS(Sales!$Z$2:$Z$10811,Sales!$M$2:$M$10811,$D5,Sales!$F$2:$F$10811,$B5,Sales!$H$2:$H$10811,$C5,Sales!$N$2:$N$10811,O$1) -> 304244.06 | P5: =SUMIFS(Sales!$Z$2:$Z$10811,Sales!$M$2:$M$10811,$D5,Sales!$F$2:$F$10811,$B5,Sales!$H$2:$H$10811,$C5,Sales!$N$2:$N$10811,P$1) -> 471235.49 | Q5: =SUMIFS(Sales!$Z$2:$Z$10811,Sales!$M$2:$M$10811,$D5,Sales!$F$2:$F$10811,$B5,Sales!$H$2:$H$10811,$C5,Sales!$N$2:$N$10811,Q$1) -> 42572.3 | R5: =SUMIFS(Sales!$Z$2:$Z$10811,Sales!$M$2:$M$10811,$D5,Sales!$F$2:$F$10811,$A5,Sales!$H$2:$H$10811,$C5) -> 928318.79 | S5: -0.01815989311 | T5: =VLOOKUP(S5,List!$D$2:$E$4,2,1) -> ▼ | U5: =SUMIFS(Sales!$Z$2:$Z$10811,Sales!$M$2:$M$10811,$D46,Sales!$F$2:$F$10811,$B33,Sales!$B$2:$B$10811,List!$G$2,Sales!$H$2:$H$10811,$C46) -> 7548.8
A6: =Time!$E$30 -> 2017_18 | B6: =Time!$E$29 -> 2018_19 | C6: =List!$I$2 -> London | D6: TV | E6: =SUMIFS(Sales!$Z$2:$Z$10811,Sales!$M$2:$M$10811,$D6,Sales!$F$2:$F$10811,$B6,Sales!$H$2:$H$10811,$C6) -> 875985.54 | F6: =E6/Time!$E$28 -> 2399.960384 | G6: =SUMIFS(Sales!$U$2:$U$10811,Sales!$M$2:$M$10811,$D6,Sales!$F$2:$F$10811,$B6,Sales!$H$2:$H$10811,$C6) -> 18 | H6: =SUMIFS(Sales!$V$2:$V$10811,Sales!$M$2:$M$10811,$D6,Sales!$F$2:$F$10811,$B6,Sales!$H$2:$H$10811,$C6) -> 5475.64 | I6: =COUNTIFS(Sales!$M$2:$M$10811,$D6,Sales!$F$2:$F$10811,$B6,Sales!$H$2:$H$10811,$C6) -> 139 | J6: =SUMIFS(Sales!$T$2:$T$10811,Sales!$M$2:$M$10811,$D6,Sales!$F$2:$F$10811,$B6,Sales!$H$2:$H$10811,$C6) -> 3890 | L6: =SUMIFS(Sales!$Y$2:$Y$10811,Sales!$M$2:$M$10811,$D6,Sales!$F$2:$F$10811,$B6,Sales!$H$2:$H$10811,$C6) -> 332066.1 | M6: =SUMIFS(Sales!$Q$2:$Q$10811,Sales!$M$2:$M$10811,$D6,Sales!$F$2:$F$10811,$B6,Sales!$H$2:$H$10811,$C6) -> 6060 | N6: =SUMIFS(Sales!$Z$2:$Z$10811,Sales!$M$2:$M$10811,$D6,Sales!$F$2:$F$10811,$B6,Sales!$H$2:$H$10811,$C6,Sales!$N$2:$N$10811,N$1) -> 96608.97 | O6: =SUMIFS(Sales!$Z$2:$Z$10811,Sales!$M$2:$M$10811,$D6,Sales!$F$2:$F$10811,$B6,Sales!$H$2:$H$10811,$C6,Sales!$N$2:$N$10811,O$1) -> 418242.07 | P6: =SUMIFS(Sales!$Z$2:$Z$10811,Sales!$M$2:$M$10811,$D6,Sales!$F$2:$F$10811,$B6,Sales!$H$2:$H$10811,$C6,Sales!$N$2:$N$10811,P$1) -> 304765.78 | Q6: =SUMIFS(Sales!$Z$2:$Z$10811,Sales!$M$2:$M$10811,$D6,Sales!$F$2:$F$10811,$B6,Sales!$H$2:$H$10811,$C6,Sales!$N$2:$N$10811,Q$1) -> 56368.72 | R6: =SUMIFS(Sales!$Z$2:$Z$10811,Sales!$M$2:$M$10811,$D6,Sales!$F$2:$F$10811,$A6,Sales!$H$2:$H$10811,$C6) -> 907039.8 | S6: -0.03423693205 | T6: =VLOOKUP(S6,List!$D$2:$E$4,2,1) -> ▼ | U6: =SUMIFS(Sales!$Z$2:$Z$10811,Sales!$M$2:$M$10811,$D47,Sales!$F$2:$F$10811,$B34,Sales!$B$2:$B$10811,List!$G$2,Sales!$H$2:$H$10811,$C47) -> 5699.9
A7: =Time!$E$30 -> 2017_18 | B7: =Time!$E$29 -> 2018_19 | C7: =List!$I$2 -> London | D7: Tablet | E7: =SUMIFS(Sales!$Z$2:$Z$10811,Sales!$M$2:$M$10811,$D7,Sales!$F$2:$F$10811,$B7,Sales!$H$2:$H$10811,$C7) -> 745095.01 | F7: =E7/Time!$E$28 -> 2041.356192 | G7: =SUMIFS(Sales!$U$2:$U$10811,Sales!$M$2:$M$10811,$D7,Sales!$F$2:$F$10811,$B7,Sales!$H$2:$H$10811,$C7) -> 16 | H7: =SUMIFS(Sales!$V$2:$V$10811,Sales!$M$2:$M$10811,$D7,Sales!$F$2:$F$10811,$B7,Sales!$H$2:$H$10811,$C7) -> 5284.81 | I7: =COUNTIFS(Sales!$M$2:$M$10811,$D7,Sales!$F$2:$F$10811,$B7,Sales!$H$2:$H$10811,$C7) -> 152 | J7: =SUMIFS(Sales!$T$2:$T$10811,Sales!$M$2:$M$10811,$D7,Sales!$F$2:$F$10811,$B7,Sales!$H$2:$H$10811,$C7) -> 3623 | L7: =SUMIFS(Sales!$Y$2:$Y$10811,Sales!$M$2:$M$10811,$D7,Sales!$F$2:$F$10811,$B7,Sales!$H$2:$H$10811,$C7) -> 310776.19 | M7: =SUMIFS(Sales!$Q$2:$Q$10811,Sales!$M$2:$M$10811,$D7,Sales!$F$2:$F$10811,$B7,Sales!$H$2:$H$10811,$C7) -> 7115 | N7: =SUMIFS(Sales!$Z$2:$Z$10811,Sales!$M$2:$M$10811,$D7,Sales!$F$2:$F$10811,$B7,Sales!$H$2:$H$10811,$C7,Sales!$N$2:$N$10811,N$1) -> 193977.36 | O7: =SUMIFS(Sales!$Z$2:$Z$10811,Sales!$M$2:$M$10811,$D7,Sales!$F$2:$F$10811,$B7,Sales!$H$2:$H$10811,$C7,Sales!$N$2:$N$10811,O$1) -> 283467.55 | P7: =SUMIFS(Sales!$Z$2:$Z$10811,Sales!$M$2:$M$10811,$D7,Sales!$F$2:$F$10811,$B7,Sales!$H$2:$H$10811,$C7,Sales!$N$2:$N$10811,P$1) -> 179226.16 | Q7: =SUMIFS(Sales!$Z$2:$Z$10811,Sales!$M$2:$M$10811,$D7,Sales!$F$2:$F$10811,$B7,Sales!$H$2:$H$10811,$C7,Sales!$N$2:$N$10811,Q$1) -> 88423.94 | R7: =SUMIFS(Sales!$Z$2:$Z$10811,Sales!$M$2:$M$10811,$D7,Sales!$F$2:$F$10811,$A7,Sales!$H$2:$H$10811,$C7) -> 981916.88 | S7: -0.241183215 | T7: =VLOOKUP(S7,List!$D$2:$E$4,2,1) -> ▼ | U7: =SUMIFS(Sales!$Z$2:$Z$10811,Sales!$M$2:$M$10811,$D48,Sales!$F$2:$F$10811,$B35,Sales!$B$2:$B$10811,List!$G$2,Sales!$H$2:$H$10811,$C48) -> 3456
A8: =Time!$E$30 -> 2017_18 | B8: =Time!$E$29 -> 2018_19 | C8: =List!$I$2 -> London | D8: Cameras | E8: =SUMIFS(Sales!$Z$2:$Z$10811,Sales!$M$2:$M$10811,$D8,Sales!$F$2:$F$10811,$B8,Sales!$H$2:$H$10811,$C8) -> 952663.48 | F8: =E8/Time!$E$28 -> 2610.036932 | G8: =SUMIFS(Sales!$U$2:$U$10811,Sales!$M$2:$M$10811,$D8,Sales!$F$2:$F$10811,$B8,Sales!$H$2:$H$10811,$C8) -> 14 | H8: =SUMIFS(Sales!$V$2:$V$10811,Sales!$M$2:$M$10811,$D8,Sales!$F$2:$F$10811,$B8,Sales!$H$2:$H$10811,$C8) -> 3872.73 | I8: =COUNTIFS(Sales!$M$2:$M$10811,$D8,Sales!$F$2:$F$10811,$B8,Sales!$H$2:$H$10811,$C8) -> 120 | J8: =SUMIFS(Sales!$T$2:$T$10811,Sales!$M$2:$M$10811,$D8,Sales!$F$2:$F$10811,$B8,Sales!$H$2:$H$10811,$C8) -> 4717 | L8: =SUMIFS(Sales!$Y$2:$Y$10811,Sales!$M$2:$M$10811,$D8,Sales!$F$2:$F$10811,$B8,Sales!$H$2:$H$10811,$C8) -> 362725.25 | M8: =SUMIFS(Sales!$Q$2:$Q$10811,Sales!$M$2:$M$10811,$D8,Sales!$F$2:$F$10811,$B8,Sales!$H$2:$H$10811,$C8) -> 5255 | N8: =SUMIFS(Sales!$Z$2:$Z$10811,Sales!$M$2:$M$10811,$D8,Sales!$F$2:$F$10811,$B8,Sales!$H$2:$H$10811,$C8,Sales!$N$2:$N$10811,N$1) -> 43358.96 | O8: =SUMIFS(Sales!$Z$2:$Z$10811,Sales!$M$2:$M$10811,$D8,Sales!$F$2:$F$10811,$B8,Sales!$H$2:$H$10811,$C8,Sales!$N$2:$N$10811,O$1) -> 388319.63 | P8: =SUMIFS(Sales!$Z$2:$Z$10811,Sales!$M$2:$M$10811,$D8,Sales!$F$2:$F$10811,$B8,Sales!$H$2:$H$10811,$C8,Sales!$N$2:$N$10811,P$1) -> 473264.43 | Q8: =SUMIFS(Sales!$Z$2:$Z$10811,Sales!$M$2:$M$10811,$D8,Sales!$F$2:$F$10811,$B8,Sales!$H$2:$H$10811,$C8,Sales!$N$2:$N$10811,Q$1) -> 47720.46 | R8: =SUMIFS(Sales!$Z$2:$Z$10811,Sales!$M$2:$M$10811,$D8,Sales!$F$2:$F$10811,$A8,Sales!$H$2:$H$10811,$C8) -> 725152.73 | S8: 0.3137418375 | T8: =VLOOKUP(S8,List!$D$2:$E$4,2,1) -> ▲ | U8: =SUMIFS(Sales!$Z$2:$Z$10811,Sales!$M$2:$M$10811,$D49,Sales!$F$2:$F$10811,$B36,Sales!$B$2:$B$10811,List!$G$2,Sales!$H$2:$H$10811,$C49) -> 2362.8
A9: =Time!$E$30 -> 2017_18 | B9: =Time!$E$29 -> 2018_19 | C9: =List!$I$2 -> London | D9: Desktop | E9: =SUMIFS(Sales!$Z$2:$Z$10811,Sales!$M$2:$M$10811,$D9,Sales!$F$2:$F$10811,$B9,Sales!$H$2:$H$10811,$C9) -> 581148.39 | F9: =E9/Time!$E$28 -> 1592.18737 | G9: =SUMIFS(Sales!$U$2:$U$10811,Sales!$M$2:$M$10811,$D9,Sales!$F$2:$F$10811,$B9,Sales!$H$2:$H$10811,$C9) -> 24 | H9: =SUMIFS(Sales!$V$2:$V$10811,Sales!$M$2:$M$10811,$D9,Sales!$F$2:$F$10811,$B9,Sales!$H$2:$H$10811,$C9) -> 7151.13 | I9: =COUNTIFS(Sales!$M$2:$M$10811,$D9,Sales!$F$2:$F$10811,$B9,Sales!$H$2:$H$10811,$C9) -> 131 | J9: =SUMIFS(Sales!$T$2:$T$10811,Sales!$M$2:$M$10811,$D9,Sales!$F$2:$F$10811,$B9,Sales!$H$2:$H$10811,$C9) -> 2701 | L9: =SUMIFS(Sales!$Y$2:$Y$10811,Sales!$M$2:$M$10811,$D9,Sales!$F$2:$F$10811,$B9,Sales!$H$2:$H$10811,$C9) -> 251355.08 | M9: =SUMIFS(Sales!$Q$2:$Q$10811,Sales!$M$2:$M$10811,$D9,Sales!$F$2:$F$10811,$B9,Sales!$H$2:$H$10811,$C9) -> 5665 | N9: =SUMIFS(Sales!$Z$2:$Z$10811,Sales!$M$2:$M$10811,$D9,Sales!$F$2:$F$10811,$B9,Sales!$H$2:$H$10811,$C9,Sales!$N$2:$N$10811,N$1) -> 21291.08 | O9: =SUMIFS(Sales!$Z$2:$Z$10811,Sales!$M$2:$M$10811,$D9,Sales!$F$2:$F$10811,$B9,Sales!$H$2:$H$10811,$C9,Sales!$N$2:$N$10811,O$1) -> 255211.42 | P9: =SUMIFS(Sales!$Z$2:$Z$10811,Sales!$M$2:$M$10811,$D9,Sales!$F$2:$F$10811,$B9,Sales!$H$2:$H$10811,$C9,Sales!$N$2:$N$10811,P$1) -> 231291.72 | Q9: =SUMIFS(Sales!$Z$2:$Z$10811,Sales!$M$2:$M$10811,$D9,Sales!$F$2:$F$10811,$B9,Sales!$H$2:$H$10811,$C9,Sales!$N$2:$N$10811,Q$1) -> 73354.17 | R9: =SUMIFS(Sales!$Z$2:$Z$10811,Sales!$M$2:$M$10811,$D9,Sales!$F$2:$F$10811,$A9,Sales!$H$2:$H$10811,$C9) -> 617563.53 | S9: -0.05896582008 | T9: =VLOOKUP(S9,List!$D$2:$E$4,2,1) -> ▼ | U9: =SUMIFS(Sales!$Z$2:$Z$10811,Sales!$M$2:$M$10811,$D50,Sales!$F$2:$F$10811,$B37,Sales!$B$2:$B$10811,List!$G$2,Sales!$H$2:$H$10811,$C50) -> 7045.5
A10: =Time!$E$30 -> 2017_18 | B10: =Time!$E$29 -> 2018_19 | C10: =List!$I$2 -> London | D10: Music | E10: =SUMIFS(Sales!$Z$2:$Z$10811,Sales!$M$2:$M$10811,$D10,Sales!$F$2:$F$10811,$B10,Sales!$H$2:$H$10811,$C10) -> 407203.39 | F10: =E10/Time!$E$28 -> 1115.625726 | G10: =SUMIFS(Sales!$U$2:$U$10811,Sales!$M$2:$M$10811,$D10,Sales!$F$2:$F$10811,$B10,Sales!$H$2:$H$10811,$C10) -> 8 | H10: =SUMIFS(Sales!$V$2:$V$10811,Sales!$M$2:$M$10811,$D10,Sales!$F$2:$F$10811,$B10,Sales!$H$2:$H$10811,$C10) -> 2897.45 | I10: =COUNTIFS(Sales!$M$2:$M$10811,$D10,Sales!$F$2:$F$10811,$B10,Sales!$H$2:$H$10811,$C10) -> 85 | J10: =SUMIFS(Sales!$T$2:$T$10811,Sales!$M$2:$M$10811,$D10,Sales!$F$2:$F$10811,$B10,Sales!$H$2:$H$10811,$C10) -> 2631 | L10: =SUMIFS(Sales!$Y$2:$Y$10811,Sales!$M$2:$M$10811,$D10,Sales!$F$2:$F$10811,$B10,Sales!$H$2:$H$10811,$C10) -> 161949.79 | M10: =SUMIFS(Sales!$Q$2:$Q$10811,Sales!$M$2:$M$10811,$D10,Sales!$F$2:$F$10811,$B10,Sales!$H$2:$H$10811,$C10) -> 3310 | N10: =SUMIFS(Sales!$Z$2:$Z$10811,Sales!$M$2:$M$10811,$D10,Sales!$F$2:$F$10811,$B10,Sales!$H$2:$H$10811,$C10,Sales!$N$2:$N$10811,N$1) -> 34328.4 | O10: =SUMIFS(Sales!$Z$2:$Z$10811,Sales!$M$2:$M$10811,$D10,Sales!$F$2:$F$10811,$B10,Sales!$H$2:$H$10811,$C10,Sales!$N$2:$N$10811,O$1) -> 180891.38 | P10: =SUMIFS(Sales!$Z$2:$Z$10811,Sales!$M$2:$M$10811,$D10,Sales!$F$2:$F$10811,$B10,Sales!$H$2:$H$10811,$C10,Sales!$N$2:$N$10811,P$1) -> 107027.21 | Q10: =SUMIFS(Sales!$Z$2:$Z$10811,Sales!$M$2:$M$10811,$D10,Sales!$F$2:$F$10811,$B10,Sales!$H$2:$H$10811,$C10,Sales!$N$2:$N$10811,Q$1) -> 84956.4 | R10: =SUMIFS(Sales!$Z$2:$Z$10811,Sales!$M$2:$M$10811,$D10,Sales!$F$2:$F$10811,$A10,Sales!$H$2:$H$10811,$C10) -> 475195 | S10: -0.1430814929 | T10: =VLOOKUP(S10,List!$D$2:$E$4,2,1) -> ▼ | U10: =SUMIFS(Sales!$Z$2:$Z$10811,Sales!$M$2:$M$10811,$D51,Sales!$F$2:$F$10811,$B38,Sales!$B$2:$B$10811,List!$G$2,Sales!$H$2:$H$10811,$C51) -> 464.94
A11: =Time!$E$30 -> 2017_18 | B11: =Time!$E$29 -> 2018_19 | C11: =List!$I$2 -> London | D11: Drone | E11: =SUMIFS(Sales!$Z$2:$Z$10811,Sales!$M$2:$M$10811,$D11,Sales!$F$2:$F$10811,$B11,Sales!$H$2:$H$10811,$C11) -> 596171.08 | F11: =E11/Time!$E$28 -> 1633.345425 | G11: =SUMIFS(Sales!$U$2:$U$10811,Sales!$M$2:$M$10811,$D11,Sales!$F$2:$F$10811,$B11,Sales!$H$2:$H$10811,$C11) -> 13 | H11: =SUMIFS(Sales!$V$2:$V$10811,Sales!$M$2:$M$10811,$D11,Sales!$F$2:$F$10811,$B11,Sales!$H$2:$H$10811,$C11) -> 3126.42 | I11: =COUNTIFS(Sales!$M$2:$M$10811,$D11,Sales!$F$2:$F$10811,$B11,Sales!$H$2:$H$10811,$C11) -> 69 | J11: =SUMIFS(Sales!$T$2:$T$10811,Sales!$M$2:$M$10811,$D11,Sales!$F$2:$F$10811,$B11,Sales!$H$2:$H$10811,$C11) -> 2165 | L11: =SUMIFS(Sales!$Y$2:$Y$10811,Sales!$M$2:$M$10811,$D11,Sales!$F$2:$F$10811,$B11,Sales!$H$2:$H$10811,$C11) -> 249370.21 | M11: =SUMIFS(Sales!$Q$2:$Q$10811,Sales!$M$2:$M$10811,$D11,Sales!$F$2:$F$10811,$B11,Sales!$H$2:$H$10811,$C11) -> 3545 | N11: =SUMIFS(Sales!$Z$2:$Z$10811,Sales!$M$2:$M$10811,$D11,Sales!$F$2:$F$10811,$B11,Sales!$H$2:$H$10811,$C11,Sales!$N$2:$N$10811,N$1) -> 20279.36 | O11: =SUMIFS(Sales!$Z$2:$Z$10811,Sales!$M$2:$M$10811,$D11,Sales!$F$2:$F$10811,$B11,Sales!$H$2:$H$10811,$C11,Sales!$N$2:$N$10811,O$1) -> 390196.23 | P11: =SUMIFS(Sales!$Z$2:$Z$10811,Sales!$M$2:$M$10811,$D11,Sales!$F$2:$F$10811,$B11,Sales!$H$2:$H$10811,$C11,Sales!$N$2:$N$10811,P$1) -> 108700.65 | Q11: =SUMIFS(Sales!$Z$2:$Z$10811,Sales!$M$2:$M$10811,$D11,Sales!$F$2:$F$10811,$B11,Sales!$H$2:$H$10811,$C11,Sales!$N$2:$N$10811,Q$1) -> 76994.84 | R11: =SUMIFS(Sales!$Z$2:$Z$10811,Sales!$M$2:$M$10811,$D11,Sales!$F$2:$F$10811,$A11,Sales!$H$2:$H$10811,$C11) -> 482541.78 | S11: 0.2354807495 | T11: =VLOOKUP(S11,List!$D$2:$E$4,2,1) -> ▲ | U11: =SUMIFS(Sales!$Z$2:$Z$10811,Sales!$M$2:$M$10811,$D52,Sales!$F$2:$F$10811,$B39,Sales!$B$2:$B$10811,List!$G$2,Sales!$H$2:$H$10811,$C52) -> 13450
B13: Total | E13: =SUM(E2:E12) -> 8450145.84 | F13: 23151.08449 | G13: 187 | H13: 62310.84 | I13: 1442 | J13: 33508 | L13: 3401949.81 | M13: 65465 | N13: 739153.34 | O13: 3554891.42 | P13: 3400314.42 | Q13: 755786.66 | R13: 8530326.6 | S13: =(E13-R13)/R13 -> -0.009399494739 | U13: =SUM(U2:U12) -> 86488.36
A16: PY | B16: Year | C16: City | D16: Product | E16: 1 | F16: 2 | G16: 3 | H16: 4 | I16: 5 | J16: 6 | K16: 7 | L16: 8 | M16: 9 | N16: 10 | O16: 11 | P16: 12
A17: NA | B17: =Time!$E$29 -> 2018_19 | C17: =List!$I$2 -> London | D17: PC Games | E17: =SUMIFS(Sales!$Z$2:$Z$10811,Sales!$M$2:$M$10811,$D17,Sales!$F$2:$F$10811,$B17,Sales!$D$2:$D$10811,E$16,Sales!$H$2:$H$10811,$C17) -> 79567.87 | F17: =SUMIFS(Sales!$Z$2:$Z$10811,Sales!$M$2:$M$10811,$D17,Sales!$F$2:$F$10811,$B17,Sales!$D$2:$D$10811,F$16,Sales!$H$2:$H$10811,$C17) -> 48553.42 | G17: =SUMIFS(Sales!$Z$2:$Z$10811,Sales!$M$2:$M$10811,$D17,Sales!$F$2:$F$10811,$B17,Sales!$D$2:$D$10811,G$16,Sales!$H$2:$H$10811,$C17) -> 168621.05 | H17: =SUMIFS(Sales!$Z$2:$Z$10811,Sales!$M$2:$M$10811,$D17,Sales!$F$2:$F$10811,$B17,Sales!$D$2:$D$10811,H$16,Sales!$H$2:$H$10811,$C17) -> 191587.43 | I17: =SUMIFS(Sales!$Z$2:$Z$10811,Sales!$M$2:$M$10811,$D17,Sales!$F$2:$F$10811,$B17,Sales!$D$2:$D$10811,I$16,Sales!$H$2:$H$10811,$C17) -> 145233 | J17: =SUMIFS(Sales!$Z$2:$Z$10811,Sales!$M$2:$M$10811,$D17,Sales!$F$2:$F$10811,$B17,Sales!$D$2:$D$10811,J$16,Sales!$H$2:$H$10811,$C17) -> 98321.24 | K17: =SUMIFS(Sales!$Z$2:$Z$10811,Sales!$M$2:$M$10811,$D17,Sales!$F$2:$F$10811,$B17,Sales!$D$2:$D$10811,K$16,Sales!$H$2:$H$10811,$C17) -> 110295.93 | L17: =SUMIFS(Sales!$Z$2:$Z$10811,Sales!$M$2:$M$10811,$D17,Sales!$F$2:$F$10811,$B17,Sales!$D$2:$D$10811,L$16,Sales!$H$2:$H$10811,$C17) -> 105399.37 | M17: =SUMIFS(Sales!$Z$2:$Z$10811,Sales!$M$2:$M$10811,$D17,Sales!$F$2:$F$10811,$B17,Sales!$D$2:$D$10811,M$16,Sales!$H$2:$H$10811,$C17) -> 63135.7 | N17: =SUMIFS(Sales!$Z$2:$Z$10811,Sales!$M$2:$M$10811,$D17,Sales!$F$2:$F$10811,$B17,Sales!$D$2:$D$10811,N$16,Sales!$H$2:$H$10811,$C17) -> 160232.1 | O17: =SUMIFS(Sales!$Z$2:$Z$10811,Sales!$M$2:$M$10811,$D17,Sales!$F$2:$F$10811,$B17,Sales!$D$2:$D$10811,O$16,Sales!$H$2:$H$10811,$C17) -> 140321.18 | P17: =SUMIFS(Sales!$Z$2:$Z$10811,Sales!$M$2:$M$10811,$D17,Sales!$F$2:$F$10811,$B17,Sales!$D$2:$D$10811,P$16,Sales!$H$2:$H$10811,$C17) -> 37887.62
A18: NA | B18: =Time!$E$29 -> 2018_19 | C18: =List!$I$2 -> London | D18: Phone | E18: =SUMIFS(Sales!$Z$2:$Z$10811,Sales!$M$2:$M$10811,$D18,Sales!$F$2:$F$10811,$B18,Sales!$D$2:$D$10811,E$16,Sales!$H$2:$H$10811,$C18) -> 89263.01 | F18: =SUMIFS(Sales!$Z$2:$Z$10811,Sales!$M$2:$M$10811,$D18,Sales!$F$2:$F$10811,$B18,Sales!$D$2:$D$10811,F$16,Sales!$H$2:$H$10811,$C18) -> 80178.4 | G18: =SUMIFS(Sales!$Z$2:$Z$10811,Sales!$M$2:$M$10811,$D18,Sales!$F$2:$F$10811,$B18,Sales!$D$2:$D$10811,G$16,Sales!$H$2:$H$10811,$C18) -> 102525.42 | H18: =SUMIFS(Sales!$Z$2:$Z$10811,Sales!$M$2:$M$10811,$D18,Sales!$F$2:$F$10811,$B18,Sales!$D$2:$D$10811,H$16,Sales!$H$2:$H$10811,$C18) -> 99798.48 | I18: =SUMIFS(Sales!$Z$2:$Z$10811,Sales!$M$2:$M$10811,$D18,Sales!$F$2:$F$10811,$B18,Sales!$D$2:$D$10811,I$16,Sales!$H$2:$H$10811,$C18) -> 59188.27 | J18: =SUMIFS(Sales!$Z$2:$Z$10811,Sales!$M$2:$M$10811,$D18,Sales!$F$2:$F$10811,$B18,Sales!$D$2:$D$10811,J$16,Sales!$H$2:$H$10811,$C18) -> 65101.5 | K18: =SUMIFS(Sales!$Z$2:$Z$10811,Sales!$M$2:$M$10811,$D18,Sales!$F$2:$F$10811,$B18,Sales!$D$2:$D$10811,K$16,Sales!$H$2:$H$10811,$C18) -> 8705.9 | L18: =SUMIFS(Sales!$Z$2:$Z$10811,Sales!$M$2:$M$10811,$D18,Sales!$F$2:$F$10811,$B18,Sales!$D$2:$D$10811,L$16,Sales!$H$2:$H$10811,$C18) -> 32942.84 | M18: =SUMIFS(Sales!$Z$2:$Z$10811,Sales!$M$2:$M$10811,$D18,Sales!$F$2:$F$10811,$B18,Sales!$D$2:$D$10811,M$16,Sales!$H$2:$H$10811,$C18) -> 50685.54 | N18: =SUMIFS(Sales!$Z$2:$Z$10811,Sales!$M$2:$M$10811,$D18,Sales!$F$2:$F$10811,$B18,Sales!$D$2:$D$10811,N$16,Sales!$H$2:$H$10811,$C18) -> 95059.71 | O18: =SUMIFS(Sales!$Z$2:$Z$10811,Sales!$M$2:$M$10811,$D18,Sales!$F$2:$F$10811,$B18,Sales!$D$2:$D$10811,O$16,Sales!$H$2:$H$10811,$C18) -> 93297.96 | P18: =SUMIFS(Sales!$Z$2:$Z$10811,Sales!$M$2:$M$10811,$D18,Sales!$F$2:$F$10811,$B18,Sales!$D$2:$D$10811,P$16,Sales!$H$2:$H$10811,$C18) -> 52845.75
A19: NA | B19: =Time!$E$29 -> 2018_19 | C19: =List!$I$2 -> London | D19: Laptop | E19: =SUMIFS(Sales!$Z$2:$Z$10811,Sales!$M$2:$M$10811,$D19,Sales!$F$2:$F$10811,$B19,Sales!$D$2:$D$10811,E$16,Sales!$H$2:$H$10811,$C19) -> 180439.1 | F19: =SUMIFS(Sales!$Z$2:$Z$10811,Sales!$M$2:$M$10811,$D19,Sales!$F$2:$F$10811,$B19,Sales!$D$2:$D$10811,F$16,Sales!$H$2:$H$10811,$C19) -> 124312.3 | G19: =SUMIFS(Sales!$Z$2:$Z$10811,Sales!$M$2:$M$10811,$D19,Sales!$F$2:$F$10811,$B19,Sales!$D$2:$D$10811,G$16,Sales!$H$2:$H$10811,$C19) -> 87273.7 | H19: =SUMIFS(Sales!$Z$2:$Z$10811,Sales!$M$2:$M$10811,$D19,Sales!$F$2:$F$10811,$B19,Sales!$D$2:$D$10811,H$16,Sales!$H$2:$H$10811,$C19) -> 61815.06 | I19: =SUMIFS(Sales!$Z$2:$Z$10811,Sales!$M$2:$M$10811,$D19,Sales!$F$2:$F$10811,$B19,Sales!$D$2:$D$10811,I$16,Sales!$H$2:$H$10811,$C19) -> 126654.92 | J19: =SUMIFS(Sales!$Z$2:$Z$10811,Sales!$M$2:$M$10811,$D19,Sales!$F$2:$F$10811,$B19,Sales!$D$2:$D$10811,J$16,Sales!$H$2:$H$10811,$C19) -> 41306.1 | K19: =SUMIFS(Sales!$Z$2:$Z$10811,Sales!$M$2:$M$10811,$D19,Sales!$F$2:$F$10811,$B19,Sales!$D$2:$D$10811,K$16,Sales!$H$2:$H$10811,$C19) -> 199122.83 | L19: =SUMIFS(Sales!$Z$2:$Z$10811,Sales!$M$2:$M$10811,$D19,Sales!$F$2:$F$10811,$B19,Sales!$D$2:$D$10811,L$16,Sales!$H$2:$H$10811,$C19) -> 89596.88 | M19: =SUMIFS(Sales!$Z$2:$Z$10811,Sales!$M$2:$M$10811,$D19,Sales!$F$2:$F$10811,$B19,Sales!$D$2:$D$10811,M$16,Sales!$H$2:$H$10811,$C19) -> 43419.41 | N19: =SUMIFS(Sales!$Z$2:$Z$10811,Sales!$M$2:$M$10811,$D19,Sales!$F$2:$F$10811,$B19,Sales!$D$2:$D$10811,N$16,Sales!$H$2:$H$10811,$C19) -> 159875.7 | O19: =SUMIFS(Sales!$Z$2:$Z$10811,Sales!$M$2:$M$10811,$D19,Sales!$F$2:$F$10811,$B19,Sales!$D$2:$D$10811,O$16,Sales!$H$2:$H$10811,$C19) -> 21222.32 | P19: =SUMIFS(Sales!$Z$2:$Z$10811,Sales!$M$2:$M$10811,$D19,Sales!$F$2:$F$10811,$B19,Sales!$D$2:$D$10811,P$16,Sales!$H$2:$H$10811,$C19) -> 66631.32
A20: NA | B20: =Time!$E$29 -> 2018_19 | C20: =List!$I$2 -> London | D20: Sound | E20: =SUMIFS(Sales!$Z$2:$Z$10811,Sales!$M$2:$M$10811,$D20,Sales!$F$2:$F$10811,$B20,Sales!$D$2:$D$10811,E$16,Sales!$H$2:$H$10811,$C20) -> 60507.4 | F20: =SUMIFS(Sales!$Z$2:$Z$10811,Sales!$M$2:$M$10811,$D20,Sales!$F$2:$F$10811,$B20,Sales!$D$2:$D$10811,F$16,Sales!$H$2:$H$10811,$C20) -> 199896.72 | G20: =SUMIFS(Sales!$Z$2:$Z$10811,Sales!$M$2:$M$10811,$D20,Sales!$F$2:$F$10811,$B20,Sales!$D$2:$D$10811,G$16,Sales!$H$2:$H$10811,$C20) -> 87424.2 | H20: =SUMIFS(Sales!$Z$2:$Z$10811,Sales!$M$2:$M$10811,$D20,Sales!$F$2:$F$10811,$B20,Sales!$D$2:$D$10811,H$16,Sales!$H$2:$H$10811,$C20) -> 159388.88 | I20: =SUMIFS(Sales!$Z$2:$Z$10811,Sales!$M$2:$M$10811,$D20,Sales!$F$2:$F$10811,$B20,Sales!$D$2:$D$10811,I$16,Sales!$H$2:$H$10811,$C20) -> 26732.2 | J20: =SUMIFS(Sales!$Z$2:$Z$10811,Sales!$M$2:$M$10811,$D20,Sales!$F$2:$F$10811,$B20,Sales!$D$2:$D$10811,J$16,Sales!$H$2:$H$10811,$C20) -> 55125.58 | K20: =SUMIFS(Sales!$Z$2:$Z$10811,Sales!$M$2:$M$10811,$D20,Sales!$F$2:$F$10811,$B20,Sales!$D$2:$D$10811,K$16,Sales!$H$2:$H$10811,$C20) -> 63041.31 | L20: =SUMIFS(Sales!$Z$2:$Z$10811,Sales!$M$2:$M$10811,$D20,Sales!$F$2:$F$10811,$B20,Sales!$D$2:$D$10811,L$16,Sales!$H$2:$H$10811,$C20) -> 35820 | M20: =SUMIFS(Sales!$Z$2:$Z$10811,Sales!$M$2:$M$10811,$D20,Sales!$F$2:$F$10811,$B20,Sales!$D$2:$D$10811,M$16,Sales!$H$2:$H$10811,$C20) -> 100192.1 | N20: =SUMIFS(Sales!$Z$2:$Z$10811,Sales!$M$2:$M$10811,$D20,Sales!$F$2:$F$10811,$B20,Sales!$D$2:$D$10811,N$16,Sales!$H$2:$H$10811,$C20) -> 57884.46 | O20: =SUMIFS(Sales!$Z$2:$Z$10811,Sales!$M$2:$M$10811,$D20,Sales!$F$2:$F$10811,$B20,Sales!$D$2:$D$10811,O$16,Sales!$H$2:$H$10811,$C20) -> 33177.12 | P20: =SUMIFS(Sales!$Z$2:$Z$10811,Sales!$M$2:$M$10811,$D20,Sales!$F$2:$F$10811,$B20,Sales!$D$2:$D$10811,P$16,Sales!$H$2:$H$10811,$C20) -> 32270.65
A21: NA | B21: =Time!$E$29 -> 2018_19 | C21: =List!$I$2 -> London | D21: TV | E21: =SUMIFS(Sales!$Z$2:$Z$10811,Sales!$M$2:$M$10811,$D21,Sales!$F$2:$F$10811,$B21,Sales!$D$2:$D$10811,E$16,Sales!$H$2:$H$10811,$C21) -> 146823.78 | F21: =SUMIFS(Sales!$Z$2:$Z$10811,Sales!$M$2:$M$10811,$D21,Sales!$F$2:$F$10811,$B21,Sales!$D$2:$D$10811,F$16,Sales!$H$2:$H$10811,$C21) -> 144183.73 | G21: =SUMIFS(Sales!$Z$2:$Z$10811,Sales!$M$2:$M$10811,$D21,Sales!$F$2:$F$10811,$B21,Sales!$D$2:$D$10811,G$16,Sales!$H$2:$H$10811,$C21) -> 30899.14 | H21: =SUMIFS(Sales!$Z$2:$Z$10811,Sales!$M$2:$M$10811,$D21,Sales!$F$2:$F$10811,$B21,Sales!$D$2:$D$10811,H$16,Sales!$H$2:$H$10811,$C21) -> 33560.1 | I21: =SUMIFS(Sales!$Z$2:$Z$10811,Sales!$M$2:$M$10811,$D21,Sales!$F$2:$F$10811,$B21,Sales!$D$2:$D$10811,I$16,Sales!$H$2:$H$10811,$C21) -> 213536.76 | J21: =SUMIFS(Sales!$Z$2:$Z$10811,Sales!$M$2:$M$10811,$D21,Sales!$F$2:$F$10811,$B21,Sales!$D$2:$D$10811,J$16,Sales!$H$2:$H$10811,$C21) -> 103527.59 | K21: =SUMIFS(Sales!$Z$2:$Z$10811,Sales!$M$2:$M$10811,$D21,Sales!$F$2:$F$10811,$B21,Sales!$D$2:$D$10811,K$16,Sales!$H$2:$H$10811,$C21) -> 20873.8 | L21: =SUMIFS(Sales!$Z$2:$Z$10811,Sales!$M$2:$M$10811,$D21,Sales!$F$2:$F$10811,$B21,Sales!$D$2:$D$10811,L$16,Sales!$H$2:$H$10811,$C21) -> 87603.46 | M21: =SUMIFS(Sales!$Z$2:$Z$10811,Sales!$M$2:$M$10811,$D21,Sales!$F$2:$F$10811,$B21,Sales!$D$2:$D$10811,M$16,Sales!$H$2:$H$10811,$C21) -> 12846.58 | N21: =SUMIFS(Sales!$Z$2:$Z$10811,Sales!$M$2:$M$10811,$D21,Sales!$F$2:$F$10811,$B21,Sales!$D$2:$D$10811,N$16,Sales!$H$2:$H$10811,$C21) -> 21142.42 | O21: =SUMIFS(Sales!$Z$2:$Z$10811,Sales!$M$2:$M$10811,$D21,Sales!$F$2:$F$10811,$B21,Sales!$D$2:$D$10811,O$16,Sales!$H$2:$H$10811,$C21) -> 11389.2 | P21: =SUMIFS(Sales!$Z$2:$Z$10811,Sales!$M$2:$M$10811,$D21,Sales!$F$2:$F$10811,$B21,Sales!$D$2:$D$10811,P$16,Sales!$H$2:$H$10811,$C21) -> 49598.98
A22: NA | B22: =Time!$E$29 -> 2018_19 | C22: =List!$I$2 -> London | D22: Tablet | E22: =SUMIFS(Sales!$Z$2:$Z$10811,Sales!$M$2:$M$10811,$D22,Sales!$F$2:$F$10811,$B22,Sales!$D$2:$D$10811,E$16,Sales!$H$2:$H$10811,$C22) -> 83962.58 | F22: =SUMIFS(Sales!$Z$2:$Z$10811,Sales!$M$2:$M$10811,$D22,Sales!$F$2:$F$10811,$B22,Sales!$D$2:$D$10811,F$16,Sales!$H$2:$H$10811,$C22) -> 27023.76 | G22: =SUMIFS(Sales!$Z$2:$Z$10811,Sales!$M$2:$M$10811,$D22,Sales!$F$2:$F$10811,$B22,Sales!$D$2:$D$10811,G$16,Sales!$H$2:$H$10811,$C22) -> 32102.65 | H22: =SUMIFS(Sales!$Z$2:$Z$10811,Sales!$M$2:$M$10811,$D22,Sales!$F$2:$F$10811,$B22,Sales!$D$2:$D$10811,H$16,Sales!$H$2:$H$10811,$C22) -> 182513.85 | I22: =SUMIFS(Sales!$Z$2:$Z$10811,Sales!$M$2:$M$10811,$D22,Sales!$F$2:$F$10811,$B22,Sales!$D$2:$D$10811,I$16,Sales!$H$2:$H$10811,$C22) -> 42579.98 | J22: =SUMIFS(Sales!$Z$2:$Z$10811,Sales!$M$2:$M$10811,$D22,Sales!$F$2:$F$10811,$B22,Sales!$D$2:$D$10811,J$16,Sales!$H$2:$H$10811,$C22) -> 114878.45 | K22: =SUMIFS(Sales!$Z$2:$Z$10811,Sales!$M$2:$M$10811,$D22,Sales!$F$2:$F$10811,$B22,Sales!$D$2:$D$10811,K$16,Sales!$H$2:$H$10811,$C22) -> 46982.02 | L22: =SUMIFS(Sales!$Z$2:$Z$10811,Sales!$M$2:$M$10811,$D22,Sales!$F$2:$F$10811,$B22,Sales!$D$2:$D$10811,L$16,Sales!$H$2:$H$10811,$C22) -> 23944.04 | M22: =SUMIFS(Sales!$Z$2:$Z$10811,Sales!$M$2:$M$10811,$D22,Sales!$F$2:$F$10811,$B22,Sales!$D$2:$D$10811,M$16,Sales!$H$2:$H$10811,$C22) -> 21086.87 | N22: =SUMIFS(Sales!$Z$2:$Z$10811,Sales!$M$2:$M$10811,$D22,Sales!$F$2:$F$10811,$B22,Sales!$D$2:$D$10811,N$16,Sales!$H$2:$H$10811,$C22) -> 41308.3 | O22: =SUMIFS(Sales!$Z$2:$Z$10811,Sales!$M$2:$M$10811,$D22,Sales!$F$2:$F$10811,$B22,Sales!$D$2:$D$10811,O$16,Sales!$H$2:$H$10811,$C22) -> 110233.63 | P22: =SUMIFS(Sales!$Z$2:$Z$10811,Sales!$M$2:$M$10811,$D22,Sales!$F$2:$F$10811,$B22,Sales!$D$2:$D$10811,P$16,Sales!$H$2:$H$10811,$C22) -> 18478.88
A23: NA | B23: =Time!$E$29 -> 2018_19 | C23: =List!$I$2 -> London | D23: Cameras | E23: =SUMIFS(Sales!$Z$2:$Z$10811,Sales!$M$2:$M$10811,$D23,Sales!$F$2:$F$10811,$B23,Sales!$D$2:$D$10811,E$16,Sales!$H$2:$H$10811,$C23) -> 128086.1 | F23: =SUMIFS(Sales!$Z$2:$Z$10811,Sales!$M$2:$M$10811,$D23,Sales!$F$2:$F$10811,$B23,Sales!$D$2:$D$10811,F$16,Sales!$H$2:$H$10811,$C23) -> 127589.07 | G23: =SUMIFS(Sales!$Z$2:$Z$10811,Sales!$M$2:$M$10811,$D23,Sales!$F$2:$F$10811,$B23,Sales!$D$2:$D$10811,G$16,Sales!$H$2:$H$10811,$C23) -> 56786.88 | H23: =SUMIFS(Sales!$Z$2:$Z$10811,Sales!$M$2:$M$10811,$D23,Sales!$F$2:$F$10811,$B23,Sales!$D$2:$D$10811,H$16,Sales!$H$2:$H$10811,$C23) -> 37636.66 | I23: =SUMIFS(Sales!$Z$2:$Z$10811,Sales!$M$2:$M$10811,$D23,Sales!$F$2:$F$10811,$B23,Sales!$D$2:$D$10811,I$16,Sales!$H$2:$H$10811,$C23) -> 57638.22 | J23: =SUMIFS(Sales!$Z$2:$Z$10811,Sales!$M$2:$M$10811,$D23,Sales!$F$2:$F$10811,$B23,Sales!$D$2:$D$10811,J$16,Sales!$H$2:$H$10811,$C23) -> 123960.47 | K23: =SUMIFS(Sales!$Z$2:$Z$10811,Sales!$M$2:$M$10811,$D23,Sales!$F$2:$F$10811,$B23,Sales!$D$2:$D$10811,K$16,Sales!$H$2:$H$10811,$C23) -> 16405.99 | L23: =SUMIFS(Sales!$Z$2:$Z$10811,Sales!$M$2:$M$10811,$D23,Sales!$F$2:$F$10811,$B23,Sales!$D$2:$D$10811,L$16,Sales!$H$2:$H$10811,$C23) -> 19431.72 | M23: =SUMIFS(Sales!$Z$2:$Z$10811,Sales!$M$2:$M$10811,$D23,Sales!$F$2:$F$10811,$B23,Sales!$D$2:$D$10811,M$16,Sales!$H$2:$H$10811,$C23) -> 31498.87 | N23: =SUMIFS(Sales!$Z$2:$Z$10811,Sales!$M$2:$M$10811,$D23,Sales!$F$2:$F$10811,$B23,Sales!$D$2:$D$10811,N$16,Sales!$H$2:$H$10811,$C23) -> 189279.1 | O23: =SUMIFS(Sales!$Z$2:$Z$10811,Sales!$M$2:$M$10811,$D23,Sales!$F$2:$F$10811,$B23,Sales!$D$2:$D$10811,O$16,Sales!$H$2:$H$10811,$C23) -> 108200.74 | P23: =SUMIFS(Sales!$Z$2:$Z$10811,Sales!$M$2:$M$10811,$D23,Sales!$F$2:$F$10811,$B23,Sales!$D$2:$D$10811,P$16,Sales!$H$2:$H$10811,$C23) -> 56149.66
A24: NA | B24: =Time!$E$29 -> 2018_19 | C24: =List!$I$2 -> London | D24: Desktop | E24: =SUMIFS(Sales!$Z$2:$Z$10811,Sales!$M$2:$M$10811,$D24,Sales!$F$2:$F$10811,$B24,Sales!$D$2:$D$10811,E$16,Sales!$H$2:$H$10811,$C24) -> 45966 | F24: =SUMIFS(Sales!$Z$2:$Z$10811,Sales!$M$2:$M$10811,$D24,Sales!$F$2:$F$10811,$B24,Sales!$D$2:$D$10811,F$16,Sales!$H$2:$H$10811,$C24) -> 54897.6 | G24: =SUMIFS(Sales!$Z$2:$Z$10811,Sales!$M$2:$M$10811,$D24,Sales!$F$2:$F$10811,$B24,Sales!$D$2:$D$10811,G$16,Sales!$H$2:$H$10811,$C24) -> 25380.36 | H24: =SUMIFS(Sales!$Z$2:$Z$10811,Sales!$M$2:$M$10811,$D24,Sales!$F$2:$F$10811,$B24,Sales!$D$2:$D$10811,H$16,Sales!$H$2:$H$10811,$C24) -> 19278.94 | I24: =SUMIFS(Sales!$Z$2:$Z$10811,Sales!$M$2:$M$10811,$D24,Sales!$F$2:$F$10811,$B24,Sales!$D$2:$D$10811,I$16,Sales!$H$2:$H$10811,$C24) -> 90066.41 | J24: =SUMIFS(Sales!$Z$2:$Z$10811,Sales!$M$2:$M$10811,$D24,Sales!$F$2:$F$10811,$B24,Sales!$D$2:$D$10811,J$16,Sales!$H$2:$H$10811,$C24) -> 32091.9 | K24: =SUMIFS(Sales!$Z$2:$Z$10811,Sales!$M$2:$M$10811,$D24,Sales!$F$2:$F$10811,$B24,Sales!$D$2:$D$10811,K$16,Sales!$H$2:$H$10811,$C24) -> 42340.4 | L24: =SUMIFS(Sales!$Z$2:$Z$10811,Sales!$M$2:$M$10811,$D24,Sales!$F$2:$F$10811,$B24,Sales!$D$2:$D$10811,L$16,Sales!$H$2:$H$10811,$C24) -> 31950.45 | M24: =SUMIFS(Sales!$Z$2:$Z$10811,Sales!$M$2:$M$10811,$D24,Sales!$F$2:$F$10811,$B24,Sales!$D$2:$D$10811,M$16,Sales!$H$2:$H$10811,$C24) -> 96750.8 | N24: =SUMIFS(Sales!$Z$2:$Z$10811,Sales!$M$2:$M$10811,$D24,Sales!$F$2:$F$10811,$B24,Sales!$D$2:$D$10811,N$16,Sales!$H$2:$H$10811,$C24) -> 55633.55 | O24: =SUMIFS(Sales!$Z$2:$Z$10811,Sales!$M$2:$M$10811,$D24,Sales!$F$2:$F$10811,$B24,Sales!$D$2:$D$10811,O$16,Sales!$H$2:$H$10811,$C24) -> 52302.5 | P24: =SUMIFS(Sales!$Z$2:$Z$10811,Sales!$M$2:$M$10811,$D24,Sales!$F$2:$F$10811,$B24,Sales!$D$2:$D$10811,P$16,Sales!$H$2:$H$10811,$C24) -> 34489.48
A25: NA | B25: =Time!$E$29 -> 2018_19 | C25: =List!$I$2 -> London | D25: Music | E25: =SUMIFS(Sales!$Z$2:$Z$10811,Sales!$M$2:$M$10811,$D25,Sales!$F$2:$F$10811,$B25,Sales!$D$2:$D$10811,E$16,Sales!$H$2:$H$10811,$C25) -> 23720.86 | F25: =SUMIFS(Sales!$Z$2:$Z$10811,Sales!$M$2:$M$10811,$D25,Sales!$F$2:$F$10811,$B25,Sales!$D$2:$D$10811,F$16,Sales!$H$2:$H$10811,$C25) -> 31876.92 | G25: =SUMIFS(Sales!$Z$2:$Z$10811,Sales!$M$2:$M$10811,$D25,Sales!$F$2:$F$10811,$B25,Sales!$D$2:$D$10811,G$16,Sales!$H$2:$H$10811,$C25) -> 19044 | H25: =SUMIFS(Sales!$Z$2:$Z$10811,Sales!$M$2:$M$10811,$D25,Sales!$F$2:$F$10811,$B25,Sales!$D$2:$D$10811,H$16,Sales!$H$2:$H$10811,$C25) -> 43376.4 | I25: =SUMIFS(Sales!$Z$2:$Z$10811,Sales!$M$2:$M$10811,$D25,Sales!$F$2:$F$10811,$B25,Sales!$D$2:$D$10811,I$16,Sales!$H$2:$H$10811,$C25) -> 75703.89 | J25: =SUMIFS(Sales!$Z$2:$Z$10811,Sales!$M$2:$M$10811,$D25,Sales!$F$2:$F$10811,$B25,Sales!$D$2:$D$10811,J$16,Sales!$H$2:$H$10811,$C25) -> 28859.44 | K25: =SUMIFS(Sales!$Z$2:$Z$10811,Sales!$M$2:$M$10811,$D25,Sales!$F$2:$F$10811,$B25,Sales!$D$2:$D$10811,K$16,Sales!$H$2:$H$10811,$C25) -> 17720.4 | L25: =SUMIFS(Sales!$Z$2:$Z$10811,Sales!$M$2:$M$10811,$D25,Sales!$F$2:$F$10811,$B25,Sales!$D$2:$D$10811,L$16,Sales!$H$2:$H$10811,$C25) -> 16246.5 | M25: =SUMIFS(Sales!$Z$2:$Z$10811,Sales!$M$2:$M$10811,$D25,Sales!$F$2:$F$10811,$B25,Sales!$D$2:$D$10811,M$16,Sales!$H$2:$H$10811,$C25) -> 67035.56 | N25: =SUMIFS(Sales!$Z$2:$Z$10811,Sales!$M$2:$M$10811,$D25,Sales!$F$2:$F$10811,$B25,Sales!$D$2:$D$10811,N$16,Sales!$H$2:$H$10811,$C25) -> 22904.3 | O25: =SUMIFS(Sales!$Z$2:$Z$10811,Sales!$M$2:$M$10811,$D25,Sales!$F$2:$F$10811,$B25,Sales!$D$2:$D$10811,O$16,Sales!$H$2:$H$10811,$C25) -> 8519.81 | P25: =SUMIFS(Sales!$Z$2:$Z$10811,Sales!$M$2:$M$10811,$D25,Sales!$F$2:$F$10811,$B25,Sales!$D$2:$D$10811,P$16,Sales!$H$2:$H$10811,$C25) -> 52195.31
A26: NA | B26: =Time!$E$29 -> 2018_19 | C26: =List!$I$2 -> London | D26: Drone | E26: =SUMIFS(Sales!$Z$2:$Z$10811,Sales!$M$2:$M$10811,$D26,Sales!$F$2:$F$10811,$B26,Sales!$D$2:$D$10811,E$16,Sales!$H$2:$H$10811,$C26) -> 14622 | F26: =SUMIFS(Sales!$Z$2:$Z$10811,Sales!$M$2:$M$10811,$D26,Sales!$F$2:$F$10811,$B26,Sales!$D$2:$D$10811,F$16,Sales!$H$2:$H$10811,$C26) -> 73695 | G26: =SUMIFS(Sales!$Z$2:$Z$10811,Sales!$M$2:$M$10811,$D26,Sales!$F$2:$F$10811,$B26,Sales!$D$2:$D$10811,G$16,Sales!$H$2:$H$10811,$C26) -> 41609.94 | H26: =SUMIFS(Sales!$Z$2:$Z$10811,Sales!$M$2:$M$10811,$D26,Sales!$F$2:$F$10811,$B26,Sales!$D$2:$D$10811,H$16,Sales!$H$2:$H$10811,$C26) -> 87922.31 | I26: =SUMIFS(Sales!$Z$2:$Z$10811,Sales!$M$2:$M$10811,$D26,Sales!$F$2:$F$10811,$B26,Sales!$D$2:$D$10811,I$16,Sales!$H$2:$H$10811,$C26) -> 104526.88 | J26: =SUMIFS(Sales!$Z$2:$Z$10811,Sales!$M$2:$M$10811,$D26,Sales!$F$2:$F$10811,$B26,Sales!$D$2:$D$10811,J$16,Sales!$H$2:$H$10811,$C26) -> 37376.5 | K26: =SUMIFS(Sales!$Z$2:$Z$10811,Sales!$M$2:$M$10811,$D26,Sales!$F$2:$F$10811,$B26,Sales!$D$2:$D$10811,K$16,Sales!$H$2:$H$10811,$C26) -> 7139.6 | L26: =SUMIFS(Sales!$Z$2:$Z$10811,Sales!$M$2:$M$10811,$D26,Sales!$F$2:$F$10811,$B26,Sales!$D$2:$D$10811,L$16,Sales!$H$2:$H$10811,$C26) -> 75141 | M26: =SUMIFS(Sales!$Z$2:$Z$10811,Sales!$M$2:$M$10811,$D26,Sales!$F$2:$F$10811,$B26,Sales!$D$2:$D$10811,M$16,Sales!$H$2:$H$10811,$C26) -> 13162.5 | N26: =SUMIFS(Sales!$Z$2:$Z$10811,Sales!$M$2:$M$10811,$D26,Sales!$F$2:$F$10811,$B26,Sales!$D$2:$D$10811,N$16,Sales!$H$2:$H$10811,$C26) -> 58688.35 | O26: =SUMIFS(Sales!$Z$2:$Z$10811,Sales!$M$2:$M$10811,$D26,Sales!$F$2:$F$10811,$B26,Sales!$D$2:$D$10811,O$16,Sales!$H$2:$H$10811,$C26) -> 15135 | P26: =SUMIFS(Sales!$Z$2:$Z$10811,Sales!$M$2:$M$10811,$D26,Sales!$F$2:$F$10811,$B26,Sales!$D$2:$D$10811,P$16,Sales!$H$2:$H$10811,$C26) -> 67152
A29: PY | B29: Year | C29: City | D29: Product | E29: 1 | F29: 2 | G29: 3 | H29: 4 | I29: 5 | J29: 6 | K29: 7 | L29: 8 | M29: 9 | N29: 10 | O29: 11 | P29: 12
A30: NA | B30: =Time!$E$29 -> 2018_19 | C30: =List!$I$2 -> London | D30: PC Games | E30: =SUMIFS(Sales!$Y$2:$Y$10811,Sales!$M$2:$M$10811,$D30,Sales!$F$2:$F$10811,$B30,Sales!$D$2:$D$10811,E$29,Sales!$H$2:$H$10811,$C30) -> 35353.35 | F30: =SUMIFS(Sales!$Y$2:$Y$10811,Sales!$M$2:$M$10811,$D30,Sales!$F$2:$F$10811,$B30,Sales!$D$2:$D$10811,F$29,Sales!$H$2:$H$10811,$C30) -> 20377.23 | G30: =SUMIFS(Sales!$Y$2:$Y$10811,Sales!$M$2:$M$10811,$D30,Sales!$F$2:$F$10811,$B30,Sales!$D$2:$D$10811,G$29,Sales!$H$2:$H$10811,$C30) -> 66711.3 | H30: =SUMIFS(Sales!$Y$2:$Y$10811,Sales!$M$2:$M$10811,$D30,Sales!$F$2:$F$10811,$B30,Sales!$D$2:$D$10811,H$29,Sales!$H$2:$H$10811,$C30) -> 74531.57 | I30: =SUMIFS(Sales!$Y$2:$Y$10811,Sales!$M$2:$M$10811,$D30,Sales!$F$2:$F$10811,$B30,Sales!$D$2:$D$10811,I$29,Sales!$H$2:$H$10811,$C30) -> 56142.96 | J30: =SUMIFS(Sales!$Y$2:$Y$10811,Sales!$M$2:$M$10811,$D30,Sales!$F$2:$F$10811,$B30,Sales!$D$2:$D$10811,J$29,Sales!$H$2:$H$10811,$C30) -> 39394.67 | K30: =SUMIFS(Sales!$Y$2:$Y$10811,Sales!$M$2:$M$10811,$D30,Sales!$F$2:$F$10811,$B30,Sales!$D$2:$D$10811,K$29,Sales!$H$2:$H$10811,$C30) -> 46097.69 | L30: =SUMIFS(Sales!$Y$2:$Y$10811,Sales!$M$2:$M$10811,$D30,Sales!$F$2:$F$10811,$B30,Sales!$D$2:$D$10811,L$29,Sales!$H$2:$H$10811,$C30) -> 40886.63 | M30: =SUMIFS(Sales!$Y$2:$Y$10811,Sales!$M$2:$M$10811,$D30,Sales!$F$2:$F$10811,$B30,Sales!$D$2:$D$10811,M$29,Sales!$H$2:$H$10811,$C30) -> 27725.3 | N30: =SUMIFS(Sales!$Y$2:$Y$10811,Sales!$M$2:$M$10811,$D30,Sales!$F$2:$F$10811,$B30,Sales!$D$2:$D$10811,N$29,Sales!$H$2:$H$10811,$C30) -> 63355.92 | O30: =SUMIFS(Sales!$Y$2:$Y$10811,Sales!$M$2:$M$10811,$D30,Sales!$F$2:$F$10811,$B30,Sales!$D$2:$D$10811,O$29,Sales!$H$2:$H$10811,$C30) -> 53438.7 | P30: =SUMIFS(Sales!$Y$2:$Y$10811,Sales!$M$2:$M$10811,$D30,Sales!$F$2:$F$10811,$B30,Sales!$D$2:$D$10811,P$29,Sales!$H$2:$H$10811,$C30) -> 17718.9
A31: NA | B31: =Time!$E$29 -> 2018_19 | C31: =List!$I$2 -> London | D31: Phone | E31: =SUMIFS(Sales!$Y$2:$Y$10811,Sales!$M$2:$M$10811,$D31,Sales!$F$2:$F$10811,$B31,Sales!$D$2:$D$10811,E$29,Sales!$H$2:$H$10811,$C31) -> 40757.23 | F31: =SUMIFS(Sales!$Y$2:$Y$10811,Sales!$M$2:$M$10811,$D31,Sales!$F$2:$F$10811,$B31,Sales!$D$2:$D$10811,F$29,Sales!$H$2:$H$10811,$C31) -> 30540.74 | G31: =SUMIFS(Sales!$Y$2:$Y$10811,Sales!$M$2:$M$10811,$D31,Sales!$F$2:$F$10811,$B31,Sales!$D$2:$D$10811,G$29,Sales!$H$2:$H$10811,$C31) -> 40418.4 | H31: =SUMIFS(Sales!$Y$2:$Y$10811,Sales!$M$2:$M$10811,$D31,Sales!$F$2:$F$10811,$B31,Sales!$D$2:$D$10811,H$29,Sales!$H$2:$H$10811,$C31) -> 45628.9 | I31: =SUMIFS(Sales!$Y$2:$Y$10811,Sales!$M$2:$M$10811,$D31,Sales!$F$2:$F$10811,$B31,Sales!$D$2:$D$10811,I$29,Sales!$H$2:$H$10811,$C31) -> 25781.8 | J31: =SUMIFS(Sales!$Y$2:$Y$10811,Sales!$M$2:$M$10811,$D31,Sales!$F$2:$F$10811,$B31,Sales!$D$2:$D$10811,J$29,Sales!$H$2:$H$10811,$C31) -> 29329.59 | K31: =SUMIFS(Sales!$Y$2:$Y$10811,Sales!$M$2:$M$10811,$D31,Sales!$F$2:$F$10811,$B31,Sales!$D$2:$D$10811,K$29,Sales!$H$2:$H$10811,$C31) -> 4323 | L31: =SUMIFS(Sales!$Y$2:$Y$10811,Sales!$M$2:$M$10811,$D31,Sales!$F$2:$F$10811,$B31,Sales!$D$2:$D$10811,L$29,Sales!$H$2:$H$10811,$C31) -> 15015.78 | M31: =SUMIFS(Sales!$Y$2:$Y$10811,Sales!$M$2:$M$10811,$D31,Sales!$F$2:$F$10811,$B31,Sales!$D$2:$D$10811,M$29,Sales!$H$2:$H$10811,$C31) -> 22403.4 | N31: =SUMIFS(Sales!$Y$2:$Y$10811,Sales!$M$2:$M$10811,$D31,Sales!$F$2:$F$10811,$B31,Sales!$D$2:$D$10811,N$29,Sales!$H$2:$H$10811,$C31) -> 38586.76 | O31: =SUMIFS(Sales!$Y$2:$Y$10811,Sales!$M$2:$M$10811,$D31,Sales!$F$2:$F$10811,$B31,Sales!$D$2:$D$10811,O$29,Sales!$H$2:$H$10811,$C31) -> 38174.75 | P31: =SUMIFS(Sales!$Y$2:$Y$10811,Sales!$M$2:$M$10811,$D31,Sales!$F$2:$F$10811,$B31,Sales!$D$2:$D$10811,P$29,Sales!$H$2:$H$10811,$C31) -> 22494.41
A32: NA | B32: =Time!$E$29 -> 2018_19 | C32: =List!$I$2 -> London | D32: Laptop | E32: =SUMIFS(Sales!$Y$2:$Y$10811,Sales!$M$2:$M$10811,$D32,Sales!$F$2:$F$10811,$B32,Sales!$D$2:$D$10811,E$29,Sales!$H$2:$H$10811,$C32) -> 63563.32 | F32: =SUMIFS(Sales!$Y$2:$Y$10811,Sales!$M$2:$M$10811,$D32,Sales!$F$2:$F$10811,$B32,Sales!$D$2:$D$10811,F$29,Sales!$H$2:$H$10811,$C32) -> 55236.66 | G32: =SUMIFS(Sales!$Y$2:$Y$10811,Sales!$M$2:$M$10811,$D32,Sales!$F$2:$F$10811,$B32,Sales!$D$2:$D$10811,G$29,Sales!$H$2:$H$10811,$C32) -> 35255.62 | H32: =SUMIFS(Sales!$Y$2:$Y$10811,Sales!$M$2:$M$10811,$D32,Sales!$F$2:$F$10811,$B32,Sales!$D$2:$D$10811,H$29,Sales!$H$2:$H$10811,$C32) -> 28108.55 | I32: =SUMIFS(Sales!$Y$2:$Y$10811,Sales!$M$2:$M$10811,$D32,Sales!$F$2:$F$10811,$B32,Sales!$D$2:$D$10811,I$29,Sales!$H$2:$H$10811,$C32) -> 46693.09 | J32: =SUMIFS(Sales!$Y$2:$Y$10811,Sales!$M$2:$M$10811,$D32,Sales!$F$2:$F$10811,$B32,Sales!$D$2:$D$10811,J$29,Sales!$H$2:$H$10811,$C32) -> 18368.92 | K32: =SUMIFS(Sales!$Y$2:$Y$10811,Sales!$M$2:$M$10811,$D32,Sales!$F$2:$F$10811,$B32,Sales!$D$2:$D$10811,K$29,Sales!$H$2:$H$10811,$C32) -> 73808.75 | L32: =SUMIFS(Sales!$Y$2:$Y$10811,Sales!$M$2:$M$10811,$D32,Sales!$F$2:$F$10811,$B32,Sales!$D$2:$D$10811,L$29,Sales!$H$2:$H$10811,$C32) -> 40551.93 | M32: =SUMIFS(Sales!$Y$2:$Y$10811,Sales!$M$2:$M$10811,$D32,Sales!$F$2:$F$10811,$B32,Sales!$D$2:$D$10811,M$29,Sales!$H$2:$H$10811,$C32) -> 18709.39 | N32: =SUMIFS(Sales!$Y$2:$Y$10811,Sales!$M$2:$M$10811,$D32,Sales!$F$2:$F$10811,$B32,Sales!$D$2:$D$10811,N$29,Sales!$H$2:$H$10811,$C32) -> 54885.36 | O32: =SUMIFS(Sales!$Y$2:$Y$10811,Sales!$M$2:$M$10811,$D32,Sales!$F$2:$F$10811,$B32,Sales!$D$2:$D$10811,O$29,Sales!$H$2:$H$10811,$C32) -> 9753.01 | P32: =SUMIFS(Sales!$Y$2:$Y$10811,Sales!$M$2:$M$10811,$D32,Sales!$F$2:$F$10811,$B32,Sales!$D$2:$D$10811,P$29,Sales!$H$2:$H$10811,$C32) -> 29727.88
A33: NA | B33: =Time!$E$29 -> 2018_19 | C33: =List!$I$2 -> London | D33: Sound | E33: =SUMIFS(Sales!$Y$2:$Y$10811,Sales!$M$2:$M$10811,$D33,Sales!$F$2:$F$10811,$B33,Sales!$D$2:$D$10811,E$29,Sales!$H$2:$H$10811,$C33) -> 26137.59 | F33: =SUMIFS(Sales!$Y$2:$Y$10811,Sales!$M$2:$M$10811,$D33,Sales!$F$2:$F$10811,$B33,Sales!$D$2:$D$10811,F$29,Sales!$H$2:$H$10811,$C33) -> 75317.48 | G33: =SUMIFS(Sales!$Y$2:$Y$10811,Sales!$M$2:$M$10811,$D33,Sales!$F$2:$F$10811,$B33,Sales!$D$2:$D$10811,G$29,Sales!$H$2:$H$10811,$C33) -> 35695.82 | H33: =SUMIFS(Sales!$Y$2:$Y$10811,Sales!$M$2:$M$10811,$D33,Sales!$F$2:$F$10811,$B33,Sales!$D$2:$D$10811,H$29,Sales!$H$2:$H$10811,$C33) -> 57367.45 | I33: =SUMIFS(Sales!$Y$2:$Y$10811,Sales!$M$2:$M$10811,$D33,Sales!$F$2:$F$10811,$B33,Sales!$D$2:$D$10811,I$29,Sales!$H$2:$H$10811,$C33) -> 11895.78 | J33: =SUMIFS(Sales!$Y$2:$Y$10811,Sales!$M$2:$M$10811,$D33,Sales!$F$2:$F$10811,$B33,Sales!$D$2:$D$10811,J$29,Sales!$H$2:$H$10811,$C33) -> 24910.66 | K33: =SUMIFS(Sales!$Y$2:$Y$10811,Sales!$M$2:$M$10811,$D33,Sales!$F$2:$F$10811,$B33,Sales!$D$2:$D$10811,K$29,Sales!$H$2:$H$10811,$C33) -> 23795.7 | L33: =SUMIFS(Sales!$Y$2:$Y$10811,Sales!$M$2:$M$10811,$D33,Sales!$F$2:$F$10811,$B33,Sales!$D$2:$D$10811,L$29,Sales!$H$2:$H$10811,$C33) -> 14591.1 | M33: =SUMIFS(Sales!$Y$2:$Y$10811,Sales!$M$2:$M$10811,$D33,Sales!$F$2:$F$10811,$B33,Sales!$D$2:$D$10811,M$29,Sales!$H$2:$H$10811,$C33) -> 40239.33 | N33: =SUMIFS(Sales!$Y$2:$Y$10811,Sales!$M$2:$M$10811,$D33,Sales!$F$2:$F$10811,$B33,Sales!$D$2:$D$10811,N$29,Sales!$H$2:$H$10811,$C33) -> 25003.23 | O33: =SUMIFS(Sales!$Y$2:$Y$10811,Sales!$M$2:$M$10811,$D33,Sales!$F$2:$F$10811,$B33,Sales!$D$2:$D$10811,O$29,Sales!$H$2:$H$10811,$C33) -> 15022.63 | P33: =SUMIFS(Sales!$Y$2:$Y$10811,Sales!$M$2:$M$10811,$D33,Sales!$F$2:$F$10811,$B33,Sales!$D$2:$D$10811,P$29,Sales!$H$2:$H$10811,$C33) -> 13878.96
A34: NA | B34: =Time!$E$29 -> 2018_19 | C34: =List!$I$2 -> London | D34: TV | E34: =SUMIFS(Sales!$Y$2:$Y$10811,Sales!$M$2:$M$10811,$D34,Sales!$F$2:$F$10811,$B34,Sales!$D$2:$D$10811,E$29,Sales!$H$2:$H$10811,$C34) -> 52784.61 | F34: =SUMIFS(Sales!$Y$2:$Y$10811,Sales!$M$2:$M$10811,$D34,Sales!$F$2:$F$10811,$B34,Sales!$D$2:$D$10811,F$29,Sales!$H$2:$H$10811,$C34) -> 50390.35 | G34: =SUMIFS(Sales!$Y$2:$Y$10811,Sales!$M$2:$M$10811,$D34,Sales!$F$2:$F$10811,$B34,Sales!$D$2:$D$10811,G$29,Sales!$H$2:$H$10811,$C34) -> 12320.86 | H34: =SUMIFS(Sales!$Y$2:$Y$10811,Sales!$M$2:$M$10811,$D34,Sales!$F$2:$F$10811,$B34,Sales!$D$2:$D$10811,H$29,Sales!$H$2:$H$10811,$C34) -> 14391.81 | I34: =SUMIFS(Sales!$Y$2:$Y$10811,Sales!$M$2:$M$10811,$D34,Sales!$F$2:$F$10811,$B34,Sales!$D$2:$D$10811,I$29,Sales!$H$2:$H$10811,$C34) -> 75642.07 | J34: =SUMIFS(Sales!$Y$2:$Y$10811,Sales!$M$2:$M$10811,$D34,Sales!$F$2:$F$10811,$B34,Sales!$D$2:$D$10811,J$29,Sales!$H$2:$H$10811,$C34) -> 44233.64 | K34: =SUMIFS(Sales!$Y$2:$Y$10811,Sales!$M$2:$M$10811,$D34,Sales!$F$2:$F$10811,$B34,Sales!$D$2:$D$10811,K$29,Sales!$H$2:$H$10811,$C34) -> 7683.24 | L34: =SUMIFS(Sales!$Y$2:$Y$10811,Sales!$M$2:$M$10811,$D34,Sales!$F$2:$F$10811,$B34,Sales!$D$2:$D$10811,L$29,Sales!$H$2:$H$10811,$C34) -> 33816.92 | M34: =SUMIFS(Sales!$Y$2:$Y$10811,Sales!$M$2:$M$10811,$D34,Sales!$F$2:$F$10811,$B34,Sales!$D$2:$D$10811,M$29,Sales!$H$2:$H$10811,$C34) -> 6138.86 | N34: =SUMIFS(Sales!$Y$2:$Y$10811,Sales!$M$2:$M$10811,$D34,Sales!$F$2:$F$10811,$B34,Sales!$D$2:$D$10811,N$29,Sales!$H$2:$H$10811,$C34) -> 8917.69 | O34: =SUMIFS(Sales!$Y$2:$Y$10811,Sales!$M$2:$M$10811,$D34,Sales!$F$2:$F$10811,$B34,Sales!$D$2:$D$10811,O$29,Sales!$H$2:$H$10811,$C34) -> 4630.58 | P34: =SUMIFS(Sales!$Y$2:$Y$10811,Sales!$M$2:$M$10811,$D34,Sales!$F$2:$F$10811,$B34,Sales!$D$2:$D$10811,P$29,Sales!$H$2:$H$10811,$C34) -> 21115.47
A35: NA | B35: =Time!$E$29 -> 2018_19 | C35: =List!$I$2 -> London | D35: Tablet | E35: =SUMIFS(Sales!$Y$2:$Y$10811,Sales!$M$2:$M$10811,$D35,Sales!$F$2:$F$10811,$B35,Sales!$D$2:$D$10811,E$29,Sales!$H$2:$H$10811,$C35) -> 35642.52 | F35: =SUMIFS(Sales!$Y$2:$Y$10811,Sales!$M$2:$M$10811,$D35,Sales!$F$2:$F$10811,$B35,Sales!$D$2:$D$10811,F$29,Sales!$H$2:$H$10811,$C35) -> 11400.2 | G35: =SUMIFS(Sales!$Y$2:$Y$10811,Sales!$M$2:$M$10811,$D35,Sales!$F$2:$F$10811,$B35,Sales!$D$2:$D$10811,G$29,Sales!$H$2:$H$10811,$C35) -> 14934.52 | H35: =SUMIFS(Sales!$Y$2:$Y$10811,Sales!$M$2:$M$10811,$D35,Sales!$F$2:$F$10811,$B35,Sales!$D$2:$D$10811,H$29,Sales!$H$2:$H$10811,$C35) -> 68130.17 | I35: =SUMIFS(Sales!$Y$2:$Y$10811,Sales!$M$2:$M$10811,$D35,Sales!$F$2:$F$10811,$B35,Sales!$D$2:$D$10811,I$29,Sales!$H$2:$H$10811,$C35) -> 18943.22 | J35: =SUMIFS(Sales!$Y$2:$Y$10811,Sales!$M$2:$M$10811,$D35,Sales!$F$2:$F$10811,$B35,Sales!$D$2:$D$10811,J$29,Sales!$H$2:$H$10811,$C35) -> 43181.41 | K35: =SUMIFS(Sales!$Y$2:$Y$10811,Sales!$M$2:$M$10811,$D35,Sales!$F$2:$F$10811,$B35,Sales!$D$2:$D$10811,K$29,Sales!$H$2:$H$10811,$C35) -> 20617.17 | L35: =SUMIFS(Sales!$Y$2:$Y$10811,Sales!$M$2:$M$10811,$D35,Sales!$F$2:$F$10811,$B35,Sales!$D$2:$D$10811,L$29,Sales!$H$2:$H$10811,$C35) -> 10011.56 | M35: =SUMIFS(Sales!$Y$2:$Y$10811,Sales!$M$2:$M$10811,$D35,Sales!$F$2:$F$10811,$B35,Sales!$D$2:$D$10811,M$29,Sales!$H$2:$H$10811,$C35) -> 9839.22 | N35: =SUMIFS(Sales!$Y$2:$Y$10811,Sales!$M$2:$M$10811,$D35,Sales!$F$2:$F$10811,$B35,Sales!$D$2:$D$10811,N$29,Sales!$H$2:$H$10811,$C35) -> 19179.77 | O35: =SUMIFS(Sales!$Y$2:$Y$10811,Sales!$M$2:$M$10811,$D35,Sales!$F$2:$F$10811,$B35,Sales!$D$2:$D$10811,O$29,Sales!$H$2:$H$10811,$C35) -> 50051.7 | P35: =SUMIFS(Sales!$Y$2:$Y$10811,Sales!$M$2:$M$10811,$D35,Sales!$F$2:$F$10811,$B35,Sales!$D$2:$D$10811,P$29,Sales!$H$2:$H$10811,$C35) -> 8844.73
A36: NA | B36: =Time!$E$29 -> 2018_19 | C36: =List!$I$2 -> London | D36: Cameras | E36: =SUMIFS(Sales!$Y$2:$Y$10811,Sales!$M$2:$M$10811,$D36,Sales!$F$2:$F$10811,$B36,Sales!$D$2:$D$10811,E$29,Sales!$H$2:$H$10811,$C36) -> 46985.84 | F36: =SUMIFS(Sales!$Y$2:$Y$10811,Sales!$M$2:$M$10811,$D36,Sales!$F$2:$F$10811,$B36,Sales!$D$2:$D$10811,F$29,Sales!$H$2:$H$10811,$C36) -> 45207.31 | G36: =SUMIFS(Sales!$Y$2:$Y$10811,Sales!$M$2:$M$10811,$D36,Sales!$F$2:$F$10811,$B36,Sales!$D$2:$D$10811,G$29,Sales!$H$2:$H$10811,$C36) -> 26074.02 | H36: =SUMIFS(Sales!$Y$2:$Y$10811,Sales!$M$2:$M$10811,$D36,Sales!$F$2:$F$10811,$B36,Sales!$D$2:$D$10811,H$29,Sales!$H$2:$H$10811,$C36) -> 18718.24 | I36: =SUMIFS(Sales!$Y$2:$Y$10811,Sales!$M$2:$M$10811,$D36,Sales!$F$2:$F$10811,$B36,Sales!$D$2:$D$10811,I$29,Sales!$H$2:$H$10811,$C36) -> 26545.2 | J36: =SUMIFS(Sales!$Y$2:$Y$10811,Sales!$M$2:$M$10811,$D36,Sales!$F$2:$F$10811,$B36,Sales!$D$2:$D$10811,J$29,Sales!$H$2:$H$10811,$C36) -> 44315.53 | K36: =SUMIFS(Sales!$Y$2:$Y$10811,Sales!$M$2:$M$10811,$D36,Sales!$F$2:$F$10811,$B36,Sales!$D$2:$D$10811,K$29,Sales!$H$2:$H$10811,$C36) -> 7117.26 | L36: =SUMIFS(Sales!$Y$2:$Y$10811,Sales!$M$2:$M$10811,$D36,Sales!$F$2:$F$10811,$B36,Sales!$D$2:$D$10811,L$29,Sales!$H$2:$H$10811,$C36) -> 7495.27 | M36: =SUMIFS(Sales!$Y$2:$Y$10811,Sales!$M$2:$M$10811,$D36,Sales!$F$2:$F$10811,$B36,Sales!$D$2:$D$10811,M$29,Sales!$H$2:$H$10811,$C36) -> 14344.48 | N36: =SUMIFS(Sales!$Y$2:$Y$10811,Sales!$M$2:$M$10811,$D36,Sales!$F$2:$F$10811,$B36,Sales!$D$2:$D$10811,N$29,Sales!$H$2:$H$10811,$C36) -> 66656.27 | O36: =SUMIFS(Sales!$Y$2:$Y$10811,Sales!$M$2:$M$10811,$D36,Sales!$F$2:$F$10811,$B36,Sales!$D$2:$D$10811,O$29,Sales!$H$2:$H$10811,$C36) -> 37957.56 | P36: =SUMIFS(Sales!$Y$2:$Y$10811,Sales!$M$2:$M$10811,$D36,Sales!$F$2:$F$10811,$B36,Sales!$D$2:$D$10811,P$29,Sales!$H$2:$H$10811,$C36) -> 21308.27
A37: NA | B37: =Time!$E$29 -> 2018_19 | C37: =List!$I$2 -> London | D37: Desktop | E37: =SUMIFS(Sales!$Y$2:$Y$10811,Sales!$M$2:$M$10811,$D37,Sales!$F$2:$F$10811,$B37,Sales!$D$2:$D$10811,E$29,Sales!$H$2:$H$10811,$C37) -> 20970.78 | F37: =SUMIFS(Sales!$Y$2:$Y$10811,Sales!$M$2:$M$10811,$D37,Sales!$F$2:$F$10811,$B37,Sales!$D$2:$D$10811,F$29,Sales!$H$2:$H$10811,$C37) -> 23724.62 | G37: =SUMIFS(Sales!$Y$2:$Y$10811,Sales!$M$2:$M$10811,$D37,Sales!$F$2:$F$10811,$B37,Sales!$D$2:$D$10811,G$29,Sales!$H$2:$H$10811,$C37) -> 12027.73 | H37: =SUMIFS(Sales!$Y$2:$Y$10811,Sales!$M$2:$M$10811,$D37,Sales!$F$2:$F$10811,$B37,Sales!$D$2:$D$10811,H$29,Sales!$H$2:$H$10811,$C37) -> 7958.44 | I37: =SUMIFS(Sales!$Y$2:$Y$10811,Sales!$M$2:$M$10811,$D37,Sales!$F$2:$F$10811,$B37,Sales!$D$2:$D$10811,I$29,Sales!$H$2:$H$10811,$C37) -> 37066.64 | J37: =SUMIFS(Sales!$Y$2:$Y$10811,Sales!$M$2:$M$10811,$D37,Sales!$F$2:$F$10811,$B37,Sales!$D$2:$D$10811,J$29,Sales!$H$2:$H$10811,$C37) -> 13922.92 | K37: =SUMIFS(Sales!$Y$2:$Y$10811,Sales!$M$2:$M$10811,$D37,Sales!$F$2:$F$10811,$B37,Sales!$D$2:$D$10811,K$29,Sales!$H$2:$H$10811,$C37) -> 20062.15 | L37: =SUMIFS(Sales!$Y$2:$Y$10811,Sales!$M$2:$M$10811,$D37,Sales!$F$2:$F$10811,$B37,Sales!$D$2:$D$10811,L$29,Sales!$H$2:$H$10811,$C37) -> 13915.78 | M37: =SUMIFS(Sales!$Y$2:$Y$10811,Sales!$M$2:$M$10811,$D37,Sales!$F$2:$F$10811,$B37,Sales!$D$2:$D$10811,M$29,Sales!$H$2:$H$10811,$C37) -> 34927.15 | N37: =SUMIFS(Sales!$Y$2:$Y$10811,Sales!$M$2:$M$10811,$D37,Sales!$F$2:$F$10811,$B37,Sales!$D$2:$D$10811,N$29,Sales!$H$2:$H$10811,$C37) -> 25783.13 | O37: =SUMIFS(Sales!$Y$2:$Y$10811,Sales!$M$2:$M$10811,$D37,Sales!$F$2:$F$10811,$B37,Sales!$D$2:$D$10811,O$29,Sales!$H$2:$H$10811,$C37) -> 24881 | P37: =SUMIFS(Sales!$Y$2:$Y$10811,Sales!$M$2:$M$10811,$D37,Sales!$F$2:$F$10811,$B37,Sales!$D$2:$D$10811,P$29,Sales!$H$2:$H$10811,$C37) -> 16114.74
A38: NA | B38: =Time!$E$29 -> 2018_19 | C38: =List!$I$2 -> London | D38: Music | E38: =SUMIFS(Sales!$Y$2:$Y$10811,Sales!$M$2:$M$10811,$D38,Sales!$F$2:$F$10811,$B38,Sales!$D$2:$D$10811,E$29,Sales!$H$2:$H$10811,$C38) -> 8537.77 | F38: =SUMIFS(Sales!$Y$2:$Y$10811,Sales!$M$2:$M$10811,$D38,Sales!$F$2:$F$10811,$B38,Sales!$D$2:$D$10811,F$29,Sales!$H$2:$H$10811,$C38) -> 13673.15 | G38: =SUMIFS(Sales!$Y$2:$Y$10811,Sales!$M$2:$M$10811,$D38,Sales!$F$2:$F$10811,$B38,Sales!$D$2:$D$10811,G$29,Sales!$H$2:$H$10811,$C38) -> 8219 | H38: =SUMIFS(Sales!$Y$2:$Y$10811,Sales!$M$2:$M$10811,$D38,Sales!$F$2:$F$10811,$B38,Sales!$D$2:$D$10811,H$29,Sales!$H$2:$H$10811,$C38) -> 20649.37 | I38: =SUMIFS(Sales!$Y$2:$Y$10811,Sales!$M$2:$M$10811,$D38,Sales!$F$2:$F$10811,$B38,Sales!$D$2:$D$10811,I$29,Sales!$H$2:$H$10811,$C38) -> 28110.82 | J38: =SUMIFS(Sales!$Y$2:$Y$10811,Sales!$M$2:$M$10811,$D38,Sales!$F$2:$F$10811,$B38,Sales!$D$2:$D$10811,J$29,Sales!$H$2:$H$10811,$C38) -> 12387.01 | K38: =SUMIFS(Sales!$Y$2:$Y$10811,Sales!$M$2:$M$10811,$D38,Sales!$F$2:$F$10811,$B38,Sales!$D$2:$D$10811,K$29,Sales!$H$2:$H$10811,$C38) -> 8701.38 | L38: =SUMIFS(Sales!$Y$2:$Y$10811,Sales!$M$2:$M$10811,$D38,Sales!$F$2:$F$10811,$B38,Sales!$D$2:$D$10811,L$29,Sales!$H$2:$H$10811,$C38) -> 7471.06 | M38: =SUMIFS(Sales!$Y$2:$Y$10811,Sales!$M$2:$M$10811,$D38,Sales!$F$2:$F$10811,$B38,Sales!$D$2:$D$10811,M$29,Sales!$H$2:$H$10811,$C38) -> 23049.94 | N38: =SUMIFS(Sales!$Y$2:$Y$10811,Sales!$M$2:$M$10811,$D38,Sales!$F$2:$F$10811,$B38,Sales!$D$2:$D$10811,N$29,Sales!$H$2:$H$10811,$C38) -> 10389.65 | O38: =SUMIFS(Sales!$Y$2:$Y$10811,Sales!$M$2:$M$10811,$D38,Sales!$F$2:$F$10811,$B38,Sales!$D$2:$D$10811,O$29,Sales!$H$2:$H$10811,$C38) -> 3307.19 | P38: =SUMIFS(Sales!$Y$2:$Y$10811,Sales!$M$2:$M$10811,$D38,Sales!$F$2:$F$10811,$B38,Sales!$D$2:$D$10811,P$29,Sales!$H$2:$H$10811,$C38) -> 17453.45
A39: NA | B39: =Time!$E$29 -> 2018_19 | C39: =List!$I$2 -> London | D39: Drone | E39: =SUMIFS(Sales!$Y$2:$Y$10811,Sales!$M$2:$M$10811,$D39,Sales!$F$2:$F$10811,$B39,Sales!$D$2:$D$10811,E$29,Sales!$H$2:$H$10811,$C39) -> 6940.05 | F39: =SUMIFS(Sales!$Y$2:$Y$10811,Sales!$M$2:$M$10811,$D39,Sales!$F$2:$F$10811,$B39,Sales!$D$2:$D$10811,F$29,Sales!$H$2:$H$10811,$C39) -> 26301.26 | G39: =SUMIFS(Sales!$Y$2:$Y$10811,Sales!$M$2:$M$10811,$D39,Sales!$F$2:$F$10811,$B39,Sales!$D$2:$D$10811,G$29,Sales!$H$2:$H$10811,$C39) -> 18680.48 | H39: =SUMIFS(Sales!$Y$2:$Y$10811,Sales!$M$2:$M$10811,$D39,Sales!$F$2:$F$10811,$B39,Sales!$D$2:$D$10811,H$29,Sales!$H$2:$H$10811,$C39) -> 42241.28 | I39: =SUMIFS(Sales!$Y$2:$Y$10811,Sales!$M$2:$M$10811,$D39,Sales!$F$2:$F$10811,$B39,Sales!$D$2:$D$10811,I$29,Sales!$H$2:$H$10811,$C39) -> 42814.04 | J39: =SUMIFS(Sales!$Y$2:$Y$10811,Sales!$M$2:$M$10811,$D39,Sales!$F$2:$F$10811,$B39,Sales!$D$2:$D$10811,J$29,Sales!$H$2:$H$10811,$C39) -> 17281.66 | K39: =SUMIFS(Sales!$Y$2:$Y$10811,Sales!$M$2:$M$10811,$D39,Sales!$F$2:$F$10811,$B39,Sales!$D$2:$D$10811,K$29,Sales!$H$2:$H$10811,$C39) -> 3431.3 | L39: =SUMIFS(Sales!$Y$2:$Y$10811,Sales!$M$2:$M$10811,$D39,Sales!$F$2:$F$10811,$B39,Sales!$D$2:$D$10811,L$29,Sales!$H$2:$H$10811,$C39) -> 26327.7 | M39: =SUMIFS(Sales!$Y$2:$Y$10811,Sales!$M$2:$M$10811,$D39,Sales!$F$2:$F$10811,$B39,Sales!$D$2:$D$10811,M$29,Sales!$H$2:$H$10811,$C39) -> 6441.24 | N39: =SUMIFS(Sales!$Y$2:$Y$10811,Sales!$M$2:$M$10811,$D39,Sales!$F$2:$F$10811,$B39,Sales!$D$2:$D$10811,N$29,Sales!$H$2:$H$10811,$C39) -> 27048.6 | O39: =SUMIFS(Sales!$Y$2:$Y$10811,Sales!$M$2:$M$10811,$D39,Sales!$F$2:$F$10811,$B39,Sales!$D$2:$D$10811,O$29,Sales!$H$2:$H$10811,$C39) -> 7261.28 | P39: =SUMIFS(Sales!$Y$2:$Y$10811,Sales!$M$2:$M$10811,$D39,Sales!$F$2:$F$10811,$B39,Sales!$D$2:$D$10811,P$29,Sales!$H$2:$H$10811,$C39) -> 24601.32
A42: PY | B42: Year | C42: City | D42: Division | E42: Weekly Sales | F42: Avg Daily Sales | G42: Customers | H42: Orders | I42: Return | J42: Return Amt
A43: NA | B43: =Time!$E$30 -> 2017_18 | C43: =List!$I$2 -> London | D43: PC Games | E43: =SUMIFS(Sales!$Z$2:$Z$10811,Sales!$M$2:$M$10811,$D43,Sales!$F$2:$F$10811,$B43,Sales!$H$2:$H$10811,$C43) -> 1442603.83 | F43: =E43/Time!$E$28 -> 3952.33926 | G43: =COUNTIFS(Sales!$M$2:$M$10811,$D43,Sales!$F$2:$F$10811,$B43,Sales!$H$2:$H$10811,$C43) -> 358 | H43: =SUMIFS(Sales!$T$2:$T$10811,Sales!$M$2:$M$10811,$D43,Sales!$F$2:$F$10811,$B43,Sales!$H$2:$H$10811,$C43) -> 6271 | I43: =SUMIFS(Sales!$U$2:$U$10811,Sales!$M$2:$M$10811,$D43,Sales!$F$2:$F$10811,$B43,Sales!$H$2:$H$10811,$C43) -> 41 | J43: =SUMIFS(Sales!$V$2:$V$10811,Sales!$M$2:$M$10811,$D43,Sales!$F$2:$F$10811,$B43,Sales!$H$2:$H$10811,$C43) -> 9821.87
A44: NA | B44: =Time!$E$30 -> 2017_18 | C44: =List!$I$2 -> London | D44: Phone | E44: =SUMIFS(Sales!$Z$2:$Z$10811,Sales!$M$2:$M$10811,$D44,Sales!$F$2:$F$10811,$B44,Sales!$H$2:$H$10811,$C44) -> 1010932.33 | F44: =E44/Time!$E$28 -> 2769.677616 | G44: =COUNTIFS(Sales!$M$2:$M$10811,$D44,Sales!$F$2:$F$10811,$B44,Sales!$H$2:$H$10811,$C44) -> 255 | H44: =SUMIFS(Sales!$T$2:$T$10811,Sales!$M$2:$M$10811,$D44,Sales!$F$2:$F$10811,$B44,Sales!$H$2:$H$10811,$C44) -> 4770 | I44: =SUMIFS(Sales!$U$2:$U$10811,Sales!$M$2:$M$10811,$D44,Sales!$F$2:$F$10811,$B44,Sales!$H$2:$H$10811,$C44) -> 29 | J44: =SUMIFS(Sales!$V$2:$V$10811,Sales!$M$2:$M$10811,$D44,Sales!$F$2:$F$10811,$B44,Sales!$H$2:$H$10811,$C44) -> 8917.93
A45: NA | B45: =Time!$E$30 -> 2017_18 | C45: =List!$I$2 -> London | D45: Laptop | E45: =SUMIFS(Sales!$Z$2:$Z$10811,Sales!$M$2:$M$10811,$D45,Sales!$F$2:$F$10811,$B45,Sales!$H$2:$H$10811,$C45) -> 959061.93 | F45: =E45/Time!$E$28 -> 2627.566932 | G45: =COUNTIFS(Sales!$M$2:$M$10811,$D45,Sales!$F$2:$F$10811,$B45,Sales!$H$2:$H$10811,$C45) -> 244 | H45: =SUMIFS(Sales!$T$2:$T$10811,Sales!$M$2:$M$10811,$D45,Sales!$F$2:$F$10811,$B45,Sales!$H$2:$H$10811,$C45) -> 5881 | I45: =SUMIFS(Sales!$U$2:$U$10811,Sales!$M$2:$M$10811,$D45,Sales!$F$2:$F$10811,$B45,Sales!$H$2:$H$10811,$C45) -> 34 | J45: =SUMIFS(Sales!$V$2:$V$10811,Sales!$M$2:$M$10811,$D45,Sales!$F$2:$F$10811,$B45,Sales!$H$2:$H$10811,$C45) -> 14695.31
A46: NA | B46: =Time!$E$30 -> 2017_18 | C46: =List!$I$2 -> London | D46: Sound | E46: =SUMIFS(Sales!$Z$2:$Z$10811,Sales!$M$2:$M$10811,$D46,Sales!$F$2:$F$10811,$B46,Sales!$H$2:$H$10811,$C46) -> 928318.79 | F46: =E46/Time!$E$28 -> 2543.339151 | G46: =COUNTIFS(Sales!$M$2:$M$10811,$D46,Sales!$F$2:$F$10811,$B46,Sales!$H$2:$H$10811,$C46) -> 248 | H46: =SUMIFS(Sales!$T$2:$T$10811,Sales!$M$2:$M$10811,$D46,Sales!$F$2:$F$10811,$B46,Sales!$H$2:$H$10811,$C46) -> 5582 | I46: =SUMIFS(Sales!$U$2:$U$10811,Sales!$M$2:$M$10811,$D46,Sales!$F$2:$F$10811,$B46,Sales!$H$2:$H$10811,$C46) -> 32 | J46: =SUMIFS(Sales!$V$2:$V$10811,Sales!$M$2:$M$10811,$D46,Sales!$F$2:$F$10811,$B46,Sales!$H$2:$H$10811,$C46) -> 9970.97
A47: NA | B47: =Time!$E$30 -> 2017_18 | C47: =List!$I$2 -> London | D47: TV | E47: =SUMIFS(Sales!$Z$2:$Z$10811,Sales!$M$2:$M$10811,$D47,Sales!$F$2:$F$10811,$B47,Sales!$H$2:$H$10811,$C47) -> 907039.8 | F47: =E47/Time!$E$28 -> 2485.040548 | G47: =COUNTIFS(Sales!$M$2:$M$10811,$D47,Sales!$F$2:$F$10811,$B47,Sales!$H$2:$H$10811,$C47) -> 218 | H47: =SUMIFS(Sales!$T$2:$T$10811,Sales!$M$2:$M$10811,$D47,Sales!$F$2:$F$10811,$B47,Sales!$H$2:$H$10811,$C47) -> 3794 | I47: =SUMIFS(Sales!$U$2:$U$10811,Sales!$M$2:$M$10811,$D47,Sales!$F$2:$F$10811,$B47,Sales!$H$2:$H$10811,$C47) -> 27 | J47: =SUMIFS(Sales!$V$2:$V$10811,Sales!$M$2:$M$10811,$D47,Sales!$F$2:$F$10811,$B47,Sales!$H$2:$H$10811,$C47) -> 9039.96
A48: NA | B48: =Time!$E$30 -> 2017_18 | C48: =List!$I$2 -> London | D48: Tablet | E48: =SUMIFS(Sales!$Z$2:$Z$10811,Sales!$M$2:$M$10811,$D48,Sales!$F$2:$F$10811,$B48,Sales!$H$2:$H$10811,$C48) -> 981916.88 | F48: =E48/Time!$E$28 -> 2690.183233 | G48: =COUNTIFS(Sales!$M$2:$M$10811,$D48,Sales!$F$2:$F$10811,$B48,Sales!$H$2:$H$10811,$C48) -> 231 | H48: =SUMIFS(Sales!$T$2:$T$10811,Sales!$M$2:$M$10811,$D48,Sales!$F$2:$F$10811,$B48,Sales!$H$2:$H$10811,$C48) -> 4251 | I48: =SUMIFS(Sales!$U$2:$U$10811,Sales!$M$2:$M$10811,$D48,Sales!$F$2:$F$10811,$B48,Sales!$H$2:$H$10811,$C48) -> 17 | J48: =SUMIFS(Sales!$V$2:$V$10811,Sales!$M$2:$M$10811,$D48,Sales!$F$2:$F$10811,$B48,Sales!$H$2:$H$10811,$C48) -> 8258.23
A49: NA | B49: =Time!$E$30 -> 2017_18 | C49: =List!$I$2 -> London | D49: Cameras | E49: =SUMIFS(Sales!$Z$2:$Z$10811,Sales!$M$2:$M$10811,$D49,Sales!$F$2:$F$10811,$B49,Sales!$H$2:$H$10811,$C49) -> 725152.73 | F49: =E49/Time!$E$28 -> 1986.719808 | G49: =COUNTIFS(Sales!$M$2:$M$10811,$D49,Sales!$F$2:$F$10811,$B49,Sales!$H$2:$H$10811,$C49) -> 185 | H49: =SUMIFS(Sales!$T$2:$T$10811,Sales!$M$2:$M$10811,$D49,Sales!$F$2:$F$10811,$B49,Sales!$H$2:$H$10811,$C49) -> 2861 | I49: =SUMIFS(Sales!$U$2:$U$10811,Sales!$M$2:$M$10811,$D49,Sales!$F$2:$F$10811,$B49,Sales!$H$2:$H$10811,$C49) -> 23 | J49: =SUMIFS(Sales!$V$2:$V$10811,Sales!$M$2:$M$10811,$D49,Sales!$F$2:$F$10811,$B49,Sales!$H$2:$H$10811,$C49) -> 12997.7
A50: NA | B50: =Time!$E$30 -> 2017_18 | C50: =List!$I$2 -> London | D50: Desktop | E50: =SUMIFS(Sales!$Z$2:$Z$10811,Sales!$M$2:$M$10811,$D50,Sales!$F$2:$F$10811,$B50,Sales!$H$2:$H$10811,$C50) -> 617563.53 | F50: =E50/Time!$E$28 -> 1691.954877 | G50: =COUNTIFS(Sales!$M$2:$M$10811,$D50,Sales!$F$2:$F$10811,$B50,Sales!$H$2:$H$10811,$C50) -> 154 | H50: =SUMIFS(Sales!$T$2:$T$10811,Sales!$M$2:$M$10811,$D50,Sales!$F$2:$F$10811,$B50,Sales!$H$2:$H$10811,$C50) -> 2601 | I50: =SUMIFS(Sales!$U$2:$U$10811,Sales!$M$2:$M$10811,$D50,Sales!$F$2:$F$10811,$B50,Sales!$H$2:$H$10811,$C50) -> 14 | J50: =SUMIFS(Sales!$V$2:$V$10811,Sales!$M$2:$M$10811,$D50,Sales!$F$2:$F$10811,$B50,Sales!$H$2:$H$10811,$C50) -> 4085.66
A51: NA | B51: =Time!$E$30 -> 2017_18 | C51: =List!$I$2 -> London | D51: Music | E51: =SUMIFS(Sales!$Z$2:$Z$10811,Sales!$M$2:$M$10811,$D51,Sales!$F$2:$F$10811,$B51,Sales!$H$2:$H$10811,$C51) -> 475195 | F51: =E51/Time!$E$28 -> 1301.90411 | G51: =COUNTIFS(Sales!$M$2:$M$10811,$D51,Sales!$F$2:$F$10811,$B51,Sales!$H$2:$H$10811,$C51) -> 125 | H51: =SUMIFS(Sales!$T$2:$T$10811,Sales!$M$2:$M$10811,$D51,Sales!$F$2:$F$10811,$B51,Sales!$H$2:$H$10811,$C51) -> 3209 | I51: =SUMIFS(Sales!$U$2:$U$10811,Sales!$M$2:$M$10811,$D51,Sales!$F$2:$F$10811,$B51,Sales!$H$2:$H$10811,$C51) -> 15 | J51: =SUMIFS(Sales!$V$2:$V$10811,Sales!$M$2:$M$10811,$D51,Sales!$F$2:$F$10811,$B51,Sales!$H$2:$H$10811,$C51) -> 6277.15
A52: NA | B52: =Time!$E$30 -> 2017_18 | C52: =List!$I$2 -> London | D52: Drone | E52: =SUMIFS(Sales!$Z$2:$Z$10811,Sales!$M$2:$M$10811,$D52,Sales!$F$2:$F$10811,$B52,Sales!$H$2:$H$10811,$C52) -> 482541.78 | F52: =E52/Time!$E$28 -> 1322.032274 | G52: =COUNTIFS(Sales!$M$2:$M$10811,$D52,Sales!$F$2:$F$10811,$B52,Sales!$H$2:$H$10811,$C52) -> 108 | H52: =SUMIFS(Sales!$T$2:$T$10811,Sales!$M$2:$M$10811,$D52,Sales!$F$2:$F$10811,$B52,Sales!$H$2:$H$10811,$C52) -> 2225 | I52: =SUMIFS(Sales!$U$2:$U$10811,Sales!$M$2:$M$10811,$D52,Sales!$F$2:$F$10811,$B52,Sales!$H$2:$H$10811,$C52) -> 11 | J52: =SUMIFS(Sales!$V$2:$V$10811,Sales!$M$2:$M$10811,$D52,Sales!$F$2:$F$10811,$B52,Sales!$H$2:$H$10811,$C52) -> 8107.19
B54: Total | E54: =SUM(E43:E53) -> 8530326.6 | F54: 23370.75781 | G54: 2126 | H54: 41445 | I54: 243 | J54: 92171.97
A57: Day Index | B57: Year | C57: City | D57: Day | E57: Weekly Sales | F57: Avg Daily Sales | G57: Return | H57: Return Amt | I57: Customers | J57: Orders | K57: Discount QTY | L57: Discount Amt | M57: COGS | N57: Shipping | O57: =Time!$E$30 -> 2017_18 | P57: % Change | Q57: Move
A58: 2 | B58: =Time!$E$29 -> 2018_19 | C58: =List!$I$2 -> London | D58: Monday | E58: =SUMIFS(Sales!$Z$2:$Z$10811,Sales!$C$2:$C$10811,$A58,Sales!$F$2:$F$10811,$B58,Sales!$H$2:$H$10811,$C58) -> 934402.84 | F58: =E58/Time!$S10 -> 17969.28538 | G58: =SUMIFS(Sales!$U$2:$U$10811,Sales!$C$2:$C$10811,$A58,Sales!$F$2:$F$10811,$B58,Sales!$H$2:$H$10811,$C58) -> 21 | H58: =SUMIFS(Sales!$V$2:$V$10811,Sales!$C$2:$C$10811,$A58,Sales!$F$2:$F$10811,$B58,Sales!$H$2:$H$10811,$C58) -> 5522.05 | I58: =COUNTIFS(Sales!$F$2:$F$10811,$B58,Sales!$C$2:$C$10811,$A58,Sales!$H$2:$H$10811,$C58) -> 216 | J58: =SUMIFS(Sales!$T$2:$T$10811,Sales!$C$2:$C$10811,$A58,Sales!$F$2:$F$10811,$B58,Sales!$H$2:$H$10811,$C58) -> 4117 | K58: =SUMIFS(Sales!W$2:W$10811,Sales!$C$2:$C$10811,$A58,Sales!$F$2:$F$10811,$B58,Sales!$H$2:$H$10811,$C58) -> 342 | L58: =SUMIFS(Sales!X$2:X$10811,Sales!$C$2:$C$10811,$A58,Sales!$F$2:$F$10811,$B58,Sales!$H$2:$H$10811,$C58) -> 10950.531 | M58: =SUMIFS(Sales!$Y$2:$Y$10811,Sales!$C$2:$C$10811,$A58,Sales!$F$2:$F$10811,$B58,Sales!$H$2:$H$10811,$C58) -> 380252.9 | N58: =SUMIFS(Sales!$Q$2:$Q$10811,Sales!$C$2:$C$10811,$A58,Sales!$F$2:$F$10811,$B58,Sales!$H$2:$H$10811,$C58) -> 9120 | O58: =SUMIFS(Sales!$Z$2:$Z$10811,Sales!$C$2:$C$10811,$A58,Sales!$F$2:$F$10811,$O$57,Sales!$H$2:$H$10811,$C58) -> 1158166.62 | P58: =(E58-O58)/O58 -> -0.1932051711 | Q58: =VLOOKUP(P58,List!$D$2:$E$4,2,1) -> ▼
A59: 3 | B59: =Time!$E$29 -> 2018_19 | C59: =List!$I$2 -> London | D59: Tuesday | E59: =SUMIFS(Sales!$Z$2:$Z$10811,Sales!$C$2:$C$10811,$A59,Sales!$F$2:$F$10811,$B59,Sales!$H$2:$H$10811,$C59) -> 1084583.43 | F59: =E59/Time!$S11 -> 20857.37365 | G59: =SUMIFS(Sales!$U$2:$U$10811,Sales!$C$2:$C$10811,$A59,Sales!$F$2:$F$10811,$B59,Sales!$H$2:$H$10811,$C59) -> 26 | H59: =SUMIFS(Sales!$V$2:$V$10811,Sales!$C$2:$C$10811,$A59,Sales!$F$2:$F$10811,$B59,Sales!$H$2:$H$10811,$C59) -> 8472.96 | I59: =COUNTIFS(Sales!$F$2:$F$10811,$B59,Sales!$C$2:$C$10811,$A59,Sales!$H$2:$H$10811,$C59) -> 202 | J59: =SUMIFS(Sales!$T$2:$T$10811,Sales!$C$2:$C$10811,$A59,Sales!$F$2:$F$10811,$B59,Sales!$H$2:$H$10811,$C59) -> 5690 | K59: =SUMIFS(Sales!W$2:W$10811,Sales!$C$2:$C$10811,$A59,Sales!$F$2:$F$10811,$B59,Sales!$H$2:$H$10811,$C59) -> 298 | L59: =SUMIFS(Sales!X$2:X$10811,Sales!$C$2:$C$10811,$A59,Sales!$F$2:$F$10811,$B59,Sales!$H$2:$H$10811,$C59) -> 10361.8855 | M59: =SUMIFS(Sales!$Y$2:$Y$10811,Sales!$C$2:$C$10811,$A59,Sales!$F$2:$F$10811,$B59,Sales!$H$2:$H$10811,$C59) -> 433021.39 | N59: =SUMIFS(Sales!$Q$2:$Q$10811,Sales!$C$2:$C$10811,$A59,Sales!$F$2:$F$10811,$B59,Sales!$H$2:$H$10811,$C59) -> 9075 | O59: =SUMIFS(Sales!$Z$2:$Z$10811,Sales!$C$2:$C$10811,$A59,Sales!$F$2:$F$10811,$O$57,Sales!$H$2:$H$10811,$C59) -> 1162620.39 | P59: -0.06712161654 | Q59: =VLOOKUP(P59,List!$D$2:$E$4,2,1) -> ▼
A60: 4 | B60: =Time!$E$29 -> 2018_19 | C60: =List!$I$2 -> London | D60: Wednesday | E60: =SUMIFS(Sales!$Z$2:$Z$10811,Sales!$C$2:$C$10811,$A60,Sales!$F$2:$F$10811,$B60,Sales!$H$2:$H$10811,$C60) -> 1067485.38 | F60: =E60/Time!$S12 -> 20528.565 | G60: =SUMIFS(Sales!$U$2:$U$10811,Sales!$C$2:$C$10811,$A60,Sales!$F$2:$F$10811,$B60,Sales!$H$2:$H$10811,$C60) -> 25 | H60: =SUMIFS(Sales!$V$2:$V$10811,Sales!$C$2:$C$10811,$A60,Sales!$F$2:$F$10811,$B60,Sales!$H$2:$H$10811,$C60) -> 7444.55 | I60: =COUNTIFS(Sales!$F$2:$F$10811,$B60,Sales!$C$2:$C$10811,$A60,Sales!$H$2:$H$10811,$C60) -> 200 | J60: =SUMIFS(Sales!$T$2:$T$10811,Sales!$C$2:$C$10811,$A60,Sales!$F$2:$F$10811,$B60,Sales!$H$2:$H$10811,$C60) -> 3472 | K60: =SUMIFS(Sales!W$2:W$10811,Sales!$C$2:$C$10811,$A60,Sales!$F$2:$F$10811,$B60,Sales!$H$2:$H$10811,$C60) -> 303 | L60: =SUMIFS(Sales!X$2:X$10811,Sales!$C$2:$C$10811,$A60,Sales!$F$2:$F$10811,$B60,Sales!$H$2:$H$10811,$C60) -> 9847.8965 | M60: =SUMIFS(Sales!$Y$2:$Y$10811,Sales!$C$2:$C$10811,$A60,Sales!$F$2:$F$10811,$B60,Sales!$H$2:$H$10811,$C60) -> 445089.58 | N60: =SUMIFS(Sales!$Q$2:$Q$10811,Sales!$C$2:$C$10811,$A60,Sales!$F$2:$F$10811,$B60,Sales!$H$2:$H$10811,$C60) -> 9130 | O60: =SUMIFS(Sales!$Z$2:$Z$10811,Sales!$C$2:$C$10811,$A60,Sales!$F$2:$F$10811,$O$57,Sales!$H$2:$H$10811,$C60) -> 1260461.55 | P60: -0.1530996086 | Q60: =VLOOKUP(P60,List!$D$2:$E$4,2,1) -> ▼
A61: 5 | B61: =Time!$E$29 -> 2018_19 | C61: =List!$I$2 -> London | D61: Thursday | E61: =SUMIFS(Sales!$Z$2:$Z$10811,Sales!$C$2:$C$10811,$A61,Sales!$F$2:$F$10811,$B61,Sales!$H$2:$H$10811,$C61) -> 1129795.8 | F61: =E61/Time!$S13 -> 21726.84231 | G61: =SUMIFS(Sales!$U$2:$U$10811,Sales!$C$2:$C$10811,$A61,Sales!$F$2:$F$10811,$B61,Sales!$H$2:$H$10811,$C61) -> 36 | H61: =SUMIFS(Sales!$V$2:$V$10811,Sales!$C$2:$C$10811,$A61,Sales!$F$2:$F$10811,$B61,Sales!$H$2:$H$10811,$C61) -> 10721.99 | I61: =COUNTIFS(Sales!$F$2:$F$10811,$B61,Sales!$C$2:$C$10811,$A61,Sales!$H$2:$H$10811,$C61) -> 197 | J61: =SUMIFS(Sales!$T$2:$T$10811,Sales!$C$2:$C$10811,$A61,Sales!$F$2:$F$10811,$B61,Sales!$H$2:$H$10811,$C61) -> 5530 | K61: =SUMIFS(Sales!W$2:W$10811,Sales!$C$2:$C$10811,$A61,Sales!$F$2:$F$10811,$B61,Sales!$H$2:$H$10811,$C61) -> 290 | L61: =SUMIFS(Sales!X$2:X$10811,Sales!$C$2:$C$10811,$A61,Sales!$F$2:$F$10811,$B61,Sales!$H$2:$H$10811,$C61) -> 12716.918 | M61: =SUMIFS(Sales!$Y$2:$Y$10811,Sales!$C$2:$C$10811,$A61,Sales!$F$2:$F$10811,$B61,Sales!$H$2:$H$10811,$C61) -> 475407.15 | N61: =SUMIFS(Sales!$Q$2:$Q$10811,Sales!$C$2:$C$10811,$A61,Sales!$F$2:$F$10811,$B61,Sales!$H$2:$H$10811,$C61) -> 9835 | O61: =SUMIFS(Sales!$Z$2:$Z$10811,Sales!$C$2:$C$10811,$A61,Sales!$F$2:$F$10811,$O$57,Sales!$H$2:$H$10811,$C61) -> 1206644.41 | P61: -0.06368786808 | Q61: =VLOOKUP(P61,List!$D$2:$E$4,2,1) -> ▼
A62: 6 | B62: =Time!$E$29 -> 2018_19 | C62: =List!$I$2 -> London | D62: Friday | E62: =SUMIFS(Sales!$Z$2:$Z$10811,Sales!$C$2:$C$10811,$A62,Sales!$F$2:$F$10811,$B62,Sales!$H$2:$H$10811,$C62) -> 1450920.07 | F62: =E62/Time!$S14 -> 27902.30904 | G62: =SUMIFS(Sales!$U$2:$U$10811,Sales!$C$2:$C$10811,$A62,Sales!$F$2:$F$10811,$B62,Sales!$H$2:$H$10811,$C62) -> 26 | H62: =SUMIFS(Sales!$V$2:$V$10811,Sales!$C$2:$C$10811,$A62,Sales!$F$2:$F$10811,$B62,Sales!$H$2:$H$10811,$C62) -> 10369.6 | I62: =COUNTIFS(Sales!$F$2:$F$10811,$B62,Sales!$C$2:$C$10811,$A62,Sales!$H$2:$H$10811,$C62) -> 198 | J62: =SUMIFS(Sales!$T$2:$T$10811,Sales!$C$2:$C$10811,$A62,Sales!$F$2:$F$10811,$B62,Sales!$H$2:$H$10811,$C62) -> 5214 | K62: =SUMIFS(Sales!W$2:W$10811,Sales!$C$2:$C$10811,$A62,Sales!$F$2:$F$10811,$B62,Sales!$H$2:$H$10811,$C62) -> 291 | L62: =SUMIFS(Sales!X$2:X$10811,Sales!$C$2:$C$10811,$A62,Sales!$F$2:$F$10811,$B62,Sales!$H$2:$H$10811,$C62) -> 11747.4635 | M62: =SUMIFS(Sales!$Y$2:$Y$10811,Sales!$C$2:$C$10811,$A62,Sales!$F$2:$F$10811,$B62,Sales!$H$2:$H$10811,$C62) -> 566705.03 | N62: =SUMIFS(Sales!$Q$2:$Q$10811,Sales!$C$2:$C$10811,$A62,Sales!$F$2:$F$10811,$B62,Sales!$H$2:$H$10811,$C62) -> 8640 | O62: =SUMIFS(Sales!$Z$2:$Z$10811,Sales!$C$2:$C$10811,$A62,Sales!$F$2:$F$10811,$O$57,Sales!$H$2:$H$10811,$C62) -> 1443143.75 | P62: 0.005388458357 | Q62: =VLOOKUP(P62,List!$D$2:$E$4,2,1) -> ►
A63: 7 | B63: =Time!$E$29 -> 2018_19 | C63: =List!$I$2 -> London | D63: Saturday | E63: =SUMIFS(Sales!$Z$2:$Z$10811,Sales!$C$2:$C$10811,$A63,Sales!$F$2:$F$10811,$B63,Sales!$H$2:$H$10811,$C63) -> 1400771.35 | F63: =E63/Time!$S15 -> 26937.91058 | G63: =SUMIFS(Sales!$U$2:$U$10811,Sales!$C$2:$C$10811,$A63,Sales!$F$2:$F$10811,$B63,Sales!$H$2:$H$10811,$C63) -> 28 | H63: =SUMIFS(Sales!$V$2:$V$10811,Sales!$C$2:$C$10811,$A63,Sales!$F$2:$F$10811,$B63,Sales!$H$2:$H$10811,$C63) -> 10678.8 | I63: =COUNTIFS(Sales!$F$2:$F$10811,$B63,Sales!$C$2:$C$10811,$A63,Sales!$H$2:$H$10811,$C63) -> 215 | J63: =SUMIFS(Sales!$T$2:$T$10811,Sales!$C$2:$C$10811,$A63,Sales!$F$2:$F$10811,$B63,Sales!$H$2:$H$10811,$C63) -> 5118 | K63: =SUMIFS(Sales!W$2:W$10811,Sales!$C$2:$C$10811,$A63,Sales!$F$2:$F$10811,$B63,Sales!$H$2:$H$10811,$C63) -> 309 | L63: =SUMIFS(Sales!X$2:X$10811,Sales!$C$2:$C$10811,$A63,Sales!$F$2:$F$10811,$B63,Sales!$H$2:$H$10811,$C63) -> 12643.5035 | M63: =SUMIFS(Sales!$Y$2:$Y$10811,Sales!$C$2:$C$10811,$A63,Sales!$F$2:$F$10811,$B63,Sales!$H$2:$H$10811,$C63) -> 556639.76 | N63: =SUMIFS(Sales!$Q$2:$Q$10811,Sales!$C$2:$C$10811,$A63,Sales!$F$2:$F$10811,$B63,Sales!$H$2:$H$10811,$C63) -> 9835 | O63: =SUMIFS(Sales!$Z$2:$Z$10811,Sales!$C$2:$C$10811,$A63,Sales!$F$2:$F$10811,$O$57,Sales!$H$2:$H$10811,$C63) -> 1189386.99 | P63: 0.1777254685 | Q63: =VLOOKUP(P63,List!$D$2:$E$4,2,1) -> ▲
A64: 1 | B64: =Time!$E$29 -> 2018_19 | C64: =List!$I$2 -> London | D64: Sunday | E64: =SUMIFS(Sales!$Z$2:$Z$10811,Sales!$C$2:$C$10811,$A64,Sales!$F$2:$F$10811,$B64,Sales!$H$2:$H$10811,$C64) -> 1382186.97 | F64: =E64/Time!$S16 -> 26078.99943 | G64: =SUMIFS(Sales!$U$2:$U$10811,Sales!$C$2:$C$10811,$A64,Sales!$F$2:$F$10811,$B64,Sales!$H$2:$H$10811,$C64) -> 25 | H64: =SUMIFS(Sales!$V$2:$V$10811,Sales!$C$2:$C$10811,$A64,Sales!$F$2:$F$10811,$B64,Sales!$H$2:$H$10811,$C64) -> 9100.89 | I64: =COUNTIFS(Sales!$F$2:$F$10811,$B64,Sales!$C$2:$C$10811,$A64,Sales!$H$2:$H$10811,$C64) -> 214 | J64: =SUMIFS(Sales!$T$2:$T$10811,Sales!$C$2:$C$10811,$A64,Sales!$F$2:$F$10811,$B64,Sales!$H$2:$H$10811,$C64) -> 4367 | K64: =SUMIFS(Sales!W$2:W$10811,Sales!$C$2:$C$10811,$A64,Sales!$F$2:$F$10811,$B64,Sales!$H$2:$H$10811,$C64) -> 279 | L64: =SUMIFS(Sales!X$2:X$10811,Sales!$C$2:$C$10811,$A64,Sales!$F$2:$F$10811,$B64,Sales!$H$2:$H$10811,$C64) -> 11966.2865 | M64: =SUMIFS(Sales!$Y$2:$Y$10811,Sales!$C$2:$C$10811,$A64,Sales!$F$2:$F$10811,$B64,Sales!$H$2:$H$10811,$C64) -> 544834 | N64: =SUMIFS(Sales!$Q$2:$Q$10811,Sales!$C$2:$C$10811,$A64,Sales!$F$2:$F$10811,$B64,Sales!$H$2:$H$10811,$C64) -> 9830 | O64: =SUMIFS(Sales!$Z$2:$Z$10811,Sales!$C$2:$C$10811,$A64,Sales!$F$2:$F$10811,$O$57,Sales!$H$2:$H$10811,$C64) -> 1109902.89 | P64: 0.2453224354 | Q64: =VLOOKUP(P64,List!$D$2:$E$4,2,1) -> ▲
A67: Day Index | B67: Year | C67: City | D67: Day | E67: 1 | F67: 2 | G67: 3 | H67: 4 | I67: 5 | J67: 6 | K67: 7 | L67: 8 | M67: 9 | N67: 10 | O67: 11 | P67: 12
A68: 2 | B68: =Time!$E$29 -> 2018_19 | C68: =List!$I$2 -> London | D68: Monday | E68: =SUMIFS(Sales!$Z$2:$Z$10811,Sales!$C$2:$C$10811,$A68,Sales!$F$2:$F$10811,$B68,Sales!$D$2:$D$10811,E$29,Sales!$H$2:$H$10811,$C68) -> 109994.22 | F68: =SUMIFS(Sales!$Z$2:$Z$10811,Sales!$C$2:$C$10811,$A68,Sales!$F$2:$F$10811,$B68,Sales!$D$2:$D$10811,F$29,Sales!$H$2:$H$10811,$C68) -> 180278.33 | G68: =SUMIFS(Sales!$Z$2:$Z$10811,Sales!$C$2:$C$10811,$A68,Sales!$F$2:$F$10811,$B68,Sales!$D$2:$D$10811,G$29,Sales!$H$2:$H$10811,$C68) -> 32004.73 | H68: =SUMIFS(Sales!$Z$2:$Z$10811,Sales!$C$2:$C$10811,$A68,Sales!$F$2:$F$10811,$B68,Sales!$D$2:$D$10811,H$29,Sales!$H$2:$H$10811,$C68) -> 83870.15 | I68: =SUMIFS(Sales!$Z$2:$Z$10811,Sales!$C$2:$C$10811,$A68,Sales!$F$2:$F$10811,$B68,Sales!$D$2:$D$10811,I$29,Sales!$H$2:$H$10811,$C68) -> 55509.12 | J68: =SUMIFS(Sales!$Z$2:$Z$10811,Sales!$C$2:$C$10811,$A68,Sales!$F$2:$F$10811,$B68,Sales!$D$2:$D$10811,J$29,Sales!$H$2:$H$10811,$C68) -> 91993.64 | K68: =SUMIFS(Sales!$Z$2:$Z$10811,Sales!$C$2:$C$10811,$A68,Sales!$F$2:$F$10811,$B68,Sales!$D$2:$D$10811,K$29,Sales!$H$2:$H$10811,$C68) -> 90788.25 | L68: =SUMIFS(Sales!$Z$2:$Z$10811,Sales!$C$2:$C$10811,$A68,Sales!$F$2:$F$10811,$B68,Sales!$D$2:$D$10811,L$29,Sales!$H$2:$H$10811,$C68) -> 69095.14 | M68: =SUMIFS(Sales!$Z$2:$Z$10811,Sales!$C$2:$C$10811,$A68,Sales!$F$2:$F$10811,$B68,Sales!$D$2:$D$10811,M$29,Sales!$H$2:$H$10811,$C68) -> 34526.13 | N68: =SUMIFS(Sales!$Z$2:$Z$10811,Sales!$C$2:$C$10811,$A68,Sales!$F$2:$F$10811,$B68,Sales!$D$2:$D$10811,N$29,Sales!$H$2:$H$10811,$C68) -> 106595.2 | O68: =SUMIFS(Sales!$Z$2:$Z$10811,Sales!$C$2:$C$10811,$A68,Sales!$F$2:$F$10811,$B68,Sales!$D$2:$D$10811,O$29,Sales!$H$2:$H$10811,$C68) -> 37076.01 | P68: =SUMIFS(Sales!$Z$2:$Z$10811,Sales!$C$2:$C$10811,$A68,Sales!$F$2:$F$10811,$B68,Sales!$D$2:$D$10811,P$29,Sales!$H$2:$H$10811,$C68) -> 42671.92
A69: 3 | B69: =Time!$E$29 -> 2018_19 | C69: =List!$I$2 -> London | D69: Tuesday | E69: =SUMIFS(Sales!$Z$2:$Z$10811,Sales!$C$2:$C$10811,$A69,Sales!$F$2:$F$10811,$B69,Sales!$D$2:$D$10811,E$29,Sales!$H$2:$H$10811,$C69) -> 130974.17 | F69: =SUMIFS(Sales!$Z$2:$Z$10811,Sales!$C$2:$C$10811,$A69,Sales!$F$2:$F$10811,$B69,Sales!$D$2:$D$10811,F$29,Sales!$H$2:$H$10811,$C69) -> 36771.62 | G69: =SUMIFS(Sales!$Z$2:$Z$10811,Sales!$C$2:$C$10811,$A69,Sales!$F$2:$F$10811,$B69,Sales!$D$2:$D$10811,G$29,Sales!$H$2:$H$10811,$C69) -> 37994.89 | H69: =SUMIFS(Sales!$Z$2:$Z$10811,Sales!$C$2:$C$10811,$A69,Sales!$F$2:$F$10811,$B69,Sales!$D$2:$D$10811,H$29,Sales!$H$2:$H$10811,$C69) -> 168931.87 | I69: =SUMIFS(Sales!$Z$2:$Z$10811,Sales!$C$2:$C$10811,$A69,Sales!$F$2:$F$10811,$B69,Sales!$D$2:$D$10811,I$29,Sales!$H$2:$H$10811,$C69) -> 130735.04 | J69: =SUMIFS(Sales!$Z$2:$Z$10811,Sales!$C$2:$C$10811,$A69,Sales!$F$2:$F$10811,$B69,Sales!$D$2:$D$10811,J$29,Sales!$H$2:$H$10811,$C69) -> 71039.7 | K69: =SUMIFS(Sales!$Z$2:$Z$10811,Sales!$C$2:$C$10811,$A69,Sales!$F$2:$F$10811,$B69,Sales!$D$2:$D$10811,K$29,Sales!$H$2:$H$10811,$C69) -> 205376.12 | L69: =SUMIFS(Sales!$Z$2:$Z$10811,Sales!$C$2:$C$10811,$A69,Sales!$F$2:$F$10811,$B69,Sales!$D$2:$D$10811,L$29,Sales!$H$2:$H$10811,$C69) -> 61689.09 | M69: =SUMIFS(Sales!$Z$2:$Z$10811,Sales!$C$2:$C$10811,$A69,Sales!$F$2:$F$10811,$B69,Sales!$D$2:$D$10811,M$29,Sales!$H$2:$H$10811,$C69) -> 20834.47 | N69: =SUMIFS(Sales!$Z$2:$Z$10811,Sales!$C$2:$C$10811,$A69,Sales!$F$2:$F$10811,$B69,Sales!$D$2:$D$10811,N$29,Sales!$H$2:$H$10811,$C69) -> 152396.71 | O69: =SUMIFS(Sales!$Z$2:$Z$10811,Sales!$C$2:$C$10811,$A69,Sales!$F$2:$F$10811,$B69,Sales!$D$2:$D$10811,O$29,Sales!$H$2:$H$10811,$C69) -> 38314.4 | P69: =SUMIFS(Sales!$Z$2:$Z$10811,Sales!$C$2:$C$10811,$A69,Sales!$F$2:$F$10811,$B69,Sales!$D$2:$D$10811,P$29,Sales!$H$2:$H$10811,$C69) -> 29525.35
A70: 4 | B70: =Time!$E$29 -> 2018_19 | C70: =List!$I$2 -> London | D70: Wednesday | E70: =SUMIFS(Sales!$Z$2:$Z$10811,Sales!$C$2:$C$10811,$A70,Sales!$F$2:$F$10811,$B70,Sales!$D$2:$D$10811,E$29,Sales!$H$2:$H$10811,$C70) -> 76809.08 | F70: =SUMIFS(Sales!$Z$2:$Z$10811,Sales!$C$2:$C$10811,$A70,Sales!$F$2:$F$10811,$B70,Sales!$D$2:$D$10811,F$29,Sales!$H$2:$H$10811,$C70) -> 181345 | G70: =SUMIFS(Sales!$Z$2:$Z$10811,Sales!$C$2:$C$10811,$A70,Sales!$F$2:$F$10811,$B70,Sales!$D$2:$D$10811,G$29,Sales!$H$2:$H$10811,$C70) -> 182740.52 | H70: =SUMIFS(Sales!$Z$2:$Z$10811,Sales!$C$2:$C$10811,$A70,Sales!$F$2:$F$10811,$B70,Sales!$D$2:$D$10811,H$29,Sales!$H$2:$H$10811,$C70) -> 108580.98 | I70: =SUMIFS(Sales!$Z$2:$Z$10811,Sales!$C$2:$C$10811,$A70,Sales!$F$2:$F$10811,$B70,Sales!$D$2:$D$10811,I$29,Sales!$H$2:$H$10811,$C70) -> 28818.08 | J70: =SUMIFS(Sales!$Z$2:$Z$10811,Sales!$C$2:$C$10811,$A70,Sales!$F$2:$F$10811,$B70,Sales!$D$2:$D$10811,J$29,Sales!$H$2:$H$10811,$C70) -> 55297.12 | K70: =SUMIFS(Sales!$Z$2:$Z$10811,Sales!$C$2:$C$10811,$A70,Sales!$F$2:$F$10811,$B70,Sales!$D$2:$D$10811,K$29,Sales!$H$2:$H$10811,$C70) -> 44696.92 | L70: =SUMIFS(Sales!$Z$2:$Z$10811,Sales!$C$2:$C$10811,$A70,Sales!$F$2:$F$10811,$B70,Sales!$D$2:$D$10811,L$29,Sales!$H$2:$H$10811,$C70) -> 138319.93 | M70: =SUMIFS(Sales!$Z$2:$Z$10811,Sales!$C$2:$C$10811,$A70,Sales!$F$2:$F$10811,$B70,Sales!$D$2:$D$10811,M$29,Sales!$H$2:$H$10811,$C70) -> 29071.02 | N70: =SUMIFS(Sales!$Z$2:$Z$10811,Sales!$C$2:$C$10811,$A70,Sales!$F$2:$F$10811,$B70,Sales!$D$2:$D$10811,N$29,Sales!$H$2:$H$10811,$C70) -> 38023.17 | O70: =SUMIFS(Sales!$Z$2:$Z$10811,Sales!$C$2:$C$10811,$A70,Sales!$F$2:$F$10811,$B70,Sales!$D$2:$D$10811,O$29,Sales!$H$2:$H$10811,$C70) -> 139444.75 | P70: =SUMIFS(Sales!$Z$2:$Z$10811,Sales!$C$2:$C$10811,$A70,Sales!$F$2:$F$10811,$B70,Sales!$D$2:$D$10811,P$29,Sales!$H$2:$H$10811,$C70) -> 44338.81
A71: 5 | B71: =Time!$E$29 -> 2018_19 | C71: =List!$I$2 -> London | D71: Thursday | E71: =SUMIFS(Sales!$Z$2:$Z$10811,Sales!$C$2:$C$10811,$A71,Sales!$F$2:$F$10811,$B71,Sales!$D$2:$D$10811,E$29,Sales!$H$2:$H$10811,$C71) -> 38512.94 | F71: =SUMIFS(Sales!$Z$2:$Z$10811,Sales!$C$2:$C$10811,$A71,Sales!$F$2:$F$10811,$B71,Sales!$D$2:$D$10811,F$29,Sales!$H$2:$H$10811,$C71) -> 91362 | G71: =SUMIFS(Sales!$Z$2:$Z$10811,Sales!$C$2:$C$10811,$A71,Sales!$F$2:$F$10811,$B71,Sales!$D$2:$D$10811,G$29,Sales!$H$2:$H$10811,$C71) -> 89741.21 | H71: =SUMIFS(Sales!$Z$2:$Z$10811,Sales!$C$2:$C$10811,$A71,Sales!$F$2:$F$10811,$B71,Sales!$D$2:$D$10811,H$29,Sales!$H$2:$H$10811,$C71) -> 53120.9 | I71: =SUMIFS(Sales!$Z$2:$Z$10811,Sales!$C$2:$C$10811,$A71,Sales!$F$2:$F$10811,$B71,Sales!$D$2:$D$10811,I$29,Sales!$H$2:$H$10811,$C71) -> 319708.83 | J71: =SUMIFS(Sales!$Z$2:$Z$10811,Sales!$C$2:$C$10811,$A71,Sales!$F$2:$F$10811,$B71,Sales!$D$2:$D$10811,J$29,Sales!$H$2:$H$10811,$C71) -> 107359.34 | K71: =SUMIFS(Sales!$Z$2:$Z$10811,Sales!$C$2:$C$10811,$A71,Sales!$F$2:$F$10811,$B71,Sales!$D$2:$D$10811,K$29,Sales!$H$2:$H$10811,$C71) -> 61854.47 | L71: =SUMIFS(Sales!$Z$2:$Z$10811,Sales!$C$2:$C$10811,$A71,Sales!$F$2:$F$10811,$B71,Sales!$D$2:$D$10811,L$29,Sales!$H$2:$H$10811,$C71) -> 62702 | M71: =SUMIFS(Sales!$Z$2:$Z$10811,Sales!$C$2:$C$10811,$A71,Sales!$F$2:$F$10811,$B71,Sales!$D$2:$D$10811,M$29,Sales!$H$2:$H$10811,$C71) -> 44699.51 | N71: =SUMIFS(Sales!$Z$2:$Z$10811,Sales!$C$2:$C$10811,$A71,Sales!$F$2:$F$10811,$B71,Sales!$D$2:$D$10811,N$29,Sales!$H$2:$H$10811,$C71) -> 171745.18 | O71: =SUMIFS(Sales!$Z$2:$Z$10811,Sales!$C$2:$C$10811,$A71,Sales!$F$2:$F$10811,$B71,Sales!$D$2:$D$10811,O$29,Sales!$H$2:$H$10811,$C71) -> 46012.32 | P71: =SUMIFS(Sales!$Z$2:$Z$10811,Sales!$C$2:$C$10811,$A71,Sales!$F$2:$F$10811,$B71,Sales!$D$2:$D$10811,P$29,Sales!$H$2:$H$10811,$C71) -> 42977.1
A72: 6 | B72: =Time!$E$29 -> 2018_19 | C72: =List!$I$2 -> London | D72: Friday | E72: =SUMIFS(Sales!$Z$2:$Z$10811,Sales!$C$2:$C$10811,$A72,Sales!$F$2:$F$10811,$B72,Sales!$D$2:$D$10811,E$29,Sales!$H$2:$H$10811,$C72) -> 215386.48 | F72: =SUMIFS(Sales!$Z$2:$Z$10811,Sales!$C$2:$C$10811,$A72,Sales!$F$2:$F$10811,$B72,Sales!$D$2:$D$10811,F$29,Sales!$H$2:$H$10811,$C72) -> 233172.9 | G72: =SUMIFS(Sales!$Z$2:$Z$10811,Sales!$C$2:$C$10811,$A72,Sales!$F$2:$F$10811,$B72,Sales!$D$2:$D$10811,G$29,Sales!$H$2:$H$10811,$C72) -> 35926.65 | H72: =SUMIFS(Sales!$Z$2:$Z$10811,Sales!$C$2:$C$10811,$A72,Sales!$F$2:$F$10811,$B72,Sales!$D$2:$D$10811,H$29,Sales!$H$2:$H$10811,$C72) -> 175583.98 | I72: =SUMIFS(Sales!$Z$2:$Z$10811,Sales!$C$2:$C$10811,$A72,Sales!$F$2:$F$10811,$B72,Sales!$D$2:$D$10811,I$29,Sales!$H$2:$H$10811,$C72) -> 245834.99 | J72: =SUMIFS(Sales!$Z$2:$Z$10811,Sales!$C$2:$C$10811,$A72,Sales!$F$2:$F$10811,$B72,Sales!$D$2:$D$10811,J$29,Sales!$H$2:$H$10811,$C72) -> 102167.14 | K72: =SUMIFS(Sales!$Z$2:$Z$10811,Sales!$C$2:$C$10811,$A72,Sales!$F$2:$F$10811,$B72,Sales!$D$2:$D$10811,K$29,Sales!$H$2:$H$10811,$C72) -> 26397.5 | L72: =SUMIFS(Sales!$Z$2:$Z$10811,Sales!$C$2:$C$10811,$A72,Sales!$F$2:$F$10811,$B72,Sales!$D$2:$D$10811,L$29,Sales!$H$2:$H$10811,$C72) -> 74893.66 | M72: =SUMIFS(Sales!$Z$2:$Z$10811,Sales!$C$2:$C$10811,$A72,Sales!$F$2:$F$10811,$B72,Sales!$D$2:$D$10811,M$29,Sales!$H$2:$H$10811,$C72) -> 70058.79 | N72: =SUMIFS(Sales!$Z$2:$Z$10811,Sales!$C$2:$C$10811,$A72,Sales!$F$2:$F$10811,$B72,Sales!$D$2:$D$10811,N$29,Sales!$H$2:$H$10811,$C72) -> 84290.45 | O72: =SUMIFS(Sales!$Z$2:$Z$10811,Sales!$C$2:$C$10811,$A72,Sales!$F$2:$F$10811,$B72,Sales!$D$2:$D$10811,O$29,Sales!$H$2:$H$10811,$C72) -> 160081.95 | P72: =SUMIFS(Sales!$Z$2:$Z$10811,Sales!$C$2:$C$10811,$A72,Sales!$F$2:$F$10811,$B72,Sales!$D$2:$D$10811,P$29,Sales!$H$2:$H$10811,$C72) -> 27125.58
A73: 7 | B73: =Time!$E$29 -> 2018_19 | C73: =List!$I$2 -> London | D73: Saturday | E73: =SUMIFS(Sales!$Z$2:$Z$10811,Sales!$C$2:$C$10811,$A73,Sales!$F$2:$F$10811,$B73,Sales!$D$2:$D$10811,E$29,Sales!$H$2:$H$10811,$C73) -> 168380 | F73: =SUMIFS(Sales!$Z$2:$Z$10811,Sales!$C$2:$C$10811,$A73,Sales!$F$2:$F$10811,$B73,Sales!$D$2:$D$10811,F$29,Sales!$H$2:$H$10811,$C73) -> 38913.32 | G73: =SUMIFS(Sales!$Z$2:$Z$10811,Sales!$C$2:$C$10811,$A73,Sales!$F$2:$F$10811,$B73,Sales!$D$2:$D$10811,G$29,Sales!$H$2:$H$10811,$C73) -> 103282.26 | H73: =SUMIFS(Sales!$Z$2:$Z$10811,Sales!$C$2:$C$10811,$A73,Sales!$F$2:$F$10811,$B73,Sales!$D$2:$D$10811,H$29,Sales!$H$2:$H$10811,$C73) -> 189192.33 | I73: =SUMIFS(Sales!$Z$2:$Z$10811,Sales!$C$2:$C$10811,$A73,Sales!$F$2:$F$10811,$B73,Sales!$D$2:$D$10811,I$29,Sales!$H$2:$H$10811,$C73) -> 113459.23 | J73: =SUMIFS(Sales!$Z$2:$Z$10811,Sales!$C$2:$C$10811,$A73,Sales!$F$2:$F$10811,$B73,Sales!$D$2:$D$10811,J$29,Sales!$H$2:$H$10811,$C73) -> 137368.21 | K73: =SUMIFS(Sales!$Z$2:$Z$10811,Sales!$C$2:$C$10811,$A73,Sales!$F$2:$F$10811,$B73,Sales!$D$2:$D$10811,K$29,Sales!$H$2:$H$10811,$C73) -> 20982.07 | L73: =SUMIFS(Sales!$Z$2:$Z$10811,Sales!$C$2:$C$10811,$A73,Sales!$F$2:$F$10811,$B73,Sales!$D$2:$D$10811,L$29,Sales!$H$2:$H$10811,$C73) -> 42398.38 | M73: =SUMIFS(Sales!$Z$2:$Z$10811,Sales!$C$2:$C$10811,$A73,Sales!$F$2:$F$10811,$B73,Sales!$D$2:$D$10811,M$29,Sales!$H$2:$H$10811,$C73) -> 110173.98 | N73: =SUMIFS(Sales!$Z$2:$Z$10811,Sales!$C$2:$C$10811,$A73,Sales!$F$2:$F$10811,$B73,Sales!$D$2:$D$10811,N$29,Sales!$H$2:$H$10811,$C73) -> 204102.18 | O73: =SUMIFS(Sales!$Z$2:$Z$10811,Sales!$C$2:$C$10811,$A73,Sales!$F$2:$F$10811,$B73,Sales!$D$2:$D$10811,O$29,Sales!$H$2:$H$10811,$C73) -> 129374.87 | P73: =SUMIFS(Sales!$Z$2:$Z$10811,Sales!$C$2:$C$10811,$A73,Sales!$F$2:$F$10811,$B73,Sales!$D$2:$D$10811,P$29,Sales!$H$2:$H$10811,$C73) -> 143144.52
A74: 1 | B74: =Time!$E$29 -> 2018_19 | C74: =List!$I$2 -> London | D74: Sunday | E74: =SUMIFS(Sales!$Z$2:$Z$10811,Sales!$C$2:$C$10811,$A74,Sales!$F$2:$F$10811,$B74,Sales!$D$2:$D$10811,E$29,Sales!$H$2:$H$10811,$C74) -> 112901.81 | F74: =SUMIFS(Sales!$Z$2:$Z$10811,Sales!$C$2:$C$10811,$A74,Sales!$F$2:$F$10811,$B74,Sales!$D$2:$D$10811,F$29,Sales!$H$2:$H$10811,$C74) -> 150363.75 | G74: =SUMIFS(Sales!$Z$2:$Z$10811,Sales!$C$2:$C$10811,$A74,Sales!$F$2:$F$10811,$B74,Sales!$D$2:$D$10811,G$29,Sales!$H$2:$H$10811,$C74) -> 169977.08 | H74: =SUMIFS(Sales!$Z$2:$Z$10811,Sales!$C$2:$C$10811,$A74,Sales!$F$2:$F$10811,$B74,Sales!$D$2:$D$10811,H$29,Sales!$H$2:$H$10811,$C74) -> 137597.9 | I74: =SUMIFS(Sales!$Z$2:$Z$10811,Sales!$C$2:$C$10811,$A74,Sales!$F$2:$F$10811,$B74,Sales!$D$2:$D$10811,I$29,Sales!$H$2:$H$10811,$C74) -> 47795.24 | J74: =SUMIFS(Sales!$Z$2:$Z$10811,Sales!$C$2:$C$10811,$A74,Sales!$F$2:$F$10811,$B74,Sales!$D$2:$D$10811,J$29,Sales!$H$2:$H$10811,$C74) -> 135323.62 | K74: =SUMIFS(Sales!$Z$2:$Z$10811,Sales!$C$2:$C$10811,$A74,Sales!$F$2:$F$10811,$B74,Sales!$D$2:$D$10811,K$29,Sales!$H$2:$H$10811,$C74) -> 82532.85 | L74: =SUMIFS(Sales!$Z$2:$Z$10811,Sales!$C$2:$C$10811,$A74,Sales!$F$2:$F$10811,$B74,Sales!$D$2:$D$10811,L$29,Sales!$H$2:$H$10811,$C74) -> 68978.06 | M74: =SUMIFS(Sales!$Z$2:$Z$10811,Sales!$C$2:$C$10811,$A74,Sales!$F$2:$F$10811,$B74,Sales!$D$2:$D$10811,M$29,Sales!$H$2:$H$10811,$C74) -> 190450.03 | N74: =SUMIFS(Sales!$Z$2:$Z$10811,Sales!$C$2:$C$10811,$A74,Sales!$F$2:$F$10811,$B74,Sales!$D$2:$D$10811,N$29,Sales!$H$2:$H$10811,$C74) -> 104855.1 | O74: =SUMIFS(Sales!$Z$2:$Z$10811,Sales!$C$2:$C$10811,$A74,Sales!$F$2:$F$10811,$B74,Sales!$D$2:$D$10811,O$29,Sales!$H$2:$H$10811,$C74) -> 43495.16 | P74: =SUMIFS(Sales!$Z$2:$Z$10811,Sales!$C$2:$C$10811,$A74,Sales!$F$2:$F$10811,$B74,Sales!$D$2:$D$10811,P$29,Sales!$H$2:$H$10811,$C74) -> 137916.37
A77: Day Index | B77: Year | C77: City | D77: Day | E77: 1 | F77: 2 | G77: 3 | H77: 4 | I77: 5 | J77: 6 | K77: 7 | L77: 8 | M77: 9 | N77: 10 | O77: 11 | P77: 12
A78: 2 | B78: =Time!$E$29 -> 2018_19 | C78: =List!$I$2 -> London | D78: Monday | E78: =SUMIFS(Sales!$Y$2:$Y$10811,Sales!$C$2:$C$10811,$A78,Sales!$F$2:$F$10811,$B78,Sales!$D$2:$D$10811,E$29,Sales!$H$2:$H$10811,$C78) -> 43669.04 | F78: =SUMIFS(Sales!$Y$2:$Y$10811,Sales!$C$2:$C$10811,$A78,Sales!$F$2:$F$10811,$B78,Sales!$D$2:$D$10811,F$29,Sales!$H$2:$H$10811,$C78) -> 63501.84 | G78: =SUMIFS(Sales!$Y$2:$Y$10811,Sales!$C$2:$C$10811,$A78,Sales!$F$2:$F$10811,$B78,Sales!$D$2:$D$10811,G$29,Sales!$H$2:$H$10811,$C78) -> 14575.98 | H78: =SUMIFS(Sales!$Y$2:$Y$10811,Sales!$C$2:$C$10811,$A78,Sales!$F$2:$F$10811,$B78,Sales!$D$2:$D$10811,H$29,Sales!$H$2:$H$10811,$C78) -> 38692.9 | I78: =SUMIFS(Sales!$Y$2:$Y$10811,Sales!$C$2:$C$10811,$A78,Sales!$F$2:$F$10811,$B78,Sales!$D$2:$D$10811,I$29,Sales!$H$2:$H$10811,$C78) -> 26362.87 | J78: =SUMIFS(Sales!$Y$2:$Y$10811,Sales!$C$2:$C$10811,$A78,Sales!$F$2:$F$10811,$B78,Sales!$D$2:$D$10811,J$29,Sales!$H$2:$H$10811,$C78) -> 37400.91 | K78: =SUMIFS(Sales!$Y$2:$Y$10811,Sales!$C$2:$C$10811,$A78,Sales!$F$2:$F$10811,$B78,Sales!$D$2:$D$10811,K$29,Sales!$H$2:$H$10811,$C78) -> 36965.54 | L78: =SUMIFS(Sales!$Y$2:$Y$10811,Sales!$C$2:$C$10811,$A78,Sales!$F$2:$F$10811,$B78,Sales!$D$2:$D$10811,L$29,Sales!$H$2:$H$10811,$C78) -> 30476.54 | M78: =SUMIFS(Sales!$Y$2:$Y$10811,Sales!$C$2:$C$10811,$A78,Sales!$F$2:$F$10811,$B78,Sales!$D$2:$D$10811,M$29,Sales!$H$2:$H$10811,$C78) -> 14664.43 | N78: =SUMIFS(Sales!$Y$2:$Y$10811,Sales!$C$2:$C$10811,$A78,Sales!$F$2:$F$10811,$B78,Sales!$D$2:$D$10811,N$29,Sales!$H$2:$H$10811,$C78) -> 40799.24 | O78: =SUMIFS(Sales!$Y$2:$Y$10811,Sales!$C$2:$C$10811,$A78,Sales!$F$2:$F$10811,$B78,Sales!$D$2:$D$10811,O$29,Sales!$H$2:$H$10811,$C78) -> 15347.89 | P78: =SUMIFS(Sales!$Y$2:$Y$10811,Sales!$C$2:$C$10811,$A78,Sales!$F$2:$F$10811,$B78,Sales!$D$2:$D$10811,P$29,Sales!$H$2:$H$10811,$C78) -> 17795.72
A79: 3 | B79: =Time!$E$29 -> 2018_19 | C79: =List!$I$2 -> London | D79: Tuesday | E79: =SUMIFS(Sales!$Y$2:$Y$10811,Sales!$C$2:$C$10811,$A79,Sales!$F$2:$F$10811,$B79,Sales!$D$2:$D$10811,E$29,Sales!$H$2:$H$10811,$C79) -> 51816.01 | F79: =SUMIFS(Sales!$Y$2:$Y$10811,Sales!$C$2:$C$10811,$A79,Sales!$F$2:$F$10811,$B79,Sales!$D$2:$D$10811,F$29,Sales!$H$2:$H$10811,$C79) -> 15191.56 | G79: =SUMIFS(Sales!$Y$2:$Y$10811,Sales!$C$2:$C$10811,$A79,Sales!$F$2:$F$10811,$B79,Sales!$D$2:$D$10811,G$29,Sales!$H$2:$H$10811,$C79) -> 17430.62 | H79: =SUMIFS(Sales!$Y$2:$Y$10811,Sales!$C$2:$C$10811,$A79,Sales!$F$2:$F$10811,$B79,Sales!$D$2:$D$10811,H$29,Sales!$H$2:$H$10811,$C79) -> 65126.77 | I79: =SUMIFS(Sales!$Y$2:$Y$10811,Sales!$C$2:$C$10811,$A79,Sales!$F$2:$F$10811,$B79,Sales!$D$2:$D$10811,I$29,Sales!$H$2:$H$10811,$C79) -> 53955.88 | J79: =SUMIFS(Sales!$Y$2:$Y$10811,Sales!$C$2:$C$10811,$A79,Sales!$F$2:$F$10811,$B79,Sales!$D$2:$D$10811,J$29,Sales!$H$2:$H$10811,$C79) -> 31899.57 | K79: =SUMIFS(Sales!$Y$2:$Y$10811,Sales!$C$2:$C$10811,$A79,Sales!$F$2:$F$10811,$B79,Sales!$D$2:$D$10811,K$29,Sales!$H$2:$H$10811,$C79) -> 71343.92 | L79: =SUMIFS(Sales!$Y$2:$Y$10811,Sales!$C$2:$C$10811,$A79,Sales!$F$2:$F$10811,$B79,Sales!$D$2:$D$10811,L$29,Sales!$H$2:$H$10811,$C79) -> 26278.95 | M79: =SUMIFS(Sales!$Y$2:$Y$10811,Sales!$C$2:$C$10811,$A79,Sales!$F$2:$F$10811,$B79,Sales!$D$2:$D$10811,M$29,Sales!$H$2:$H$10811,$C79) -> 9524.48 | N79: =SUMIFS(Sales!$Y$2:$Y$10811,Sales!$C$2:$C$10811,$A79,Sales!$F$2:$F$10811,$B79,Sales!$D$2:$D$10811,N$29,Sales!$H$2:$H$10811,$C79) -> 58616 | O79: =SUMIFS(Sales!$Y$2:$Y$10811,Sales!$C$2:$C$10811,$A79,Sales!$F$2:$F$10811,$B79,Sales!$D$2:$D$10811,O$29,Sales!$H$2:$H$10811,$C79) -> 17335.65 | P79: =SUMIFS(Sales!$Y$2:$Y$10811,Sales!$C$2:$C$10811,$A79,Sales!$F$2:$F$10811,$B79,Sales!$D$2:$D$10811,P$29,Sales!$H$2:$H$10811,$C79) -> 14501.98
A80: 4 | B80: =Time!$E$29 -> 2018_19 | C80: =List!$I$2 -> London | D80: Wednesday | E80: =SUMIFS(Sales!$Y$2:$Y$10811,Sales!$C$2:$C$10811,$A80,Sales!$F$2:$F$10811,$B80,Sales!$D$2:$D$10811,E$29,Sales!$H$2:$H$10811,$C80) -> 35853.12 | F80: =SUMIFS(Sales!$Y$2:$Y$10811,Sales!$C$2:$C$10811,$A80,Sales!$F$2:$F$10811,$B80,Sales!$D$2:$D$10811,F$29,Sales!$H$2:$H$10811,$C80) -> 76265.33 | G80: =SUMIFS(Sales!$Y$2:$Y$10811,Sales!$C$2:$C$10811,$A80,Sales!$F$2:$F$10811,$B80,Sales!$D$2:$D$10811,G$29,Sales!$H$2:$H$10811,$C80) -> 68551.02 | H80: =SUMIFS(Sales!$Y$2:$Y$10811,Sales!$C$2:$C$10811,$A80,Sales!$F$2:$F$10811,$B80,Sales!$D$2:$D$10811,H$29,Sales!$H$2:$H$10811,$C80) -> 49242.03 | I80: =SUMIFS(Sales!$Y$2:$Y$10811,Sales!$C$2:$C$10811,$A80,Sales!$F$2:$F$10811,$B80,Sales!$D$2:$D$10811,I$29,Sales!$H$2:$H$10811,$C80) -> 12372.41 | J80: =SUMIFS(Sales!$Y$2:$Y$10811,Sales!$C$2:$C$10811,$A80,Sales!$F$2:$F$10811,$B80,Sales!$D$2:$D$10811,J$29,Sales!$H$2:$H$10811,$C80) -> 25121.86 | K80: =SUMIFS(Sales!$Y$2:$Y$10811,Sales!$C$2:$C$10811,$A80,Sales!$F$2:$F$10811,$B80,Sales!$D$2:$D$10811,K$29,Sales!$H$2:$H$10811,$C80) -> 20359.69 | L80: =SUMIFS(Sales!$Y$2:$Y$10811,Sales!$C$2:$C$10811,$A80,Sales!$F$2:$F$10811,$B80,Sales!$D$2:$D$10811,L$29,Sales!$H$2:$H$10811,$C80) -> 49463.95 | M80: =SUMIFS(Sales!$Y$2:$Y$10811,Sales!$C$2:$C$10811,$A80,Sales!$F$2:$F$10811,$B80,Sales!$D$2:$D$10811,M$29,Sales!$H$2:$H$10811,$C80) -> 12882.12 | N80: =SUMIFS(Sales!$Y$2:$Y$10811,Sales!$C$2:$C$10811,$A80,Sales!$F$2:$F$10811,$B80,Sales!$D$2:$D$10811,N$29,Sales!$H$2:$H$10811,$C80) -> 16061.29 | O80: =SUMIFS(Sales!$Y$2:$Y$10811,Sales!$C$2:$C$10811,$A80,Sales!$F$2:$F$10811,$B80,Sales!$D$2:$D$10811,O$29,Sales!$H$2:$H$10811,$C80) -> 58665.79 | P80: =SUMIFS(Sales!$Y$2:$Y$10811,Sales!$C$2:$C$10811,$A80,Sales!$F$2:$F$10811,$B80,Sales!$D$2:$D$10811,P$29,Sales!$H$2:$H$10811,$C80) -> 20250.97
A81: 5 | B81: =Time!$E$29 -> 2018_19 | C81: =List!$I$2 -> London | D81: Thursday | E81: =SUMIFS(Sales!$Y$2:$Y$10811,Sales!$C$2:$C$10811,$A81,Sales!$F$2:$F$10811,$B81,Sales!$D$2:$D$10811,E$29,Sales!$H$2:$H$10811,$C81) -> 18504.25 | F81: =SUMIFS(Sales!$Y$2:$Y$10811,Sales!$C$2:$C$10811,$A81,Sales!$F$2:$F$10811,$B81,Sales!$D$2:$D$10811,F$29,Sales!$H$2:$H$10811,$C81) -> 40143.2 | G81: =SUMIFS(Sales!$Y$2:$Y$10811,Sales!$C$2:$C$10811,$A81,Sales!$F$2:$F$10811,$B81,Sales!$D$2:$D$10811,G$29,Sales!$H$2:$H$10811,$C81) -> 41154.43 | H81: =SUMIFS(Sales!$Y$2:$Y$10811,Sales!$C$2:$C$10811,$A81,Sales!$F$2:$F$10811,$B81,Sales!$D$2:$D$10811,H$29,Sales!$H$2:$H$10811,$C81) -> 22282.58 | I81: =SUMIFS(Sales!$Y$2:$Y$10811,Sales!$C$2:$C$10811,$A81,Sales!$F$2:$F$10811,$B81,Sales!$D$2:$D$10811,I$29,Sales!$H$2:$H$10811,$C81) -> 124128.05 | J81: =SUMIFS(Sales!$Y$2:$Y$10811,Sales!$C$2:$C$10811,$A81,Sales!$F$2:$F$10811,$B81,Sales!$D$2:$D$10811,J$29,Sales!$H$2:$H$10811,$C81) -> 44831.46 | K81: =SUMIFS(Sales!$Y$2:$Y$10811,Sales!$C$2:$C$10811,$A81,Sales!$F$2:$F$10811,$B81,Sales!$D$2:$D$10811,K$29,Sales!$H$2:$H$10811,$C81) -> 27513.29 | L81: =SUMIFS(Sales!$Y$2:$Y$10811,Sales!$C$2:$C$10811,$A81,Sales!$F$2:$F$10811,$B81,Sales!$D$2:$D$10811,L$29,Sales!$H$2:$H$10811,$C81) -> 27747.18 | M81: =SUMIFS(Sales!$Y$2:$Y$10811,Sales!$C$2:$C$10811,$A81,Sales!$F$2:$F$10811,$B81,Sales!$D$2:$D$10811,M$29,Sales!$H$2:$H$10811,$C81) -> 19819.56 | N81: =SUMIFS(Sales!$Y$2:$Y$10811,Sales!$C$2:$C$10811,$A81,Sales!$F$2:$F$10811,$B81,Sales!$D$2:$D$10811,N$29,Sales!$H$2:$H$10811,$C81) -> 67661.29 | O81: =SUMIFS(Sales!$Y$2:$Y$10811,Sales!$C$2:$C$10811,$A81,Sales!$F$2:$F$10811,$B81,Sales!$D$2:$D$10811,O$29,Sales!$H$2:$H$10811,$C81) -> 21811.21 | P81: =SUMIFS(Sales!$Y$2:$Y$10811,Sales!$C$2:$C$10811,$A81,Sales!$F$2:$F$10811,$B81,Sales!$D$2:$D$10811,P$29,Sales!$H$2:$H$10811,$C81) -> 19810.65
A82: 6 | B82: =Time!$E$29 -> 2018_19 | C82: =List!$I$2 -> London | D82: Friday | E82: =SUMIFS(Sales!$Y$2:$Y$10811,Sales!$C$2:$C$10811,$A82,Sales!$F$2:$F$10811,$B82,Sales!$D$2:$D$10811,E$29,Sales!$H$2:$H$10811,$C82) -> 82617.1 | F82: =SUMIFS(Sales!$Y$2:$Y$10811,Sales!$C$2:$C$10811,$A82,Sales!$F$2:$F$10811,$B82,Sales!$D$2:$D$10811,F$29,Sales!$H$2:$H$10811,$C82) -> 86082.37 | G82: =SUMIFS(Sales!$Y$2:$Y$10811,Sales!$C$2:$C$10811,$A82,Sales!$F$2:$F$10811,$B82,Sales!$D$2:$D$10811,G$29,Sales!$H$2:$H$10811,$C82) -> 16844.84 | H82: =SUMIFS(Sales!$Y$2:$Y$10811,Sales!$C$2:$C$10811,$A82,Sales!$F$2:$F$10811,$B82,Sales!$D$2:$D$10811,H$29,Sales!$H$2:$H$10811,$C82) -> 76130.9 | I82: =SUMIFS(Sales!$Y$2:$Y$10811,Sales!$C$2:$C$10811,$A82,Sales!$F$2:$F$10811,$B82,Sales!$D$2:$D$10811,I$29,Sales!$H$2:$H$10811,$C82) -> 87717.97 | J82: =SUMIFS(Sales!$Y$2:$Y$10811,Sales!$C$2:$C$10811,$A82,Sales!$F$2:$F$10811,$B82,Sales!$D$2:$D$10811,J$29,Sales!$H$2:$H$10811,$C82) -> 40208.96 | K82: =SUMIFS(Sales!$Y$2:$Y$10811,Sales!$C$2:$C$10811,$A82,Sales!$F$2:$F$10811,$B82,Sales!$D$2:$D$10811,K$29,Sales!$H$2:$H$10811,$C82) -> 11508.77 | L82: =SUMIFS(Sales!$Y$2:$Y$10811,Sales!$C$2:$C$10811,$A82,Sales!$F$2:$F$10811,$B82,Sales!$D$2:$D$10811,L$29,Sales!$H$2:$H$10811,$C82) -> 27135.11 | M82: =SUMIFS(Sales!$Y$2:$Y$10811,Sales!$C$2:$C$10811,$A82,Sales!$F$2:$F$10811,$B82,Sales!$D$2:$D$10811,M$29,Sales!$H$2:$H$10811,$C82) -> 33448.35 | N82: =SUMIFS(Sales!$Y$2:$Y$10811,Sales!$C$2:$C$10811,$A82,Sales!$F$2:$F$10811,$B82,Sales!$D$2:$D$10811,N$29,Sales!$H$2:$H$10811,$C82) -> 30272.89 | O82: =SUMIFS(Sales!$Y$2:$Y$10811,Sales!$C$2:$C$10811,$A82,Sales!$F$2:$F$10811,$B82,Sales!$D$2:$D$10811,O$29,Sales!$H$2:$H$10811,$C82) -> 62112.35 | P82: =SUMIFS(Sales!$Y$2:$Y$10811,Sales!$C$2:$C$10811,$A82,Sales!$F$2:$F$10811,$B82,Sales!$D$2:$D$10811,P$29,Sales!$H$2:$H$10811,$C82) -> 12625.42
A83: 7 | B83: =Time!$E$29 -> 2018_19 | C83: =List!$I$2 -> London | D83: Saturday | E83: =SUMIFS(Sales!$Y$2:$Y$10811,Sales!$C$2:$C$10811,$A83,Sales!$F$2:$F$10811,$B83,Sales!$D$2:$D$10811,E$29,Sales!$H$2:$H$10811,$C83) -> 60886.32 | F83: =SUMIFS(Sales!$Y$2:$Y$10811,Sales!$C$2:$C$10811,$A83,Sales!$F$2:$F$10811,$B83,Sales!$D$2:$D$10811,F$29,Sales!$H$2:$H$10811,$C83) -> 16931.66 | G83: =SUMIFS(Sales!$Y$2:$Y$10811,Sales!$C$2:$C$10811,$A83,Sales!$F$2:$F$10811,$B83,Sales!$D$2:$D$10811,G$29,Sales!$H$2:$H$10811,$C83) -> 46029.65 | H83: =SUMIFS(Sales!$Y$2:$Y$10811,Sales!$C$2:$C$10811,$A83,Sales!$F$2:$F$10811,$B83,Sales!$D$2:$D$10811,H$29,Sales!$H$2:$H$10811,$C83) -> 73359.84 | I83: =SUMIFS(Sales!$Y$2:$Y$10811,Sales!$C$2:$C$10811,$A83,Sales!$F$2:$F$10811,$B83,Sales!$D$2:$D$10811,I$29,Sales!$H$2:$H$10811,$C83) -> 44045.19 | J83: =SUMIFS(Sales!$Y$2:$Y$10811,Sales!$C$2:$C$10811,$A83,Sales!$F$2:$F$10811,$B83,Sales!$D$2:$D$10811,J$29,Sales!$H$2:$H$10811,$C83) -> 56434.96 | K83: =SUMIFS(Sales!$Y$2:$Y$10811,Sales!$C$2:$C$10811,$A83,Sales!$F$2:$F$10811,$B83,Sales!$D$2:$D$10811,K$29,Sales!$H$2:$H$10811,$C83) -> 9577.98 | L83: =SUMIFS(Sales!$Y$2:$Y$10811,Sales!$C$2:$C$10811,$A83,Sales!$F$2:$F$10811,$B83,Sales!$D$2:$D$10811,L$29,Sales!$H$2:$H$10811,$C83) -> 17906.94 | M83: =SUMIFS(Sales!$Y$2:$Y$10811,Sales!$C$2:$C$10811,$A83,Sales!$F$2:$F$10811,$B83,Sales!$D$2:$D$10811,M$29,Sales!$H$2:$H$10811,$C83) -> 43692.93 | N83: =SUMIFS(Sales!$Y$2:$Y$10811,Sales!$C$2:$C$10811,$A83,Sales!$F$2:$F$10811,$B83,Sales!$D$2:$D$10811,N$29,Sales!$H$2:$H$10811,$C83) -> 80767.75 | O83: =SUMIFS(Sales!$Y$2:$Y$10811,Sales!$C$2:$C$10811,$A83,Sales!$F$2:$F$10811,$B83,Sales!$D$2:$D$10811,O$29,Sales!$H$2:$H$10811,$C83) -> 48149.67 | P83: =SUMIFS(Sales!$Y$2:$Y$10811,Sales!$C$2:$C$10811,$A83,Sales!$F$2:$F$10811,$B83,Sales!$D$2:$D$10811,P$29,Sales!$H$2:$H$10811,$C83) -> 58856.87
A84: 1 | B84: =Time!$E$29 -> 2018_19 | C84: =List!$I$2 -> London | D84: Sunday | E84: =SUMIFS(Sales!$Y$2:$Y$10811,Sales!$C$2:$C$10811,$A84,Sales!$F$2:$F$10811,$B84,Sales!$D$2:$D$10811,E$29,Sales!$H$2:$H$10811,$C84) -> 44327.22 | F84: =SUMIFS(Sales!$Y$2:$Y$10811,Sales!$C$2:$C$10811,$A84,Sales!$F$2:$F$10811,$B84,Sales!$D$2:$D$10811,F$29,Sales!$H$2:$H$10811,$C84) -> 54053.04 | G84: =SUMIFS(Sales!$Y$2:$Y$10811,Sales!$C$2:$C$10811,$A84,Sales!$F$2:$F$10811,$B84,Sales!$D$2:$D$10811,G$29,Sales!$H$2:$H$10811,$C84) -> 65751.21 | H84: =SUMIFS(Sales!$Y$2:$Y$10811,Sales!$C$2:$C$10811,$A84,Sales!$F$2:$F$10811,$B84,Sales!$D$2:$D$10811,H$29,Sales!$H$2:$H$10811,$C84) -> 52890.76 | I84: =SUMIFS(Sales!$Y$2:$Y$10811,Sales!$C$2:$C$10811,$A84,Sales!$F$2:$F$10811,$B84,Sales!$D$2:$D$10811,I$29,Sales!$H$2:$H$10811,$C84) -> 21053.25 | J84: =SUMIFS(Sales!$Y$2:$Y$10811,Sales!$C$2:$C$10811,$A84,Sales!$F$2:$F$10811,$B84,Sales!$D$2:$D$10811,J$29,Sales!$H$2:$H$10811,$C84) -> 51428.29 | K84: =SUMIFS(Sales!$Y$2:$Y$10811,Sales!$C$2:$C$10811,$A84,Sales!$F$2:$F$10811,$B84,Sales!$D$2:$D$10811,K$29,Sales!$H$2:$H$10811,$C84) -> 38368.45 | L84: =SUMIFS(Sales!$Y$2:$Y$10811,Sales!$C$2:$C$10811,$A84,Sales!$F$2:$F$10811,$B84,Sales!$D$2:$D$10811,L$29,Sales!$H$2:$H$10811,$C84) -> 31075.06 | M84: =SUMIFS(Sales!$Y$2:$Y$10811,Sales!$C$2:$C$10811,$A84,Sales!$F$2:$F$10811,$B84,Sales!$D$2:$D$10811,M$29,Sales!$H$2:$H$10811,$C84) -> 69786.44 | N84: =SUMIFS(Sales!$Y$2:$Y$10811,Sales!$C$2:$C$10811,$A84,Sales!$F$2:$F$10811,$B84,Sales!$D$2:$D$10811,N$29,Sales!$H$2:$H$10811,$C84) -> 45627.92 | O84: =SUMIFS(Sales!$Y$2:$Y$10811,Sales!$C$2:$C$10811,$A84,Sales!$F$2:$F$10811,$B84,Sales!$D$2:$D$10811,O$29,Sales!$H$2:$H$10811,$C84) -> 21055.84 | P84: =SUMIFS(Sales!$Y$2:$Y$10811,Sales!$C$2:$C$10811,$A84,Sales!$F$2:$F$10811,$B84,Sales!$D$2:$D$10811,P$29,Sales!$H$2:$H$10811,$C84) -> 49416.52
A87: PY | B87: CY | C87: City | D87: Day Type | E87: 1 | F87: 2 | G87: 3 | H87: 4 | I87: 5 | J87: 6 | K87: 7 | L87: 8 | M87: 9 | N87: 10 | O87: 11 | P87: 12 | Q87: 1 | R87: 2 | S87: 3 | T87: 4 | U87: 5 | V87: 6 | W87: 7 | X87: 8 | Y87: 9 | Z87: 10 | AA87: 11 | AB87: 12
A88: =Time!$E$30 -> 2017_18 | B88: =Time!$E$29 -> 2018_19 | C88: =List!$I$2 -> London | D88: Day | E88: =SUMIFS(Sales!$W$2:$W$10811,Sales!$G$2:$G$10811,$D88,Sales!$F$2:$F$10811,$A88,Sales!$D$2:$D$10811,E$87,Sales!$H$2:$H$10811,$C88) -> 104 | F88: =SUMIFS(Sales!$W$2:$W$10811,Sales!$G$2:$G$10811,$D88,Sales!$F$2:$F$10811,$A88,Sales!$D$2:$D$10811,F$87,Sales!$H$2:$H$10811,$C88) -> 89 | G88: =SUMIFS(Sales!$W$2:$W$10811,Sales!$G$2:$G$10811,$D88,Sales!$F$2:$F$10811,$A88,Sales!$D$2:$D$10811,G$87,Sales!$H$2:$H$10811,$C88) -> 90 | H88: =SUMIFS(Sales!$W$2:$W$10811,Sales!$G$2:$G$10811,$D88,Sales!$F$2:$F$10811,$A88,Sales!$D$2:$D$10811,H$87,Sales!$H$2:$H$10811,$C88) -> 121 | I88: =SUMIFS(Sales!$W$2:$W$10811,Sales!$G$2:$G$10811,$D88,Sales!$F$2:$F$10811,$A88,Sales!$D$2:$D$10811,I$87,Sales!$H$2:$H$10811,$C88) -> 104 | J88: =SUMIFS(Sales!$W$2:$W$10811,Sales!$G$2:$G$10811,$D88,Sales!$F$2:$F$10811,$A88,Sales!$D$2:$D$10811,J$87,Sales!$H$2:$H$10811,$C88) -> 59 | K88: =SUMIFS(Sales!$W$2:$W$10811,Sales!$G$2:$G$10811,$D88,Sales!$F$2:$F$10811,$A88,Sales!$D$2:$D$10811,K$87,Sales!$H$2:$H$10811,$C88) -> 52 | L88: =SUMIFS(Sales!$W$2:$W$10811,Sales!$G$2:$G$10811,$D88,Sales!$F$2:$F$10811,$A88,Sales!$D$2:$D$10811,L$87,Sales!$H$2:$H$10811,$C88) -> 67 | M88: =SUMIFS(Sales!$W$2:$W$10811,Sales!$G$2:$G$10811,$D88,Sales!$F$2:$F$10811,$A88,Sales!$D$2:$D$10811,M$87,Sales!$H$2:$H$10811,$C88) -> 91 | N88: =SUMIFS(Sales!$W$2:$W$10811,Sales!$G$2:$G$10811,$D88,Sales!$F$2:$F$10811,$A88,Sales!$D$2:$D$10811,N$87,Sales!$H$2:$H$10811,$C88) -> 47 | O88: =SUMIFS(Sales!$W$2:$W$10811,Sales!$G$2:$G$10811,$D88,Sales!$F$2:$F$10811,$A88,Sales!$D$2:$D$10811,O$87,Sales!$H$2:$H$10811,$C88) -> 54 | P88: =SUMIFS(Sales!$W$2:$W$10811,Sales!$G$2:$G$10811,$D88,Sales!$F$2:$F$10811,$A88,Sales!$D$2:$D$10811,P$87,Sales!$H$2:$H$10811,$C88) -> 58 | Q88: =SUMIFS(Sales!$W$2:$W$10811,Sales!$G$2:$G$10811,$D88,Sales!$F$2:$F$10811,$B88,Sales!$D$2:$D$10811,Q$87,Sales!$H$2:$H$10811,$C88) -> 62 | R88: =SUMIFS(Sales!$W$2:$W$10811,Sales!$G$2:$G$10811,$D88,Sales!$F$2:$F$10811,$B88,Sales!$D$2:$D$10811,R$87,Sales!$H$2:$H$10811,$C88) -> 50 | S88: =SUMIFS(Sales!$W$2:$W$10811,Sales!$G$2:$G$10811,$D88,Sales!$F$2:$F$10811,$B88,Sales!$D$2:$D$10811,S$87,Sales!$H$2:$H$10811,$C88) -> 39 | T88: =SUMIFS(Sales!$W$2:$W$10811,Sales!$G$2:$G$10811,$D88,Sales!$F$2:$F$10811,$B88,Sales!$D$2:$D$10811,T$87,Sales!$H$2:$H$10811,$C88) -> 68 | U88: =SUMIFS(Sales!$W$2:$W$10811,Sales!$G$2:$G$10811,$D88,Sales!$F$2:$F$10811,$B88,Sales!$D$2:$D$10811,U$87,Sales!$H$2:$H$10811,$C88) -> 41 | V88: =SUMIFS(Sales!$W$2:$W$10811,Sales!$G$2:$G$10811,$D88,Sales!$F$2:$F$10811,$B88,Sales!$D$2:$D$10811,V$87,Sales!$H$2:$H$10811,$C88) -> 39 | W88: =SUMIFS(Sales!$W$2:$W$10811,Sales!$G$2:$G$10811,$D88,Sales!$F$2:$F$10811,$B88,Sales!$D$2:$D$10811,W$87,Sales!$H$2:$H$10811,$C88) -> 34 | X88: =SUMIFS(Sales!$W$2:$W$10811,Sales!$G$2:$G$10811,$D88,Sales!$F$2:$F$10811,$B88,Sales!$D$2:$D$10811,X$87,Sales!$H$2:$H$10811,$C88) -> 43 | Y88: =SUMIFS(Sales!$W$2:$W$10811,Sales!$G$2:$G$10811,$D88,Sales!$F$2:$F$10811,$B88,Sales!$D$2:$D$10811,Y$87,Sales!$H$2:$H$10811,$C88) -> 60 | Z88: =SUMIFS(Sales!$W$2:$W$10811,Sales!$G$2:$G$10811,$D88,Sales!$F$2:$F$10811,$B88,Sales!$D$2:$D$10811,X$87,Sales!$H$2:$H$10811,$C88) -> 43 | AA88: =SUMIFS(Sales!$W$2:$W$10811,Sales!$G$2:$G$10811,$D88,Sales!$F$2:$F$10811,$B88,Sales!$D$2:$D$10811,AA$87,Sales!$H$2:$H$10811,$C88) -> 39 | AB88: =SUMIFS(Sales!$W$2:$W$10811,Sales!$G$2:$G$10811,$D88,Sales!$F$2:$F$10811,$B88,Sales!$D$2:$D$10811,AB$87,Sales!$H$2:$H$10811,$C88) -> 62
A89: =Time!$E$30 -> 2017_18 | B89: =Time!$E$29 -> 2018_19 | C89: =List!$I$2 -> London | D89: Evening | E89: =SUMIFS(Sales!$W$2:$W$10811,Sales!$G$2:$G$10811,$D89,Sales!$F$2:$F$10811,$A89,Sales!$D$2:$D$10811,E$87,Sales!$H$2:$H$10811,$C89) -> 122 | F89: =SUMIFS(Sales!$W$2:$W$10811,Sales!$G$2:$G$10811,$D89,Sales!$F$2:$F$10811,$A89,Sales!$D$2:$D$10811,F$87,Sales!$H$2:$H$10811,$C89) -> 123 | G89: =SUMIFS(Sales!$W$2:$W$10811,Sales!$G$2:$G$10811,$D89,Sales!$F$2:$F$10811,$A89,Sales!$D$2:$D$10811,G$87,Sales!$H$2:$H$10811,$C89) -> 95 | H89: =SUMIFS(Sales!$W$2:$W$10811,Sales!$G$2:$G$10811,$D89,Sales!$F$2:$F$10811,$A89,Sales!$D$2:$D$10811,H$87,Sales!$H$2:$H$10811,$C89) -> 164 | I89: =SUMIFS(Sales!$W$2:$W$10811,Sales!$G$2:$G$10811,$D89,Sales!$F$2:$F$10811,$A89,Sales!$D$2:$D$10811,I$87,Sales!$H$2:$H$10811,$C89) -> 137 | J89: =SUMIFS(Sales!$W$2:$W$10811,Sales!$G$2:$G$10811,$D89,Sales!$F$2:$F$10811,$A89,Sales!$D$2:$D$10811,J$87,Sales!$H$2:$H$10811,$C89) -> 84 | K89: =SUMIFS(Sales!$W$2:$W$10811,Sales!$G$2:$G$10811,$D89,Sales!$F$2:$F$10811,$A89,Sales!$D$2:$D$10811,K$87,Sales!$H$2:$H$10811,$C89) -> 75 | L89: =SUMIFS(Sales!$W$2:$W$10811,Sales!$G$2:$G$10811,$D89,Sales!$F$2:$F$10811,$A89,Sales!$D$2:$D$10811,L$87,Sales!$H$2:$H$10811,$C89) -> 89 | M89: =SUMIFS(Sales!$W$2:$W$10811,Sales!$G$2:$G$10811,$D89,Sales!$F$2:$F$10811,$A89,Sales!$D$2:$D$10811,M$87,Sales!$H$2:$H$10811,$C89) -> 68 | N89: =SUMIFS(Sales!$W$2:$W$10811,Sales!$G$2:$G$10811,$D89,Sales!$F$2:$F$10811,$A89,Sales!$D$2:$D$10811,N$87,Sales!$H$2:$H$10811,$C89) -> 48 | O89: =SUMIFS(Sales!$W$2:$W$10811,Sales!$G$2:$G$10811,$D89,Sales!$F$2:$F$10811,$A89,Sales!$D$2:$D$10811,O$87,Sales!$H$2:$H$10811,$C89) -> 79 | P89: =SUMIFS(Sales!$W$2:$W$10811,Sales!$G$2:$G$10811,$D89,Sales!$F$2:$F$10811,$A89,Sales!$D$2:$D$10811,P$87,Sales!$H$2:$H$10811,$C89) -> 73 | Q89: =SUMIFS(Sales!$W$2:$W$10811,Sales!$G$2:$G$10811,$D89,Sales!$F$2:$F$10811,$B89,Sales!$D$2:$D$10811,Q$87,Sales!$H$2:$H$10811,$C89) -> 95 | R89: =SUMIFS(Sales!$W$2:$W$10811,Sales!$G$2:$G$10811,$D89,Sales!$F$2:$F$10811,$B89,Sales!$D$2:$D$10811,R$87,Sales!$H$2:$H$10811,$C89) -> 134 | S89: =SUMIFS(Sales!$W$2:$W$10811,Sales!$G$2:$G$10811,$D89,Sales!$F$2:$F$10811,$B89,Sales!$D$2:$D$10811,S$87,Sales!$H$2:$H$10811,$C89) -> 73 | T89: =SUMIFS(Sales!$W$2:$W$10811,Sales!$G$2:$G$10811,$D89,Sales!$F$2:$F$10811,$B89,Sales!$D$2:$D$10811,T$87,Sales!$H$2:$H$10811,$C89) -> 76 | U89: =SUMIFS(Sales!$W$2:$W$10811,Sales!$G$2:$G$10811,$D89,Sales!$F$2:$F$10811,$B89,Sales!$D$2:$D$10811,U$87,Sales!$H$2:$H$10811,$C89) -> 110 | V89: =SUMIFS(Sales!$W$2:$W$10811,Sales!$G$2:$G$10811,$D89,Sales!$F$2:$F$10811,$B89,Sales!$D$2:$D$10811,V$87,Sales!$H$2:$H$10811,$C89) -> 72 | W89: =SUMIFS(Sales!$W$2:$W$10811,Sales!$G$2:$G$10811,$D89,Sales!$F$2:$F$10811,$B89,Sales!$D$2:$D$10811,W$87,Sales!$H$2:$H$10811,$C89) -> 96 | X89: =SUMIFS(Sales!$W$2:$W$10811,Sales!$G$2:$G$10811,$D89,Sales!$F$2:$F$10811,$B89,Sales!$D$2:$D$10811,X$87,Sales!$H$2:$H$10811,$C89) -> 57 | Y89: =SUMIFS(Sales!$W$2:$W$10811,Sales!$G$2:$G$10811,$D89,Sales!$F$2:$F$10811,$B89,Sales!$D$2:$D$10811,Y$87,Sales!$H$2:$H$10811,$C89) -> 32 | Z89: =SUMIFS(Sales!$W$2:$W$10811,Sales!$G$2:$G$10811,$D89,Sales!$F$2:$F$10811,$B89,Sales!$D$2:$D$10811,X$87,Sales!$H$2:$H$10811,$C89) -> 57 | AA89: =SUMIFS(Sales!$W$2:$W$10811,Sales!$G$2:$G$10811,$D89,Sales!$F$2:$F$10811,$B89,Sales!$D$2:$D$10811,AA$87,Sales!$H$2:$H$10811,$C89) -> 51 | AB89: =SUMIFS(Sales!$W$2:$W$10811,Sales!$G$2:$G$10811,$D89,Sales!$F$2:$F$10811,$B89,Sales!$D$2:$D$10811,AB$87,Sales!$H$2:$H$10811,$C89) -> 59
A90: =Time!$E$30 -> 2017_18 | B90: =Time!$E$29 -> 2018_19 | C90: =List!$I$2 -> London | D90: Weekend | E90: =SUMIFS(Sales!$W$2:$W$10811,Sales!$G$2:$G$10811,$D90,Sales!$F$2:$F$10811,$A90,Sales!$D$2:$D$10811,E$87,Sales!$H$2:$H$10811,$C90) -> 139 | F90: =SUMIFS(Sales!$W$2:$W$10811,Sales!$G$2:$G$10811,$D90,Sales!$F$2:$F$10811,$A90,Sales!$D$2:$D$10811,F$87,Sales!$H$2:$H$10811,$C90) -> 89 | G90: =SUMIFS(Sales!$W$2:$W$10811,Sales!$G$2:$G$10811,$D90,Sales!$F$2:$F$10811,$A90,Sales!$D$2:$D$10811,G$87,Sales!$H$2:$H$10811,$C90) -> 72 | H90: =SUMIFS(Sales!$W$2:$W$10811,Sales!$G$2:$G$10811,$D90,Sales!$F$2:$F$10811,$A90,Sales!$D$2:$D$10811,H$87,Sales!$H$2:$H$10811,$C90) -> 144 | I90: =SUMIFS(Sales!$W$2:$W$10811,Sales!$G$2:$G$10811,$D90,Sales!$F$2:$F$10811,$A90,Sales!$D$2:$D$10811,I$87,Sales!$H$2:$H$10811,$C90) -> 76 | J90: =SUMIFS(Sales!$W$2:$W$10811,Sales!$G$2:$G$10811,$D90,Sales!$F$2:$F$10811,$A90,Sales!$D$2:$D$10811,J$87,Sales!$H$2:$H$10811,$C90) -> 83 | K90: =SUMIFS(Sales!$W$2:$W$10811,Sales!$G$2:$G$10811,$D90,Sales!$F$2:$F$10811,$A90,Sales!$D$2:$D$10811,K$87,Sales!$H$2:$H$10811,$C90) -> 40 | L90: =SUMIFS(Sales!$W$2:$W$10811,Sales!$G$2:$G$10811,$D90,Sales!$F$2:$F$10811,$A90,Sales!$D$2:$D$10811,L$87,Sales!$H$2:$H$10811,$C90) -> 59 | M90: =SUMIFS(Sales!$W$2:$W$10811,Sales!$G$2:$G$10811,$D90,Sales!$F$2:$F$10811,$A90,Sales!$D$2:$D$10811,M$87,Sales!$H$2:$H$10811,$C90) -> 58 | N90: =SUMIFS(Sales!$W$2:$W$10811,Sales!$G$2:$G$10811,$D90,Sales!$F$2:$F$10811,$A90,Sales!$D$2:$D$10811,N$87,Sales!$H$2:$H$10811,$C90) -> 43 | O90: =SUMIFS(Sales!$W$2:$W$10811,Sales!$G$2:$G$10811,$D90,Sales!$F$2:$F$10811,$A90,Sales!$D$2:$D$10811,O$87,Sales!$H$2:$H$10811,$C90) -> 64 | P90: =SUMIFS(Sales!$W$2:$W$10811,Sales!$G$2:$G$10811,$D90,Sales!$F$2:$F$10811,$A90,Sales!$D$2:$D$10811,P$87,Sales!$H$2:$H$10811,$C90) -> 44 | Q90: =SUMIFS(Sales!$W$2:$W$10811,Sales!$G$2:$G$10811,$D90,Sales!$F$2:$F$10811,$B90,Sales!$D$2:$D$10811,Q$87,Sales!$H$2:$H$10811,$C90) -> 68 | R90: =SUMIFS(Sales!$W$2:$W$10811,Sales!$G$2:$G$10811,$D90,Sales!$F$2:$F$10811,$B90,Sales!$D$2:$D$10811,R$87,Sales!$H$2:$H$10811,$C90) -> 30 | S90: =SUMIFS(Sales!$W$2:$W$10811,Sales!$G$2:$G$10811,$D90,Sales!$F$2:$F$10811,$B90,Sales!$D$2:$D$10811,S$87,Sales!$H$2:$H$10811,$C90) -> 69 | T90: =SUMIFS(Sales!$W$2:$W$10811,Sales!$G$2:$G$10811,$D90,Sales!$F$2:$F$10811,$B90,Sales!$D$2:$D$10811,T$87,Sales!$H$2:$H$10811,$C90) -> 57 | U90: =SUMIFS(Sales!$W$2:$W$10811,Sales!$G$2:$G$10811,$D90,Sales!$F$2:$F$10811,$B90,Sales!$D$2:$D$10811,U$87,Sales!$H$2:$H$10811,$C90) -> 45 | V90: =SUMIFS(Sales!$W$2:$W$10811,Sales!$G$2:$G$10811,$D90,Sales!$F$2:$F$10811,$B90,Sales!$D$2:$D$10811,V$87,Sales!$H$2:$H$10811,$C90) -> 64 | W90: =SUMIFS(Sales!$W$2:$W$10811,Sales!$G$2:$G$10811,$D90,Sales!$F$2:$F$10811,$B90,Sales!$D$2:$D$10811,W$87,Sales!$H$2:$H$10811,$C90) -> 40 | X90: =SUMIFS(Sales!$W$2:$W$10811,Sales!$G$2:$G$10811,$D90,Sales!$F$2:$F$10811,$B90,Sales!$D$2:$D$10811,X$87,Sales!$H$2:$H$10811,$C90) -> 27 | Y90: =SUMIFS(Sales!$W$2:$W$10811,Sales!$G$2:$G$10811,$D90,Sales!$F$2:$F$10811,$B90,Sales!$D$2:$D$10811,Y$87,Sales!$H$2:$H$10811,$C90) -> 45 | Z90: =SUMIFS(Sales!$W$2:$W$10811,Sales!$G$2:$G$10811,$D90,Sales!$F$2:$F$10811,$B90,Sales!$D$2:$D$10811,X$87,Sales!$H$2:$H$10811,$C90) -> 27 | AA90: =SUMIFS(Sales!$W$2:$W$10811,Sales!$G$2:$G$10811,$D90,Sales!$F$2:$F$10811,$B90,Sales!$D$2:$D$10811,AA$87,Sales!$H$2:$H$10811,$C90) -> 40 | AB90: =SUMIFS(Sales!$W$2:$W$10811,Sales!$G$2:$G$10811,$D90,Sales!$F$2:$F$10811,$B90,Sales!$D$2:$D$10811,AB$87,Sales!$H$2:$H$10811,$C90) -> 48
B92: COGS | D92: Total | E92: =SUM(E87:E91) -> 366 | F92: =SUM(F87:F91) -> 303 | G92: 260 | H92: 433 | I92: 322 | J92: 232 | K92: 174 | L92: 223 | M92: 226 | N92: 148 | O92: 208 | P92: 187 | Q92: 226 | R92: 216 | S92: 184 | T92: 205 | U92: 201 | V92: 181 | W92: 177 | X92: 135 | Y92: 146 | Z92: 137 | AA92: 141 | AB92: 181
A95: PY | B95: CY | C95: City | D95: Day Type | E95: 1 | F95: 2 | G95: 3 | H95: 4 | I95: 5 | J95: 6 | K95: 7 | L95: 8 | M95: 9 | N95: 10 | O95: 11 | P95: 12 | Q95: 1 | R95: 2 | S95: 3 | T95: 4 | U95: 5 | V95: 6 | W95: 7 | X95: 8 | Y95: 9 | Z95: 10 | AA95: 11 | AB95: 12 | AC95: Total | AD95: Chart A | AE95: ChartB
A96: =Time!$E$30 -> 2017_18 | B96: =Time!$E$29 -> 2018_19 | C96: =List!$I$2 -> London | D96: Day | E96: =SUMIFS(Sales!$Z$2:$Z$10811,Sales!$G$2:$G$10811,$D96,Sales!$F$2:$F$10811,$A96,Sales!$D$2:$D$10811,E$87,Sales!$H$2:$H$10811,$C96) -> 307430.4 | F96: =SUMIFS(Sales!$Z$2:$Z$10811,Sales!$G$2:$G$10811,$D96,Sales!$F$2:$F$10811,$A96,Sales!$D$2:$D$10811,F$87,Sales!$H$2:$H$10811,$C96) -> 175840.85 | G96: =SUMIFS(Sales!$Z$2:$Z$10811,Sales!$G$2:$G$10811,$D96,Sales!$F$2:$F$10811,$A96,Sales!$D$2:$D$10811,G$87,Sales!$H$2:$H$10811,$C96) -> 206421.9 | H96: =SUMIFS(Sales!$Z$2:$Z$10811,Sales!$G$2:$G$10811,$D96,Sales!$F$2:$F$10811,$A96,Sales!$D$2:$D$10811,H$87,Sales!$H$2:$H$10811,$C96) -> 328366.43 | I96: =SUMIFS(Sales!$Z$2:$Z$10811,Sales!$G$2:$G$10811,$D96,Sales!$F$2:$F$10811,$A96,Sales!$D$2:$D$10811,I$87,Sales!$H$2:$H$10811,$C96) -> 283025.07 | J96: =SUMIFS(Sales!$Z$2:$Z$10811,Sales!$G$2:$G$10811,$D96,Sales!$F$2:$F$10811,$A96,Sales!$D$2:$D$10811,J$87,Sales!$H$2:$H$10811,$C96) -> 198768.28 | K96: =SUMIFS(Sales!$Z$2:$Z$10811,Sales!$G$2:$G$10811,$D96,Sales!$F$2:$F$10811,$A96,Sales!$D$2:$D$10811,K$87,Sales!$H$2:$H$10811,$C96) -> 145383.62 | L96: =SUMIFS(Sales!$Z$2:$Z$10811,Sales!$G$2:$G$10811,$D96,Sales!$F$2:$F$10811,$A96,Sales!$D$2:$D$10811,L$87,Sales!$H$2:$H$10811,$C96) -> 178283.93 | M96: =SUMIFS(Sales!$Z$2:$Z$10811,Sales!$G$2:$G$10811,$D96,Sales!$F$2:$F$10811,$A96,Sales!$D$2:$D$10811,M$87,Sales!$H$2:$H$10811,$C96) -> 246800.69 | N96: =SUMIFS(Sales!$Z$2:$Z$10811,Sales!$G$2:$G$10811,$D96,Sales!$F$2:$F$10811,$A96,Sales!$D$2:$D$10811,N$87,Sales!$H$2:$H$10811,$C96) -> 218477.11 | O96: =SUMIFS(Sales!$Z$2:$Z$10811,Sales!$G$2:$G$10811,$D96,Sales!$F$2:$F$10811,$A96,Sales!$D$2:$D$10811,O$87,Sales!$H$2:$H$10811,$C96) -> 193856.07 | P96: =SUMIFS(Sales!$Z$2:$Z$10811,Sales!$G$2:$G$10811,$D96,Sales!$F$2:$F$10811,$A96,Sales!$D$2:$D$10811,P$87,Sales!$H$2:$H$10811,$C96) -> 174313.22 | Q96: =SUMIFS(Sales!$Z$2:$Z$10811,Sales!$G$2:$G$10811,$D96,Sales!$F$2:$F$10811,$B96,Sales!$D$2:$D$10811,Q$87,Sales!$H$2:$H$10811,$C96) -> 171932.52 | R96: =SUMIFS(Sales!$Z$2:$Z$10811,Sales!$G$2:$G$10811,$D96,Sales!$F$2:$F$10811,$B96,Sales!$D$2:$D$10811,R$87,Sales!$H$2:$H$10811,$C96) -> 146219.4 | S96: =SUMIFS(Sales!$Z$2:$Z$10811,Sales!$G$2:$G$10811,$D96,Sales!$F$2:$F$10811,$B96,Sales!$D$2:$D$10811,S$87,Sales!$H$2:$H$10811,$C96) -> 163074.55 | T96: =SUMIFS(Sales!$Z$2:$Z$10811,Sales!$G$2:$G$10811,$D96,Sales!$F$2:$F$10811,$B96,Sales!$D$2:$D$10811,T$87,Sales!$H$2:$H$10811,$C96) -> 354161.67 | U96: =SUMIFS(Sales!$Z$2:$Z$10811,Sales!$G$2:$G$10811,$D96,Sales!$F$2:$F$10811,$B96,Sales!$D$2:$D$10811,U$87,Sales!$H$2:$H$10811,$C96) -> 245173.2 | V96: =SUMIFS(Sales!$Z$2:$Z$10811,Sales!$G$2:$G$10811,$D96,Sales!$F$2:$F$10811,$B96,Sales!$D$2:$D$10811,V$87,Sales!$H$2:$H$10811,$C96) -> 135695.51 | W96: =SUMIFS(Sales!$Z$2:$Z$10811,Sales!$G$2:$G$10811,$D96,Sales!$F$2:$F$10811,$B96,Sales!$D$2:$D$10811,W$87,Sales!$H$2:$H$10811,$C96) -> 190901.67 | X96: =SUMIFS(Sales!$Z$2:$Z$10811,Sales!$G$2:$G$10811,$D96,Sales!$F$2:$F$10811,$B96,Sales!$D$2:$D$10811,X$87,Sales!$H$2:$H$10811,$C96) -> 126391.7 | Y96: =SUMIFS(Sales!$Z$2:$Z$10811,Sales!$G$2:$G$10811,$D96,Sales!$F$2:$F$10811,$B96,Sales!$D$2:$D$10811,Y$87,Sales!$H$2:$H$10811,$C96) -> 111709.91 | Z96: =SUMIFS(Sales!$Z$2:$Z$10811,Sales!$G$2:$G$10811,$D96,Sales!$F$2:$F$10811,$B96,Sales!$D$2:$D$10811,AA$87,Sales!$H$2:$H$10811,$C96) -> 193940.6 | AA96: =SUMIFS(Sales!$Z$2:$Z$10811,Sales!$G$2:$G$10811,$D96,Sales!$F$2:$F$10811,$B96,Sales!$D$2:$D$10811,AA$87,Sales!$H$2:$H$10811,$C96) -> 193940.6 | AB96: =SUMIFS(Sales!$Z$2:$Z$10811,Sales!$G$2:$G$10811,$D96,Sales!$F$2:$F$10811,$B96,Sales!$D$2:$D$10811,AB$87,Sales!$H$2:$H$10811,$C96) -> 67312.22 | AC96: =SUM(Q96:AB96) -> 2100453.55 | AD96: =AC96/$AC$100 -> 0.2567183627 | AE96: =1-AD96 -> 0.7432816373
A97: =Time!$E$30 -> 2017_18 | B97: =Time!$E$29 -> 2018_19 | C97: =List!$I$2 -> London | D97: Evening | E97: =SUMIFS(Sales!$Z$2:$Z$10811,Sales!$G$2:$G$10811,$D97,Sales!$F$2:$F$10811,$A97,Sales!$D$2:$D$10811,E$87,Sales!$H$2:$H$10811,$C97) -> 295487.43 | F97: =SUMIFS(Sales!$Z$2:$Z$10811,Sales!$G$2:$G$10811,$D97,Sales!$F$2:$F$10811,$A97,Sales!$D$2:$D$10811,F$87,Sales!$H$2:$H$10811,$C97) -> 363082.23 | G97: =SUMIFS(Sales!$Z$2:$Z$10811,Sales!$G$2:$G$10811,$D97,Sales!$F$2:$F$10811,$A97,Sales!$D$2:$D$10811,G$87,Sales!$H$2:$H$10811,$C97) -> 364854.67 | H97: =SUMIFS(Sales!$Z$2:$Z$10811,Sales!$G$2:$G$10811,$D97,Sales!$F$2:$F$10811,$A97,Sales!$D$2:$D$10811,H$87,Sales!$H$2:$H$10811,$C97) -> 532752.6 | I97: =SUMIFS(Sales!$Z$2:$Z$10811,Sales!$G$2:$G$10811,$D97,Sales!$F$2:$F$10811,$A97,Sales!$D$2:$D$10811,I$87,Sales!$H$2:$H$10811,$C97) -> 381714.69 | J97: =SUMIFS(Sales!$Z$2:$Z$10811,Sales!$G$2:$G$10811,$D97,Sales!$F$2:$F$10811,$A97,Sales!$D$2:$D$10811,J$87,Sales!$H$2:$H$10811,$C97) -> 349632.46 | K97: =SUMIFS(Sales!$Z$2:$Z$10811,Sales!$G$2:$G$10811,$D97,Sales!$F$2:$F$10811,$A97,Sales!$D$2:$D$10811,K$87,Sales!$H$2:$H$10811,$C97) -> 195681.92 | L97: =SUMIFS(Sales!$Z$2:$Z$10811,Sales!$G$2:$G$10811,$D97,Sales!$F$2:$F$10811,$A97,Sales!$D$2:$D$10811,L$87,Sales!$H$2:$H$10811,$C97) -> 218186.29 | M97: =SUMIFS(Sales!$Z$2:$Z$10811,Sales!$G$2:$G$10811,$D97,Sales!$F$2:$F$10811,$A97,Sales!$D$2:$D$10811,M$87,Sales!$H$2:$H$10811,$C97) -> 196733.99 | N97: =SUMIFS(Sales!$Z$2:$Z$10811,Sales!$G$2:$G$10811,$D97,Sales!$F$2:$F$10811,$A97,Sales!$D$2:$D$10811,N$87,Sales!$H$2:$H$10811,$C97) -> 155446.63 | O97: =SUMIFS(Sales!$Z$2:$Z$10811,Sales!$G$2:$G$10811,$D97,Sales!$F$2:$F$10811,$A97,Sales!$D$2:$D$10811,O$87,Sales!$H$2:$H$10811,$C97) -> 316301.14 | P97: =SUMIFS(Sales!$Z$2:$Z$10811,Sales!$G$2:$G$10811,$D97,Sales!$F$2:$F$10811,$A97,Sales!$D$2:$D$10811,P$87,Sales!$H$2:$H$10811,$C97) -> 204195.1 | Q97: =SUMIFS(Sales!$Z$2:$Z$10811,Sales!$G$2:$G$10811,$D97,Sales!$F$2:$F$10811,$B97,Sales!$D$2:$D$10811,Q$87,Sales!$H$2:$H$10811,$C97) -> 399744.37 | R97: =SUMIFS(Sales!$Z$2:$Z$10811,Sales!$G$2:$G$10811,$D97,Sales!$F$2:$F$10811,$B97,Sales!$D$2:$D$10811,R$87,Sales!$H$2:$H$10811,$C97) -> 576710.45 | S97: =SUMIFS(Sales!$Z$2:$Z$10811,Sales!$G$2:$G$10811,$D97,Sales!$F$2:$F$10811,$B97,Sales!$D$2:$D$10811,S$87,Sales!$H$2:$H$10811,$C97) -> 215333.45 | T97: =SUMIFS(Sales!$Z$2:$Z$10811,Sales!$G$2:$G$10811,$D97,Sales!$F$2:$F$10811,$B97,Sales!$D$2:$D$10811,T$87,Sales!$H$2:$H$10811,$C97) -> 235926.21 | U97: =SUMIFS(Sales!$Z$2:$Z$10811,Sales!$G$2:$G$10811,$D97,Sales!$F$2:$F$10811,$B97,Sales!$D$2:$D$10811,U$87,Sales!$H$2:$H$10811,$C97) -> 535432.86 | V97: =SUMIFS(Sales!$Z$2:$Z$10811,Sales!$G$2:$G$10811,$D97,Sales!$F$2:$F$10811,$B97,Sales!$D$2:$D$10811,V$87,Sales!$H$2:$H$10811,$C97) -> 292161.43 | W97: =SUMIFS(Sales!$Z$2:$Z$10811,Sales!$G$2:$G$10811,$D97,Sales!$F$2:$F$10811,$B97,Sales!$D$2:$D$10811,W$87,Sales!$H$2:$H$10811,$C97) -> 238211.59 | X97: =SUMIFS(Sales!$Z$2:$Z$10811,Sales!$G$2:$G$10811,$D97,Sales!$F$2:$F$10811,$B97,Sales!$D$2:$D$10811,X$87,Sales!$H$2:$H$10811,$C97) -> 280308.12 | Y97: =SUMIFS(Sales!$Z$2:$Z$10811,Sales!$G$2:$G$10811,$D97,Sales!$F$2:$F$10811,$B97,Sales!$D$2:$D$10811,Y$87,Sales!$H$2:$H$10811,$C97) -> 87480.01 | Z97: =SUMIFS(Sales!$Z$2:$Z$10811,Sales!$G$2:$G$10811,$D97,Sales!$F$2:$F$10811,$B97,Sales!$D$2:$D$10811,AA$87,Sales!$H$2:$H$10811,$C97) -> 226988.83 | AA97: =SUMIFS(Sales!$Z$2:$Z$10811,Sales!$G$2:$G$10811,$D97,Sales!$F$2:$F$10811,$B97,Sales!$D$2:$D$10811,AA$87,Sales!$H$2:$H$10811,$C97) -> 226988.83 | AB97: =SUMIFS(Sales!$Z$2:$Z$10811,Sales!$G$2:$G$10811,$D97,Sales!$F$2:$F$10811,$B97,Sales!$D$2:$D$10811,AB$87,Sales!$H$2:$H$10811,$C97) -> 119326.54 | AC97: =SUM(Q97:AB97) -> 3434612.69 | AD97: =AC97/$AC$100 -> 0.4197798834 | AE97: =1-AD97 -> 0.5802201166
A98: =Time!$E$30 -> 2017_18 | B98: =Time!$E$29 -> 2018_19 | C98: =List!$I$2 -> London | D98: Weekend | E98: =SUMIFS(Sales!$Z$2:$Z$10811,Sales!$G$2:$G$10811,$D98,Sales!$F$2:$F$10811,$A98,Sales!$D$2:$D$10811,E$87,Sales!$H$2:$H$10811,$C98) -> 305811.32 | F98: =SUMIFS(Sales!$Z$2:$Z$10811,Sales!$G$2:$G$10811,$D98,Sales!$F$2:$F$10811,$A98,Sales!$D$2:$D$10811,F$87,Sales!$H$2:$H$10811,$C98) -> 207392.05 | G98: =SUMIFS(Sales!$Z$2:$Z$10811,Sales!$G$2:$G$10811,$D98,Sales!$F$2:$F$10811,$A98,Sales!$D$2:$D$10811,G$87,Sales!$H$2:$H$10811,$C98) -> 144946.85 | H98: =SUMIFS(Sales!$Z$2:$Z$10811,Sales!$G$2:$G$10811,$D98,Sales!$F$2:$F$10811,$A98,Sales!$D$2:$D$10811,H$87,Sales!$H$2:$H$10811,$C98) -> 316562.28 | I98: =SUMIFS(Sales!$Z$2:$Z$10811,Sales!$G$2:$G$10811,$D98,Sales!$F$2:$F$10811,$A98,Sales!$D$2:$D$10811,I$87,Sales!$H$2:$H$10811,$C98) -> 185639.92 | J98: =SUMIFS(Sales!$Z$2:$Z$10811,Sales!$G$2:$G$10811,$D98,Sales!$F$2:$F$10811,$A98,Sales!$D$2:$D$10811,J$87,Sales!$H$2:$H$10811,$C98) -> 253849.41 | K98: =SUMIFS(Sales!$Z$2:$Z$10811,Sales!$G$2:$G$10811,$D98,Sales!$F$2:$F$10811,$A98,Sales!$D$2:$D$10811,K$87,Sales!$H$2:$H$10811,$C98) -> 108755.01 | L98: =SUMIFS(Sales!$Z$2:$Z$10811,Sales!$G$2:$G$10811,$D98,Sales!$F$2:$F$10811,$A98,Sales!$D$2:$D$10811,L$87,Sales!$H$2:$H$10811,$C98) -> 157945.17 | M98: =SUMIFS(Sales!$Z$2:$Z$10811,Sales!$G$2:$G$10811,$D98,Sales!$F$2:$F$10811,$A98,Sales!$D$2:$D$10811,M$87,Sales!$H$2:$H$10811,$C98) -> 166393.72 | N98: =SUMIFS(Sales!$Z$2:$Z$10811,Sales!$G$2:$G$10811,$D98,Sales!$F$2:$F$10811,$A98,Sales!$D$2:$D$10811,N$87,Sales!$H$2:$H$10811,$C98) -> 155806.28 | O98: =SUMIFS(Sales!$Z$2:$Z$10811,Sales!$G$2:$G$10811,$D98,Sales!$F$2:$F$10811,$A98,Sales!$D$2:$D$10811,O$87,Sales!$H$2:$H$10811,$C98) -> 123287.99 | P98: =SUMIFS(Sales!$Z$2:$Z$10811,Sales!$G$2:$G$10811,$D98,Sales!$F$2:$F$10811,$A98,Sales!$D$2:$D$10811,P$87,Sales!$H$2:$H$10811,$C98) -> 172899.88 | Q98: =SUMIFS(Sales!$Z$2:$Z$10811,Sales!$G$2:$G$10811,$D98,Sales!$F$2:$F$10811,$B98,Sales!$D$2:$D$10811,Q$87,Sales!$H$2:$H$10811,$C98) -> 281281.81 | R98: =SUMIFS(Sales!$Z$2:$Z$10811,Sales!$G$2:$G$10811,$D98,Sales!$F$2:$F$10811,$B98,Sales!$D$2:$D$10811,R$87,Sales!$H$2:$H$10811,$C98) -> 189277.07 | S98: =SUMIFS(Sales!$Z$2:$Z$10811,Sales!$G$2:$G$10811,$D98,Sales!$F$2:$F$10811,$B98,Sales!$D$2:$D$10811,S$87,Sales!$H$2:$H$10811,$C98) -> 273259.34 | T98: =SUMIFS(Sales!$Z$2:$Z$10811,Sales!$G$2:$G$10811,$D98,Sales!$F$2:$F$10811,$B98,Sales!$D$2:$D$10811,T$87,Sales!$H$2:$H$10811,$C98) -> 326790.23 | U98: =SUMIFS(Sales!$Z$2:$Z$10811,Sales!$G$2:$G$10811,$D98,Sales!$F$2:$F$10811,$B98,Sales!$D$2:$D$10811,U$87,Sales!$H$2:$H$10811,$C98) -> 161254.47 | V98: =SUMIFS(Sales!$Z$2:$Z$10811,Sales!$G$2:$G$10811,$D98,Sales!$F$2:$F$10811,$B98,Sales!$D$2:$D$10811,V$87,Sales!$H$2:$H$10811,$C98) -> 272691.83 | W98: =SUMIFS(Sales!$Z$2:$Z$10811,Sales!$G$2:$G$10811,$D98,Sales!$F$2:$F$10811,$B98,Sales!$D$2:$D$10811,W$87,Sales!$H$2:$H$10811,$C98) -> 103514.92 | X98: =SUMIFS(Sales!$Z$2:$Z$10811,Sales!$G$2:$G$10811,$D98,Sales!$F$2:$F$10811,$B98,Sales!$D$2:$D$10811,X$87,Sales!$H$2:$H$10811,$C98) -> 111376.44 | Y98: =SUMIFS(Sales!$Z$2:$Z$10811,Sales!$G$2:$G$10811,$D98,Sales!$F$2:$F$10811,$B98,Sales!$D$2:$D$10811,Y$87,Sales!$H$2:$H$10811,$C98) -> 300624.01 | Z98: =SUMIFS(Sales!$Z$2:$Z$10811,Sales!$G$2:$G$10811,$D98,Sales!$F$2:$F$10811,$B98,Sales!$D$2:$D$10811,AA$87,Sales!$H$2:$H$10811,$C98) -> 172870.03 | AA98: =SUMIFS(Sales!$Z$2:$Z$10811,Sales!$G$2:$G$10811,$D98,Sales!$F$2:$F$10811,$B98,Sales!$D$2:$D$10811,AA$87,Sales!$H$2:$H$10811,$C98) -> 172870.03 | AB98: =SUMIFS(Sales!$Z$2:$Z$10811,Sales!$G$2:$G$10811,$D98,Sales!$F$2:$F$10811,$B98,Sales!$D$2:$D$10811,AB$87,Sales!$H$2:$H$10811,$C98) -> 281060.89 | AC98: =SUM(Q98:AB98) -> 2646871.07 | AD98: =AC98/$AC$100 -> 0.3235017539 | AE98: =1-AD98 -> 0.6764982461
B100: Sales | D100: Total | E100: =SUM(E95:E99) -> 908730.15 | F100: 746317.13 | G100: 716226.42 | H100: 1177685.31 | I100: 850384.68 | J100: 802256.15 | K100: 449827.55 | L100: 554423.39 | M100: 609937.4 | N100: 529740.02 | O100: 633456.2 | P100: 551420.2 | Q100: 852959.7 | R100: 912208.92 | S100: 651670.34 | T100: 916882.11 | U100: 941865.53 | V100: 700554.77 | W100: 532635.18 | X100: 518084.26 | Y100: 499822.93 | Z100: 593809.46 | AA100: 593810.46 | AB100: 467711.65 | AC100: 8181937.31

Sheet Dash
F4: London
B7: Division | C7: Weekly Sales | E7: Daily Sales v PY | F7: Trend 12 Months | G7: Return Quantity | H7: Return Amt | I7: Customers
B8: PC Games | C8: =Calc!E2 -> 1349155.91 | D8: =VLOOKUP((Calc!E2-Calc!R2)/Calc!R2,List!$D$2:$E$4,2,1) -> ▼ | E8: =Calc!F2 -> 3696.317562 | G8: =Calc!G2 -> 29 | H8: =Calc!H2 -> 13216.02 | I8: =Calc!I2 -> 233
B9: Desktop | C9: =Calc!E3 -> 829592.78 | D9: =VLOOKUP((Calc!E3-Calc!R3)/Calc!R3,List!$D$2:$E$4,2,1) -> ▼ | E9: =Calc!F3 -> 2272.856932 | G9: =Calc!G3 -> 19 | H9: =Calc!H3 -> 4984.23 | I9: =Calc!I3 -> 175
B10: Drone | C10: =Calc!E4 -> 1201669.64 | D10: =VLOOKUP((Calc!E4-Calc!R4)/Calc!R4,List!$D$2:$E$4,2,1) -> ▲ | E10: =Calc!F4 -> 3292.245589 | G10: =Calc!G4 -> 20 | H10: =Calc!H4 -> 8948.33 | I10: =Calc!I4 -> 166
B11: Phone | C11: =Calc!E5 -> 911460.62 | D11: =VLOOKUP((Calc!E5-Calc!R5)/Calc!R5,List!$D$2:$E$4,2,1) -> ▼ | E11: =Calc!F5 -> 2497.152384 | G11: =Calc!G5 -> 26 | H11: =Calc!H5 -> 7354.08 | I11: =Calc!I5 -> 172
B12: Sound | C12: =Calc!E6 -> 875985.54 | D12: =VLOOKUP((Calc!E6-Calc!R6)/Calc!R6,List!$D$2:$E$4,2,1) -> ▼ | E12: =Calc!F6 -> 2399.960384 | G12: =Calc!G6 -> 18 | H12: =Calc!H6 -> 5475.64 | I12: =Calc!I6 -> 139
B13: Cameras | C13: =Calc!E7 -> 745095.01 | D13: =VLOOKUP((Calc!E7-Calc!R7)/Calc!R7,List!$D$2:$E$4,2,1) -> ▼ | E13: =Calc!F7 -> 2041.356192 | G13: =Calc!G7 -> 16 | H13: =Calc!H7 -> 5284.81 | I13: =Calc!I7 -> 152
B14: Music | C14: =Calc!E8 -> 952663.48 | D14: =VLOOKUP((Calc!E8-Calc!R8)/Calc!R8,List!$D$2:$E$4,2,1) -> ▲ | E14: =Calc!F8 -> 2610.036932 | G14: =Calc!G8 -> 14 | H14: =Calc!H8 -> 3872.73 | I14: =Calc!I8 -> 120
B15: Laptop | C15: =Calc!E9 -> 581148.39 | D15: =VLOOKUP((Calc!E9-Calc!R9)/Calc!R9,List!$D$2:$E$4,2,1) -> ▼ | E15: =Calc!F9 -> 1592.18737 | G15: =Calc!G9 -> 24 | H15: =Calc!H9 -> 7151.13 | I15: =Calc!I9 -> 131
B16: Tablet | C16: =Calc!E10 -> 407203.39 | D16: =VLOOKUP((Calc!E10-Calc!R10)/Calc!R10,List!$D$2:$E$4,2,1) -> ▼ | E16: =Calc!F10 -> 1115.625726 | G16: =Calc!G10 -> 8 | H16: =Calc!H10 -> 2897.45 | I16: =Calc!I10 -> 85
B17: TV | C17: =Calc!E11 -> 596171.08 | D17: =VLOOKUP((Calc!E11-Calc!R11)/Calc!R11,List!$D$2:$E$4,2,1) -> ▲ | E17: =Calc!F11 -> 1633.345425 | G17: =Calc!G11 -> 13 | H17: =Calc!H11 -> 3126.42 | I17: =Calc!I11 -> 69
B23: Day of Week | C23: Weekly Sales | E23: Avg Daily Sales | F23: Trend 12 Months | G23: Return Quantity | H23: Return Quantity | I23: Customers
B24: Monday | C24: =Calc!E58 -> 934402.84 | D24: =VLOOKUP((Calc!E58-Calc!O58)/Calc!O58,List!$D$2:$E$4,2,1) -> ▼ | E24: =Calc!F58 -> 17969.28538 | G24: =Calc!G58 -> 21 | H24: =Calc!H58 -> 5522.05 | I24: =Calc!I58 -> 216
B25: Tuesday | C25: =Calc!E59 -> 1084583.43 | D25: =VLOOKUP((Calc!E59-Calc!O59)/Calc!O59,List!$D$2:$E$4,2,1) -> ▼ | E25: =Calc!F59 -> 20857.37365 | G25: =Calc!G59 -> 26 | H25: =Calc!H59 -> 8472.96 | I25: =Calc!I59 -> 202
B26: Wednesday | C26: =Calc!E60 -> 1067485.38 | D26: =VLOOKUP((Calc!E60-Calc!O60)/Calc!O60,List!$D$2:$E$4,2,1) -> ▼ | E26: =Calc!F60 -> 20528.565 | G26: =Calc!G60 -> 25 | H26: =Calc!H60 -> 7444.55 | I26: =Calc!I60 -> 200
B27: Thursday | C27: =Calc!E61 -> 1129795.8 | D27: =VLOOKUP((Calc!E61-Calc!O61)/Calc!O61,List!$D$2:$E$4,2,1) -> ▼ | E27: =Calc!F61 -> 21726.84231 | G27: =Calc!G61 -> 36 | H27: =Calc!H61 -> 10721.99 | I27: =Calc!I61 -> 197
B28: Friday | C28: =Calc!E62 -> 1450920.07 | D28: =VLOOKUP((Calc!E62-Calc!O62)/Calc!O62,List!$D$2:$E$4,2,1) -> ► | E28: =Calc!F62 -> 27902.30904 | G28: =Calc!G62 -> 26 | H28: =Calc!H62 -> 10369.6 | I28: =Calc!I62 -> 198
B29: Saturday | C29: =Calc!E63 -> 1400771.35 | D29: =VLOOKUP((Calc!E63-Calc!O63)/Calc!O63,List!$D$2:$E$4,2,1) -> ▲ | E29: =Calc!F63 -> 26937.91058 | G29: =Calc!G63 -> 28 | H29: =Calc!H63 -> 10678.8 | I29: =Calc!I63 -> 215
B30: Sunday | C30: =Calc!E64 -> 1382186.97 | D30: =VLOOKUP((Calc!E64-Calc!O64)/Calc!O64,List!$D$2:$E$4,2,1) -> ▲ | E30: =Calc!F64 -> 26078.99943 | G30: =Calc!G64 -> 25 | H30: =Calc!H64 -> 9100.89 | I30: =Calc!I64 -> 214
B32: File Name: | C32: =F4&".xlsx" -> London.xlsx
